Workbook

Sheet Main
B10: 2019-11-06
B12: Sheet No. | C12: Template Name | D12: Summary
B13: 1 | C13: Future Intra | D13: For Intraday trading in F&O segment
B14: 2 | C14: Cash Intra | D14: For Intraday trading in cash market segment
B15: 3 | C15: Mid-cap Intra | D15: For Intraday trading in Mid-cap stocks
B16: 4 | C16: Bulk Deals | D16: Reveals Bulk Deals carried on NSE & BSE
B17: 5 | C17: Call Tracker
K27: `

Sheet Future Intra
M5: Back to Main Page
A6: FOR INTRA DAY TRADING | L6: =Main!B10 -> 2019-11-06
A9: Sr.no | B9: Sector | C9: Scrip | D9: CLOSE RATE | E9: Pivot Point | F9: Supports | I9: Resistances
B10: Sector | D10: Point | E10: Point | F10: S1 | G10: S2 | H10: S3 | I10: R1 | J10: R2 | K10: R3 | L10: HIGH | M10: LOW | N10: OI | O10: % Change in OI
A11: 1 | B11: Index | C11: BANKNIFTY | D11: 30294.15 | E11: 30323.05 | F11: 30126.20 | G11: 29958.25 | H11: 29761.40 | I11: 30491.00 | J11: 30687.85 | K11: 30855.80 | L11: 30519.9 | M11: 30155.1 | N11: 1165820 | O11: 6.45%
A12: 2 | B12: Index | C12: NIFTY | D12: 11956.00 | E12: 11951.25 | F12: 11905.75 | G12: 11855.50 | H12: 11810.00 | I12: 12001.50 | J12: 12047.00 | K12: 12097.25 | L12: 11996.75 | M12: 11901 | N12: 15775875 | O12: 2.83%
A13: 3 | B13: Index | C13: NIFTYIT | D13: 15619.00 | E13: 15609.67 | F13: 15559.33 | G13: 15499.67 | H13: 15449.33 | I13: 15669.33 | J13: 15719.67 | K13: 15779.33 | L13: 15660 | M13: 15550 | N13: 7600 | O13: 3.40%
A14: 4 | B14: Cement | C14: ACC | D14: 1522.15 | E14: 1537.03 | F14: 1503.32 | G14: 1484.48 | H14: 1450.77 | I14: 1555.87 | J14: 1589.58 | K14: 1608.42 | L14: 1570.75 | M14: 1518.2 | N14: 2735600 | O14: 5.07%
A15: 5 | B15: Others | C15: ADANIENT | D15: 201.25 | E15: 200.65 | F15: 199.00 | G15: 196.75 | H15: 195.10 | I15: 202.90 | J15: 204.55 | K15: 206.80 | L15: 202.3 | M15: 198.4 | N15: 29720000 | O15: 0.60%
A16: 6 | B16: Others | C16: ADANIPORTS | D16: 390.80 | E16: 390.92 | F16: 387.38 | G16: 383.97 | H16: 380.43 | I16: 394.33 | J16: 397.87 | K16: 401.28 | L16: 394.45 | M16: 387.5 | N16: 16090000 | O16: 0.78%
A17: 7 | B17: Power | C17: ADANIPOWER | D17: 70.10 | E17: 70.78 | F17: 68.87 | G17: 67.63 | H17: 65.72 | I17: 72.02 | J17: 73.93 | K17: 75.17 | L17: 72.7 | M17: 69.55 | N17: 80080000 | O17: -0.84%
A18: 8 | B18: Automobile | C18: AMARAJABAT | D18: 658.15 | E18: 657.93 | F18: 648.37 | G18: 638.58 | H18: 629.02 | I18: 667.72 | J18: 677.28 | K18: 687.07 | L18: 667.5 | M18: 648.15 | N18: 1349700 | O18: -3.45%
A19: 9 | B19: Cement | C19: AMBUJACEM | D19: 201.75 | E19: 202.47 | F19: 199.98 | G19: 198.22 | H19: 195.73 | I19: 204.23 | J19: 206.72 | K19: 208.48 | L19: 204.95 | M19: 200.7 | N19: 19747500 | O19: -3.16%
A20: 10 | B20: Others | C20: APOLLOHOSP | D20: 1421.45 | E20: 1429.08 | F20: 1409.57 | G20: 1397.68 | H20: 1378.17 | I20: 1440.97 | J20: 1460.48 | K20: 1472.37 | L20: 1448.6 | M20: 1417.2 | N20: 1662000 | O20: 0.09%
A21: 11 | B21: Automobile | C21: APOLLOTYRE | D21: 180.35 | E21: 181.95 | F21: 177.00 | G21: 173.65 | H21: 168.70 | I21: 185.30 | J21: 190.25 | K21: 193.60 | L21: 186.9 | M21: 178.6 | N21: 7848000 | O21: 8.10%
A22: 12 | B22: Automobile | C22: ASHOKLEY | D22: 75.10 | E22: 75.58 | F22: 74.27 | G22: 73.43 | H22: 72.12 | I22: 76.42 | J22: 77.73 | K22: 78.57 | L22: 76.9 | M22: 74.75 | N22: 61306000 | O22: 1.81%
A23: 13 | B23: FMCG | C23: ASIANPAINT | D23: 1796.55 | E23: 1790.30 | F23: 1778.80 | G23: 1761.05 | H23: 1749.55 | I23: 1808.05 | J23: 1819.55 | K23: 1837.30 | L23: 1801.8 | M23: 1772.55 | N23: 7500600 | O23: -1.84%
A24: 14 | B24: Pharma | C24: AUROPHARMA | D24: 473.40 | E24: 476.37 | F24: 466.28 | G24: 459.17 | H24: 449.08 | I24: 483.48 | J24: 493.57 | K24: 500.68 | L24: 486.45 | M24: 469.25 | N24: 16477000 | O24: -0.19%
A25: 15 | B25: Banking | C25: AXISBANK | D25: 740.15 | E25: 740.25 | F25: 734.00 | G25: 727.85 | H25: 721.60 | I25: 746.40 | J25: 752.65 | K25: 758.80 | L25: 746.5 | M25: 734.1 | N25: 51051600 | O25: 0.99%
A26: 16 | B26: Automobile | C26: BAJAJ-AUTO | D26: 3254.60 | E26: 3237.83 | F26: 3216.07 | G26: 3177.53 | H26: 3155.77 | I26: 3276.37 | J26: 3298.13 | K26: 3336.67 | L26: 3259.6 | M26: 3199.3 | N26: 2248750 | O26: -0.60%
A27: 17 | B27: Finance | C27: BAJAJFINSV | D27: 8862.40 | E27: 8811.55 | F27: 8732.15 | G27: 8601.90 | H27: 8522.50 | I27: 8941.80 | J27: 9021.20 | K27: 9151.45 | L27: 8890.95 | M27: 8681.3 | N27: 1494000 | O27: -4.52%
A28: 18 | B28: Finance | C28: BAJFINANCE | D28: 4252.65 | E28: 4225.75 | F28: 4176.90 | G28: 4101.15 | H28: 4052.30 | I28: 4301.50 | J28: 4350.35 | K28: 4426.10 | L28: 4274.6 | M28: 4150 | N28: 7405500 | O28: 4.27%
A29: 19 | B29: Automobile | C29: BALKRISIND | D29: 850.50 | E29: 857.52 | F29: 831.33 | G29: 812.17 | H29: 785.98 | I29: 876.68 | J29: 902.87 | K29: 922.03 | L29: 883.7 | M29: 838.35 | N29: 1496800 | O29: 4.06%
A30: 20 | B30: Banking | C30: BANKBARODA | D30: 102.05 | E30: 102.58 | F30: 100.92 | G30: 99.78 | H30: 98.12 | I30: 103.72 | J30: 105.38 | K30: 106.52 | L30: 104.25 | M30: 101.45 | N30: 67863600 | O30: -0.95%
A31: 21 | B31: Banking | C31: BANKINDIA | D31: 68.75 | E31: 69.55 | F31: 67.30 | G31: 65.85 | H31: 63.60 | I31: 71.00 | J31: 73.25 | K31: 74.70 | L31: 71.8 | M31: 68.1 | N31: 24918000 | O31: 0.53%
A32: 22 | B32: FMCG | C32: BATAINDIA | D32: 1710.15 | E32: 1718.98 | F32: 1696.67 | G32: 1683.18 | H32: 1660.87 | I32: 1732.47 | J32: 1754.78 | K32: 1768.27 | L32: 1741.3 | M32: 1705.5 | N32: 2486000 | O32: -5.44%
A33: 23 | B33: Capital_Goods | C33: BEL | D33: 112.15 | E33: 113.20 | F33: 110.20 | G33: 108.25 | H33: 105.25 | I33: 115.15 | J33: 118.15 | K33: 120.10 | L33: 116.2 | M33: 111.25 | N33: 26346000 | O33: 9.67%
A34: 24 | B34: FMCG | C34: BERGEPAINT | D34: 488.65 | E34: 484.13 | F34: 474.42 | G34: 460.18 | H34: 450.47 | I34: 498.37 | J34: 508.08 | K34: 522.32 | L34: 493.85 | M34: 469.9 | N34: 7356800 | O34: 8.33%
A35: 25 | B35: Automobile | C35: BHARATFORG | D35: 463.85 | E35: 468.33 | F35: 449.67 | G35: 435.48 | H35: 416.82 | I35: 482.52 | J35: 501.18 | K35: 515.37 | L35: 487 | M35: 454.15 | N35: 6702100 | O35: 7.38%
A36: 26 | B36: Telecom | C36: BHARTIARTL | D36: 385.50 | E36: 382.73 | F36: 378.77 | G36: 372.03 | H36: 368.07 | I36: 389.47 | J36: 393.43 | K36: 400.17 | L36: 386.7 | M36: 376 | N36: 33449421 | O36: 1.98%
A37: 27 | B37: Capital_Goods | C37: BHEL | D37: 56.35 | E37: 56.92 | F37: 55.53 | G37: 54.72 | H37: 53.33 | I37: 57.73 | J37: 59.12 | K37: 59.93 | L37: 58.3 | M37: 56.1 | N37: 52159100 | O37: 2.80%
A38: 28 | B38: Pharma | C38: BIOCON | D38: 255.15 | E38: 260.17 | F38: 247.78 | G38: 240.42 | H38: 228.03 | I38: 267.53 | J38: 279.92 | K38: 287.28 | L38: 272.55 | M38: 252.8 | N38: 11631300 | O38: 4.78%
A39: 29 | B39: Automobile | C39: BOSCHLTD | D39: 15676.50 | E39: 15626.67 | F39: 15541.08 | G39: 15405.67 | H39: 15320.08 | I39: 15762.08 | J39: 15847.67 | K39: 15983.08 | L39: 15712.25 | M39: 15491.25 | N39: 145260 | O39: -3.20%
A40: 30 | B40: Oil_Gas | C40: BPCL | D40: 519.95 | E40: 519.87 | F40: 515.23 | G40: 510.52 | H40: 505.88 | I40: 524.58 | J40: 529.22 | K40: 533.93 | L40: 524.5 | M40: 515.15 | N40: 20331000 | O40: 1.59%
A41: 31 | B41: FMCG | C41: BRITANNIA | D41: 3247.10 | E41: 3248.93 | F41: 3213.52 | G41: 3179.93 | H41: 3144.52 | I41: 3282.52 | J41: 3317.93 | K41: 3351.52 | L41: 3284.35 | M41: 3215.35 | N41: 2014600 | O41: 0.03%
A42: 32 | B42: Pharma | C42: CADILAHC | D42: 240.50 | E42: 241.55 | F42: 238.30 | G42: 236.10 | H42: 232.85 | I42: 243.75 | J42: 247.00 | K42: 249.20 | L42: 244.8 | M42: 239.35 | N42: 8728000 | O42: -3.04%
A43: 33 | B43: Banking | C43: CANBK | D43: 207.25 | E43: 209.30 | F43: 204.45 | G43: 201.65 | H43: 196.80 | I43: 212.10 | J43: 216.95 | K43: 219.75 | L43: 214.15 | M43: 206.5 | N43: 11218200 | O43: 4.61%
A44: 34 | B44: Oil_Gas | C44: CASTROLIND | D44: 151.50 | E44: 150.97 | F44: 149.08 | G44: 146.67 | H44: 144.78 | I44: 153.38 | J44: 155.27 | K44: 157.68 | L44: 152.85 | M44: 148.55 | N44: 5185000 | O44: 0.39%
A45: 35 | B45: Textile | C45: CENTURYTEX | D45: 396.15 | E45: 402.60 | F45: 386.80 | G45: 377.45 | H45: 361.65 | I45: 411.95 | J45: 427.75 | K45: 437.10 | L45: 418.4 | M45: 393.25 | N45: 1839600 | O45: 6.61%
A46: 36 | B46: Power | C46: CESC | D46: 806.20 | E46: 819.42 | F46: 788.93 | G46: 771.67 | H46: 741.18 | I46: 836.68 | J46: 867.17 | K46: 884.43 | L46: 849.9 | M46: 802.15 | N46: 946400 | O46: 1.81%
A47: 37 | B47: Finance | C47: CHOLAFIN | D47: 315.00 | E47: 314.12 | F47: 311.38 | G47: 307.77 | H47: 305.03 | I47: 317.73 | J47: 320.47 | K47: 324.08 | L47: 316.85 | M47: 310.5 | N47: 3390000 | O47: 5.28%
A48: 38 | B48: Pharma | C48: CIPLA | D48: 470.15 | E48: 471.35 | F48: 465.20 | G48: 460.25 | H48: 454.10 | I48: 476.30 | J48: 482.45 | K48: 487.40 | L48: 477.5 | M48: 466.4 | N48: 15533000 | O48: 3.52%
A49: 39 | B49: Others | C49: COALINDIA | D49: 212.15 | E49: 213.20 | F49: 209.20 | G49: 206.25 | H49: 202.25 | I49: 216.15 | J49: 220.15 | K49: 223.10 | L49: 217.2 | M49: 210.25 | N49: 22999300 | O49: 0.82%
A50: 40 | B50: FMCG | C50: COLPAL | D50: 1529.55 | E50: 1533.52 | F50: 1516.03 | G50: 1502.52 | H50: 1485.03 | I50: 1547.03 | J50: 1564.52 | K50: 1578.03 | L50: 1551 | M50: 1520 | N50: 1839600 | O50: 4.24%
A51: 41 | B51: Others | C51: CONCOR | D51: 580.10 | E51: 580.78 | F51: 574.42 | G51: 568.73 | H51: 562.37 | I51: 586.47 | J51: 592.83 | K51: 598.52 | L51: 587.15 | M51: 575.1 | N51: 5035986 | O51: -0.71%
A52: 42 | B52: Capital_Goods | C52: CUMMINSIND | D52: 547.95 | E52: 548.30 | F52: 542.70 | G52: 537.45 | H52: 531.85 | I52: 553.55 | J52: 559.15 | K52: 564.40 | L52: 553.9 | M52: 543.05 | N52: 2046100 | O52: -0.48%
A53: 43 | B53: FMCG | C53: DABUR | D53: 482.40 | E53: 473.90 | F53: 463.80 | G53: 445.20 | H53: 435.10 | I53: 492.50 | J53: 502.60 | K53: 521.20 | L53: 484 | M53: 455.3 | N53: 11320000 | O53: 4.54%
A54: 44 | B54: Media | C54: DISHTV | D54: 14.50 | E54: 14.77 | F54: 14.03 | G54: 13.57 | H54: 12.83 | I54: 15.23 | J54: 15.97 | K54: 16.43 | L54: 15.5 | M54: 14.3 | N54: 91314600 | O54: -0.67%
A55: 45 | B55: Pharma | C55: DIVISLAB | D55: 1694.35 | E55: 1706.78 | F55: 1671.57 | G55: 1648.78 | H55: 1613.57 | I55: 1729.57 | J55: 1764.78 | K55: 1787.57 | L55: 1742 | M55: 1684 | N55: 2327600 | O55: 3.93%
A56: 46 | B56: Realty | C56: DLF | D56: 184.55 | E56: 185.07 | F56: 181.98 | G56: 179.42 | H56: 176.33 | I56: 187.63 | J56: 190.72 | K56: 193.28 | L56: 188.15 | M56: 182.5 | N56: 35512400 | O56: -1.31%
A57: 47 | B57: Pharma | C57: DRREDDY | D57: 2818.75 | E57: 2821.83 | F57: 2790.87 | G57: 2762.98 | H57: 2732.02 | I57: 2849.72 | J57: 2880.68 | K57: 2908.57 | L57: 2852.8 | M57: 2793.95 | N57: 3283500 | O57: -1.33%
A58: 48 | B58: Automobile | C58: EICHERMOT | D58: 21393.55 | E58: 21567.10 | F58: 21166.45 | G58: 20939.35 | H58: 20538.70 | I58: 21794.20 | J58: 22194.85 | K58: 22421.95 | L58: 21967.75 | M58: 21340 | N58: 294800 | O58: 0.81%
A59: 49 | B59: Finance | C59: EQUITAS | D59: 98.70 | E59: 99.02 | F59: 97.83 | G59: 96.97 | H59: 95.78 | I59: 99.88 | J59: 101.07 | K59: 101.93 | L59: 100.2 | M59: 98.15 | N59: 10536000 | O59: -3.16%
A60: 50 | B60: Automobile | C60: ESCORTS | D60: 655.00 | E60: 656.77 | F60: 646.33 | G60: 637.67 | H60: 627.23 | I60: 665.43 | J60: 675.87 | K60: 684.53 | L60: 667.2 | M60: 648.1 | N60: 4967600 | O60: -0.62%
A61: 51 | B61: Automobile | C61: EXIDEIND | D61: 187.10 | E61: 187.47 | F61: 184.13 | G61: 181.17 | H61: 177.83 | I61: 190.43 | J61: 193.77 | K61: 196.73 | L61: 190.8 | M61: 184.5 | N61: 11584800 | O61: -1.77%
A62: 52 | B62: Banking | C62: FEDERALBNK | D62: 84.85 | E62: 86.13 | F62: 83.37 | G62: 81.88 | H62: 79.12 | I62: 87.62 | J62: 90.38 | K62: 91.87 | L62: 88.9 | M62: 84.65 | N62: 53851000 | O62: 4.04%
A63: 53 | B63: Oil_Gas | C63: GAIL | D63: 137.80 | E63: 137.40 | F63: 136.15 | G63: 134.50 | H63: 133.25 | I63: 139.05 | J63: 140.30 | K63: 141.95 | L63: 138.65 | M63: 135.75 | N63: 42869358 | O63: -1.02%
A64: 54 | B64: Pharma | C64: GLENMARK | D64: 317.30 | E64: 318.13 | F64: 314.27 | G64: 311.23 | H64: 307.37 | I64: 321.17 | J64: 325.03 | K64: 328.07 | L64: 322 | M64: 315.1 | N64: 5962400 | O64: -1.50%
A65: 55 | B65: Infrastructure | C65: GMRINFRA | D65: 20.75 | E65: 20.75 | F65: 20.35 | G65: 19.95 | H65: 19.55 | I65: 21.15 | J65: 21.55 | K65: 21.95 | L65: 21.15 | M65: 20.35 | N65: 116910000 | O65: -3.42%
A66: 56 | B66: FMCG | C66: GODREJCP | D66: 721.90 | E66: 719.17 | F66: 711.58 | G66: 701.27 | H66: 693.68 | I66: 729.48 | J66: 737.07 | K66: 747.38 | L66: 726.75 | M66: 708.85 | N66: 4012000 | O66: 1.27%
A67: 57 | B67: Cement | C67: GRASIM | D67: 772.75 | E67: 777.75 | F67: 758.55 | G67: 744.35 | H67: 725.15 | I67: 791.95 | J67: 811.15 | K67: 825.35 | L67: 796.95 | M67: 763.55 | N67: 19618500 | O67: -0.80%
A68: 58 | B68: Others | C68: HAVELLS | D68: 688.25 | E68: 688.75 | F68: 680.50 | G68: 672.75 | H68: 664.50 | I68: 696.50 | J68: 704.75 | K68: 712.50 | L68: 697 | M68: 681 | N68: 5015000 | O68: -0.73%
A69: 59 | B69: Technology | C69: HCLTECH | D69: 1160.45 | E69: 1157.58 | F69: 1151.47 | G69: 1142.48 | H69: 1136.37 | I69: 1166.57 | J69: 1172.68 | K69: 1181.67 | L69: 1163.7 | M69: 1148.6 | N69: 10715600 | O69: -0.13%
A70: 60 | B70: Finance | C70: HDFC | D70: 2187.35 | E70: 2192.17 | F70: 2166.78 | G70: 2146.22 | H70: 2120.83 | I70: 2212.73 | J70: 2238.12 | K70: 2258.68 | L70: 2217.55 | M70: 2171.6 | N70: 33736500 | O70: -0.01%
A71: 61 | B71: Banking | C71: HDFCBANK | D71: 1241.50 | E71: 1240.42 | F71: 1234.23 | G71: 1226.97 | H71: 1220.78 | I71: 1247.68 | J71: 1253.87 | K71: 1261.13 | L71: 1246.6 | M71: 1233.15 | N71: 26334000 | O71: 3.25%
A72: 62 | B72: Automobile | C72: HEROMOTOCO | D72: 2670.45 | E72: 2667.18 | F72: 2646.37 | G72: 2622.28 | H72: 2601.47 | I72: 2691.27 | J72: 2712.08 | K72: 2736.17 | L72: 2688 | M72: 2643.1 | N72: 3335600 | O72: -0.88%
A73: 63 | B73: Technology | C73: HEXAWARE | D73: 340.85 | E73: 342.35 | F73: 338.45 | G73: 336.05 | H73: 332.15 | I73: 344.75 | J73: 348.65 | K73: 351.05 | L73: 346.25 | M73: 339.95 | N73: 1812000 | O73: 2.63%
A74: 64 | B74: Metals | C74: HINDALCO | D74: 199.55 | E74: 200.30 | F74: 197.25 | G74: 194.95 | H74: 191.90 | I74: 202.60 | J74: 205.65 | K74: 207.95 | L74: 203.35 | M74: 198 | N74: 27030500 | O74: 3.66%
A75: 65 | B75: Oil_Gas | C75: HINDPETRO | D75: 313.20 | E75: 316.40 | F75: 308.90 | G75: 304.60 | H75: 297.10 | I75: 320.70 | J75: 328.20 | K75: 332.50 | L75: 323.9 | M75: 312.1 | N75: 19311600 | O75: -1.20%
A76: 66 | B76: FMCG | C76: HINDUNILVR | D76: 2175.60 | E76: 2167.15 | F76: 2154.50 | G76: 2133.40 | H76: 2120.75 | I76: 2188.25 | J76: 2200.90 | K76: 2222.00 | L76: 2179.8 | M76: 2146.05 | N76: 8841300 | O76: 1.34%
A77: 67 | B77: Finance | C77: IBULHSGFIN | D77: 219.90 | E77: 219.32 | F77: 209.83 | G77: 199.77 | H77: 190.28 | I77: 229.38 | J77: 238.87 | K77: 248.93 | L77: 228.8 | M77: 209.25 | N77: 24970400 | O77: 4.28%
A78: 68 | B78: Banking | C78: ICICIBANK | D78: 469.85 | E78: 470.88 | F78: 466.42 | G78: 462.98 | H78: 458.52 | I78: 474.32 | J78: 478.78 | K78: 482.22 | L78: 475.35 | M78: 467.45 | N78: 73205000 | O78: -0.88%
A79: 69 | B79: Finance | C79: ICICIPRULI | D79: 509.90 | E79: 511.90 | F79: 503.80 | G79: 497.70 | H79: 489.60 | I79: 518.00 | J79: 526.10 | K79: 532.20 | L79: 520 | M79: 505.8 | N79: 6172500 | O79: 5.73%
A80: 70 | B80: Telecom | C80: IDEA | D80: 4.25 | E80: 4.33 | F80: 4.02 | G80: 3.78 | H80: 3.47 | I80: 4.57 | J80: 4.88 | K80: 5.12 | L80: 4.65 | M80: 4.1 | N80: 545076000 | O80: -0.90%
A81: 71 | B81: Banking | C81: IDFCFIRSTB | D81: 42.70 | E81: 42.80 | F81: 42.05 | G81: 41.40 | H81: 40.65 | I81: 43.45 | J81: 44.20 | K81: 44.85 | L81: 43.55 | M81: 42.15 | N81: 230496000 | O81: 0.82%
A82: 72 | B82: Oil_Gas | C82: IGL | D82: 388.05 | E82: 389.58 | F82: 384.02 | G82: 379.98 | H82: 374.42 | I82: 393.62 | J82: 399.18 | K82: 403.22 | L82: 395.15 | M82: 385.55 | N82: 2898500 | O82: 1.54%
A83: 73 | B83: Others | C83: INDIGO | D83: 1468.55 | E83: 1463.82 | F83: 1417.63 | G83: 1366.72 | H83: 1320.53 | I83: 1514.73 | J83: 1560.92 | K83: 1611.83 | L83: 1510 | M83: 1412.9 | N83: 3277800 | O83: -1.42%
A84: 74 | B84: Banking | C84: INDUSINDBK | D84: 1325.45 | E84: 1336.18 | F84: 1310.22 | G84: 1294.98 | H84: 1269.02 | I84: 1351.42 | J84: 1377.38 | K84: 1392.62 | L84: 1362.15 | M84: 1320.95 | N84: 11989600 | O84: 2.43%
A85: 75 | B85: Telecom | C85: INFRATEL | D85: 218.80 | E85: 216.28 | F85: 212.32 | G85: 205.83 | H85: 201.87 | I85: 222.77 | J85: 226.73 | K85: 233.22 | L85: 220.25 | M85: 209.8 | N85: 9042000 | O85: 3.91%
A86: 76 | B86: Technology | C86: INFY | D86: 696.95 | E86: 699.47 | F86: 690.03 | G86: 683.12 | H86: 673.68 | I86: 706.38 | J86: 715.82 | K86: 722.73 | L86: 708.9 | M86: 692.55 | N86: 57187200 | O86: 3.46%
A87: 77 | B87: Oil_Gas | C87: IOC | D87: 137.60 | E87: 138.03 | F87: 136.32 | G87: 135.03 | H87: 133.32 | I87: 139.32 | J87: 141.03 | K87: 142.32 | L87: 139.75 | M87: 136.75 | N87: 29530000 | O87: 0.46%
A88: 78 | B88: FMCG | C88: ITC | D88: 263.60 | E88: 262.53 | F88: 260.57 | G88: 257.53 | H88: 255.57 | I88: 265.57 | J88: 267.53 | K88: 270.57 | L88: 264.5 | M88: 259.5 | N88: 97800000 | O88: 0.39%
A89: 79 | B89: Metals | C89: JINDALSTEL | D89: 134.55 | E89: 136.20 | F89: 131.55 | G89: 128.55 | H89: 123.90 | I89: 139.20 | J89: 143.85 | K89: 146.85 | L89: 140.85 | M89: 133.2 | N89: 34812800 | O89: -9.12%
A90: 80 | B90: Metals | C90: JSWSTEEL | D90: 247.10 | E90: 249.10 | F90: 243.60 | G90: 240.10 | H90: 234.60 | I90: 252.60 | J90: 258.10 | K90: 261.60 | L90: 254.6 | M90: 245.6 | N90: 50210000 | O90: -0.80%
A91: 81 | B91: Others | C91: JUBLFOOD | D91: 1578.55 | E91: 1572.23 | F91: 1558.32 | G91: 1538.08 | H91: 1524.17 | I91: 1592.47 | J91: 1606.38 | K91: 1626.62 | L91: 1586.15 | M91: 1552 | N91: 2203000 | O91: 2.11%
A92: 82 | B92: Others | C92: JUSTDIAL | D92: 571.65 | E92: 573.80 | F92: 564.95 | G92: 558.25 | H92: 549.40 | I92: 580.50 | J92: 589.35 | K92: 596.05 | L92: 582.65 | M92: 567.1 | N92: 3799600 | O92: 2.26%
A93: 83 | B93: Banking | C93: KOTAKBANK | D93: 1558.70 | E93: 1563.08 | F93: 1551.17 | G93: 1543.63 | H93: 1531.72 | I93: 1570.62 | J93: 1582.53 | K93: 1590.07 | L93: 1575 | M93: 1555.55 | N93: 8157600 | O93: 8.69%
A94: 84 | B94: Finance | C94: L&TFH | D94: 95.90 | E94: 96.50 | F94: 94.60 | G94: 93.30 | H94: 91.40 | I94: 97.80 | J94: 99.70 | K94: 101.00 | L94: 98.4 | M94: 95.2 | N94: 34050300 | O94: -1.05%
A95: 85 | B95: Finance | C95: LICHSGFIN | D95: 420.25 | E95: 421.10 | F95: 414.75 | G95: 409.25 | H95: 402.90 | I95: 426.60 | J95: 432.95 | K95: 438.45 | L95: 427.45 | M95: 415.6 | N95: 9350200 | O95: -0.58%
A96: 86 | B96: Capital_Goods | C96: LT | D96: 1444.45 | E96: 1447.70 | F96: 1431.40 | G96: 1418.35 | H96: 1402.05 | I96: 1460.75 | J96: 1477.05 | K96: 1490.10 | L96: 1464 | M96: 1434.65 | N96: 11872500 | O96: 0.18%
A97: 87 | B97: Pharma | C97: LUPIN | D97: 758.60 | E97: 759.42 | F97: 750.48 | G97: 742.37 | H97: 733.43 | I97: 767.53 | J97: 776.47 | K97: 784.58 | L97: 768.35 | M97: 751.3 | N97: 6319600 | O97: -1.38%
A98: 88 | B98: Automobile | C98: M&M | D98: 581.05 | E98: 584.25 | F98: 576.00 | G98: 570.95 | H98: 562.70 | I98: 589.30 | J98: 597.55 | K98: 602.60 | L98: 592.5 | M98: 579.2 | N98: 20255000 | O98: 0.48%
A99: 89 | B99: Finance | C99: M&MFIN | D99: 350.25 | E99: 354.58 | F99: 342.87 | G99: 335.48 | H99: 323.77 | I99: 361.97 | J99: 373.68 | K99: 381.07 | L99: 366.3 | M99: 347.2 | N99: 12423750 | O99: 1.04%
A100: 90 | B100: Finance | C100: MANAPPURAM | D100: 168.45 | E100: 168.88 | F100: 165.87 | G100: 163.28 | H100: 160.27 | I100: 171.47 | J100: 174.48 | K100: 177.07 | L100: 171.9 | M100: 166.3 | N100: 12840000 | O100: 1.04%
A101: 91 | B101: FMCG | C101: MARICO | D101: 366.80 | E101: 365.12 | F101: 362.98 | G101: 359.17 | H101: 357.03 | I101: 368.93 | J101: 371.07 | K101: 374.88 | L101: 367.25 | M101: 361.3 | N101: 11584300 | O101: -0.88%
A102: 92 | B102: Automobile | C102: MARUTI | D102: 7422.90 | E102: 7449.65 | F102: 7331.30 | G102: 7239.70 | H102: 7121.35 | I102: 7541.25 | J102: 7659.60 | K102: 7751.20 | L102: 7568 | M102: 7358.05 | N102: 2573650 | O102: 0.80%
A103: 93 | B103: FMCG | C103: MCDOWELL-N | D103: 629.90 | E103: 631.23 | F103: 624.17 | G103: 618.43 | H103: 611.37 | I103: 636.97 | J103: 644.03 | K103: 649.77 | L103: 638.3 | M103: 625.5 | N103: 10350000 | O103: -0.74%
A104: 94 | B104: Finance | C104: MFSL | D104: 430.80 | E104: 433.30 | F104: 422.20 | G104: 413.60 | H104: 402.50 | I104: 441.90 | J104: 453.00 | K104: 461.60 | L104: 444.4 | M104: 424.7 | N104: 2950800 | O104: 5.99%
A105: 95 | B105: Oil_Gas | C105: MGL | D105: 964.45 | E105: 971.62 | F105: 951.78 | G105: 939.12 | H105: 919.28 | I105: 984.28 | J105: 1004.12 | K105: 1016.78 | L105: 991.45 | M105: 958.95 | N105: 1538400 | O105: 6.52%
A106: 96 | B106: Technology | C106: MINDTREE | D106: 712.40 | E106: 713.73 | F106: 703.47 | G106: 694.53 | H106: 684.27 | I106: 722.67 | J106: 732.93 | K106: 741.87 | L106: 724 | M106: 704.8 | N106: 1413600 | O106: 5.18%
A107: 97 | B107: Automobile | C107: MOTHERSUMI | D107: 127.00 | E107: 126.52 | F107: 123.28 | G107: 119.57 | H107: 116.33 | I107: 130.23 | J107: 133.47 | K107: 137.18 | L107: 129.75 | M107: 122.8 | N107: 26370300 | O107: 2.28%
A108: 98 | B108: Automobile | C108: MRF | D108: 63804.45 | E108: 63951.27 | F108: 63004.23 | G108: 62204.02 | H108: 61256.98 | I108: 64751.48 | J108: 65698.52 | K108: 66498.73 | L108: 64898.3 | M108: 63151.05 | N108: 18910 | O108: -1.92%
A109: 99 | B109: Finance | C109: MUTHOOTFIN | D109: 708.00 | E109: 707.43 | F109: 702.57 | G109: 697.13 | H109: 692.27 | I109: 712.87 | J109: 717.73 | K109: 723.17 | L109: 712.3 | M109: 702 | N109: 2371500 | O109: -1.13%
A110: 100 | B110: Metals | C110: NATIONALUM | D110: 46.40 | E110: 46.47 | F110: 45.78 | G110: 45.17 | H110: 44.48 | I110: 47.08 | J110: 47.77 | K110: 48.38 | L110: 47.15 | M110: 45.85 | N110: 47155300 | O110: -0.70%
A111: 101 | B111: Infrastructure | C111: NBCC | D111: 37.35 | E111: 37.67 | F111: 36.38 | G111: 35.42 | H111: 34.13 | I111: 38.63 | J111: 39.92 | K111: 40.88 | L111: 38.95 | M111: 36.7 | N111: 31498300 | O111: 1.48%
A112: 102 | B112: Infrastructure | C112: NCC | D112: 58.40 | E112: 57.60 | F112: 55.65 | G112: 52.90 | H112: 50.95 | I112: 60.35 | J112: 62.30 | K112: 65.05 | L112: 59.55 | M112: 54.85 | N112: 40803000 | O112: 9.79%
A113: 103 | B113: FMCG | C113: NESTLEIND | D113: 14723.50 | E113: 14774.23 | F113: 14623.57 | G113: 14523.63 | H113: 14372.97 | I113: 14874.17 | J113: 15024.83 | K113: 15124.77 | L113: 14924.9 | M113: 14674.3 | N113: 456250 | O113: 1.67%
A114: 104 | B114: Technology | C114: NIITTECH | D114: 1564.85 | E114: 1569.35 | F114: 1552.50 | G114: 1540.15 | H114: 1523.30 | I114: 1581.70 | J114: 1598.55 | K114: 1610.90 | L114: 1586.2 | M114: 1557 | N114: 533250 | O114: 2.67%
A115: 105 | B115: Metals | C115: NMDC | D115: 112.20 | E115: 111.83 | F115: 110.72 | G115: 109.23 | H115: 108.12 | I115: 113.32 | J115: 114.43 | K115: 115.92 | L115: 112.95 | M115: 110.35 | N115: 18342000 | O115: 3.70%
A116: 106 | B116: Power | C116: NTPC | D116: 120.90 | E116: 120.98 | F116: 120.07 | G116: 119.23 | H116: 118.32 | I116: 121.82 | J116: 122.73 | K116: 123.57 | L116: 121.9 | M116: 120.15 | N116: 47164800 | O116: -0.53%
A117: 107 | B117: Oil_Gas | C117: OIL | D117: 170.20 | E117: 170.23 | F117: 168.02 | G117: 165.83 | H117: 163.62 | I117: 172.42 | J117: 174.63 | K117: 176.82 | L117: 172.45 | M117: 168.05 | N117: 9051537 | O117: -0.08%
A118: 108 | B118: Oil_Gas | C118: ONGC | D118: 143.55 | E118: 143.77 | F118: 141.98 | G118: 140.42 | H118: 138.63 | I118: 145.33 | J118: 147.12 | K118: 148.68 | L118: 145.55 | M118: 142.2 | N118: 20546600 | O118: 2.09%
A119: 109 | B119: Textile | C119: PAGEIND | D119: 23995.35 | E119: 24053.98 | F119: 23742.82 | G119: 23490.28 | H119: 23179.12 | I119: 24306.52 | J119: 24617.68 | K119: 24870.22 | L119: 24365.15 | M119: 23801.45 | N119: 173275 | O119: -0.14%
A120: 110 | B120: Pharma | C120: PEL | D120: 1697.35 | E120: 1705.58 | F120: 1668.67 | G120: 1639.98 | H120: 1603.07 | I120: 1734.27 | J120: 1771.18 | K120: 1799.87 | L120: 1742.5 | M120: 1676.9 | N120: 5018636 | O120: 0.18%
A121: 111 | B121: Oil_Gas | C121: PETRONET | D121: 280.00 | E121: 280.10 | F121: 276.45 | G121: 272.90 | H121: 269.25 | I121: 283.65 | J121: 287.30 | K121: 290.85 | L121: 283.75 | M121: 276.55 | N121: 19617000 | O121: 0.71%
A122: 112 | B122: Finance | C122: PFC | D122: 111.10 | E122: 111.20 | F122: 109.60 | G122: 108.10 | H122: 106.50 | I122: 112.70 | J122: 114.30 | K122: 115.80 | L122: 112.8 | M122: 109.7 | N122: 32444600 | O122: -2.41%
A123: 113 | B123: FMCG | C123: PIDILITIND | D123: 1392.35 | E123: 1392.73 | F123: 1378.62 | G123: 1364.88 | H123: 1350.77 | I123: 1406.47 | J123: 1420.58 | K123: 1434.32 | L123: 1406.85 | M123: 1379 | N123: 3539500 | O123: -1.67%
A124: 114 | B124: Banking | C124: PNB | D124: 65.00 | E124: 66.37 | F124: 63.03 | G124: 61.07 | H124: 57.73 | I124: 68.33 | J124: 71.67 | K124: 73.63 | L124: 69.7 | M124: 64.4 | N124: 103308700 | O124: 3.74%
A125: 115 | B125: Power | C125: POWERGRID | D125: 195.90 | E125: 196.02 | F125: 194.73 | G125: 193.57 | H125: 192.28 | I125: 197.18 | J125: 198.47 | K125: 199.63 | L125: 197.3 | M125: 194.85 | N125: 30820000 | O125: -1.50%
A126: 116 | B126: Media | C126: PVR | D126: 1768.85 | E126: 1748.45 | F126: 1722.90 | G126: 1676.95 | H126: 1651.40 | I126: 1794.40 | J126: 1819.95 | K126: 1865.90 | L126: 1774 | M126: 1702.5 | N126: 1350400 | O126: 5.93%
A127: 117 | B127: Cement | C127: RAMCOCEM | D127: 794.15 | E127: 798.22 | F127: 784.38 | G127: 774.62 | H127: 760.78 | I127: 807.98 | J127: 821.82 | K127: 831.58 | L127: 812.05 | M127: 788.45 | N127: 1166400 | O127: -3.06%
A128: 118 | B128: Banking | C128: RBLBANK | D128: 299.05 | E128: 304.05 | F128: 291.60 | G128: 284.15 | H128: 271.70 | I128: 311.50 | J128: 323.95 | K128: 331.40 | L128: 316.5 | M128: 296.6 | N128: 9960000 | O128: -0.44%
A129: 119 | B129: Power | C129: RECLTD | D129: 137.75 | E129: 138.87 | F129: 135.43 | G129: 133.12 | H129: 129.68 | I129: 141.18 | J129: 144.62 | K129: 146.93 | L129: 142.3 | M129: 136.55 | N129: 19782000 | O129: -1.29%
A130: 120 | B130: Oil_Gas | C130: RELIANCE | D130: 1454.40 | E130: 1458.27 | F130: 1443.53 | G130: 1432.67 | H130: 1417.93 | I130: 1469.13 | J130: 1483.87 | K130: 1494.73 | L130: 1473 | M130: 1447.4 | N130: 50092500 | O130: -0.05%
A131: 121 | B131: Metals | C131: SAIL | D131: 39.15 | E131: 39.57 | F131: 38.28 | G131: 37.42 | H131: 36.13 | I131: 40.43 | J131: 41.72 | K131: 42.58 | L131: 40.85 | M131: 38.7 | N131: 74806200 | O131: -2.38%
A132: 122 | B132: Banking | C132: SBIN | D132: 320.50 | E132: 318.92 | F132: 314.93 | G132: 309.37 | H132: 305.38 | I132: 324.48 | J132: 328.47 | K132: 334.03 | L132: 322.9 | M132: 313.35 | N132: 84690000 | O132: -2.77%
A133: 123 | B133: Cement | C133: SHREECEM | D133: 19928.50 | E133: 20027.48 | F133: 19781.52 | G133: 19634.53 | H133: 19388.57 | I133: 20174.47 | J133: 20420.43 | K133: 20567.42 | L133: 20273.45 | M133: 19880.5 | N133: 153050 | O133: 0.46%
A134: 124 | B134: Capital_Goods | C134: SIEMENS | D134: 1673.60 | E134: 1665.55 | F134: 1650.25 | G134: 1626.90 | H134: 1611.60 | I134: 1688.90 | J134: 1704.20 | K134: 1727.55 | L134: 1680.85 | M134: 1642.2 | N134: 1365100 | O134: 2.60%
A135: 125 | B135: Textile | C135: SRF | D135: 2969.05 | E135: 2977.65 | F135: 2882.70 | G135: 2796.35 | H135: 2701.40 | I135: 3064.00 | J135: 3158.95 | K135: 3245.30 | L135: 3072.6 | M135: 2891.3 | N135: 866000 | O135: -11.66%
A136: 126 | B136: Finance | C136: SRTRANSFIN | D136: 1136.95 | E136: 1137.32 | F136: 1123.83 | G136: 1110.72 | H136: 1097.23 | I136: 1150.43 | J136: 1163.92 | K136: 1177.03 | L136: 1150.8 | M136: 1124.2 | N136: 4057800 | O136: 0.37%
A137: 127 | B137: Pharma | C137: SUNPHARMA | D137: 431.10 | E137: 432.88 | F137: 424.27 | G137: 417.43 | H137: 408.82 | I137: 439.72 | J137: 448.33 | K137: 455.17 | L137: 441.5 | M137: 426.05 | N137: 59441600 | O137: 0.79%
A138: 128 | B138: Media | C138: SUNTV | D138: 520.15 | E138: 520.40 | F138: 513.80 | G138: 507.45 | H138: 500.85 | I138: 526.75 | J138: 533.35 | K138: 539.70 | L138: 527 | M138: 514.05 | N138: 2838000 | O138: -1.74%
A139: 129 | B139: Fertilisers | C139: TATACHEM | D139: 640.10 | E139: 640.60 | F139: 631.60 | G139: 623.10 | H139: 614.10 | I139: 649.10 | J139: 658.10 | K139: 666.60 | L139: 649.6 | M139: 632.1 | N139: 2630700 | O139: 1.07%
A140: 130 | B140: Technology | C140: TATAELXSI | D140: 813.60 | E140: 819.13 | F140: 805.12 | G140: 796.63 | H140: 782.62 | I140: 827.62 | J140: 841.63 | K140: 850.12 | L140: 833.15 | M140: 810.65 | N140: 1068600 | O140: -2.41%
A141: 131 | B141: FMCG | C141: TATAGLOBAL | D141: 302.05 | E141: 303.78 | F141: 299.27 | G141: 296.48 | H141: 291.97 | I141: 306.57 | J141: 311.08 | K141: 313.87 | L141: 308.3 | M141: 301 | N141: 12954600 | O141: 3.45%
A142: 132 | B142: Automobile | C142: TATAMOTORS | D142: 172.75 | E142: 173.25 | F142: 170.10 | G142: 167.45 | H142: 164.30 | I142: 175.90 | J142: 179.05 | K142: 181.70 | L142: 176.4 | M142: 170.6 | N142: 57976800 | O142: -0.99%
A143: 133 | B143: Automobile | C143: TATAMTRDVR | D143: 80.40 | E143: 80.53 | F143: 79.22 | G143: 78.03 | H143: 76.72 | I143: 81.72 | J143: 83.03 | K143: 84.22 | L143: 81.85 | M143: 79.35 | N143: 33858000 | O143: -0.18%
A144: 134 | B144: Power | C144: TATAPOWER | D144: 58.95 | E144: 59.30 | F144: 58.25 | G144: 57.55 | H144: 56.50 | I144: 60.00 | J144: 61.05 | K144: 61.75 | L144: 60.35 | M144: 58.6 | N144: 57879000 | O144: 2.06%
A145: 135 | B145: Metals | C145: TATASTEEL | D145: 404.95 | E145: 408.58 | F145: 398.72 | G145: 392.48 | H145: 382.62 | I145: 414.82 | J145: 424.68 | K145: 430.92 | L145: 418.45 | M145: 402.35 | N145: 24293168 | O145: 2.54%
A146: 136 | B146: Technology | C146: TCS | D146: 2211.30 | E146: 2194.33 | F146: 2166.77 | G146: 2122.23 | H146: 2094.67 | I146: 2238.87 | J146: 2266.43 | K146: 2310.97 | L146: 2221.9 | M146: 2149.8 | N146: 18292500 | O146: -0.76%
A147: 137 | B147: Technology | C147: TECHM | D147: 776.85 | E147: 774.12 | F147: 770.13 | G147: 763.42 | H147: 759.43 | I147: 780.83 | J147: 784.82 | K147: 791.53 | L147: 778.1 | M147: 767.4 | N147: 20192400 | O147: 4.14%
A148: 138 | B148: FMCG | C148: TITAN | D148: 1290.50 | E148: 1293.83 | F148: 1279.17 | G148: 1267.83 | H148: 1253.17 | I148: 1305.17 | J148: 1319.83 | K148: 1331.17 | L148: 1308.5 | M148: 1282.5 | N148: 9997500 | O148: 0.73%
A149: 139 | B149: Pharma | C149: TORNTPHARM | D149: 1798.20 | E149: 1805.20 | F149: 1778.20 | G149: 1758.20 | H149: 1731.20 | I149: 1825.20 | J149: 1852.20 | K149: 1872.20 | L149: 1832.2 | M149: 1785.2 | N149: 327000 | O149: -4.25%
A150: 140 | B150: Power | C150: TORNTPOWER | D150: 280.15 | E150: 281.83 | F150: 275.57 | G150: 270.98 | H150: 264.72 | I150: 286.42 | J150: 292.68 | K150: 297.27 | L150: 288.1 | M150: 277.25 | N150: 4341000 | O150: 2.62%
A151: 141 | B151: Automobile | C151: TVSMOTOR | D151: 449.65 | E151: 452.07 | F151: 443.63 | G151: 437.62 | H151: 429.18 | I151: 458.08 | J151: 466.52 | K151: 472.53 | L151: 460.5 | M151: 446.05 | N151: 8787450 | O151: 1.63%
A152: 142 | B152: FMCG | C152: UBL | D152: 1223.55 | E152: 1229.35 | F152: 1206.65 | G152: 1189.75 | H152: 1167.05 | I152: 1246.25 | J152: 1268.95 | K152: 1285.85 | L152: 1252.05 | M152: 1212.45 | N152: 2400300 | O152: 2.76%
A153: 143 | B153: Finance | C153: UJJIVAN | D153: 280.75 | E153: 282.08 | F153: 275.67 | G153: 270.58 | H153: 264.17 | I153: 287.17 | J153: 293.58 | K153: 298.67 | L153: 288.5 | M153: 277 | N153: 8640000 | O153: 0.41%
A154: 144 | B154: Cement | C154: ULTRACEMCO | D154: 4163.85 | E154: 4189.13 | F154: 4121.12 | G154: 4078.38 | H154: 4010.37 | I154: 4231.87 | J154: 4299.88 | K154: 4342.62 | L154: 4257.15 | M154: 4146.4 | N154: 2515200 | O154: 0.59%
A155: 145 | B155: Banking | C155: UNIONBANK | D155: 57.40 | E155: 58.03 | F155: 56.37 | G155: 55.33 | H155: 53.67 | I155: 59.07 | J155: 60.73 | K155: 61.77 | L155: 59.7 | M155: 57 | N155: 30338000 | O155: 0.28%
A156: 146 | B156: Fertilisers | C156: UPL | D156: 608.55 | E156: 606.82 | F156: 593.73 | G156: 578.92 | H156: 565.83 | I156: 621.63 | J156: 634.72 | K156: 649.53 | L156: 619.9 | M156: 592 | N156: 14184000 | O156: 1.30%
A157: 147 | B157: Metals | C157: VEDL | D157: 157.80 | E157: 158.50 | F157: 155.90 | G157: 154.00 | H157: 151.40 | I157: 160.40 | J157: 163.00 | K157: 164.90 | L157: 161.1 | M157: 156.6 | N157: 55043000 | O157: 0.57%
A158: 148 | B158: Capital_Goods | C158: VOLTAS | D158: 682.70 | E158: 684.47 | F158: 676.28 | G158: 669.87 | H158: 661.68 | I158: 690.88 | J158: 699.07 | K158: 705.48 | L158: 692.65 | M158: 678.05 | N158: 1784000 | O158: -0.61%
A159: 149 | B159: Technology | C159: WIPRO | D159: 258.90 | E159: 257.90 | F159: 256.10 | G159: 253.30 | H159: 251.50 | I159: 260.70 | J159: 262.50 | K159: 265.30 | L159: 259.7 | M159: 255.1 | N159: 25196800 | O159: -0.92%
A160: 150 | B160: Banking | C160: YESBANK | D160: 68.25 | E160: 68.85 | F160: 66.05 | G160: 63.85 | H160: 61.05 | I160: 71.05 | J160: 73.85 | K160: 76.05 | L160: 71.65 | M160: 66.65 | N160: 159935600 | O160: -0.83%
A161: 151 | B161: Media | C161: ZEEL | D161: 284.35 | E161: 287.30 | F161: 275.85 | G161: 267.35 | H161: 255.90 | I161: 295.80 | J161: 307.25 | K161: 315.75 | L161: 298.75 | M161: 278.8 | N161: 29272800 | O161: 4.51%
A178: Pivot Point: This is trigger point for intra day buy/sell based on the price range of the previous day
A179: As per the tool,the trader should take BUY position just above Pivot and keep the stop loss of pivot point and the first target would be Resistance 1(R1)
A180: If R1 is crossed then R2 becomes the next target with stop loss of at R1
A181: Similarly if price goes below pivot point then the trader should sell and keep a stop loss of pivot point and the first target would be S1
A182: If S1 is crossed then S2 becomes the next target with stop loss of at S1
A184: Disclaimer:
A185: This document has been prepared by the Retail Research Desk of Asit C Mehta
A186: Investment Intermediates Ltd. and is meant for use of the recipient only
A187: and is not for circulation. This document is not to be reported or
A188: copied or made available to others. It should not be considered to be
A189: taken as an offer to sell or a solicitation to buy any security. The
A190: information contained herein is from sources believed reliable. We do
A191: not represent that it is accurate or complete and it should not be
A192: relied upon as such. We may from time to time have positions in and buy
A193: and sell securities referred to herein

Sheet Cash Intra
M5: Back to Main Page
A6: FOR INTRA DAY TRADING | K6: =Main!B10 -> 2019-11-06
A8: Sr.no | B8: Scrip | C8: CLOSE RATE | D8: Pivot Point | E8: Supports | H8: Resistances
C9: Point | E9: S1 | F9: S2 | G9: S3 | H9: R1 | I9: R2 | J9: R3 | K9: HIGH | L9: LOW | M9: Total Trade Quanity in Lakhs
A10: 1 | B10: Nifty 50 | C10: 11917.2 | D10: 11919.35 | E10: 11859.75 | F10: 11802.30 | G10: 11742.70 | H10: 11976.80 | I10: 12036.40 | J10: 12093.85 | K10: 11978.95 | L10: 11861.9
A11: 2 | B11: Nifty Bank | C11: 30219.85 | D11: 30254.63 | E11: 30056.57 | F11: 29893.28 | G11: 29695.22 | H11: 30417.92 | I11: 30615.98 | J11: 30779.27 | K11: 30452.7 | L11: 30091.35
A12: 3 | B12: Nifty CPSE | C12: 2040.55 | D12: 2049.18 | E12: 2028.77 | F12: 2016.98 | G12: 1996.57 | H12: 2060.97 | I12: 2081.38 | J12: 2093.17 | K12: 2069.6 | L12: 2037.4
A13: 4 | B13: Nifty Infra | C13: 3290.45 | D13: 3294.80 | E13: 3272.10 | F13: 3253.75 | G13: 3231.05 | H13: 3313.15 | I13: 3335.85 | J13: 3354.20 | K13: 3317.5 | L13: 3276.45
A14: 5 | B14: Nifty IT | C14: 15533.45 | D14: 15523.12 | E14: 15433.13 | F14: 15332.82 | G14: 15242.83 | H14: 15623.43 | I14: 15713.42 | J14: 15813.73 | K14: 15613.1 | L14: 15422.8
A15: 6 | B15: Nifty PSE | C15: 3406.2 | D15: 3414.85 | E15: 3387.65 | F15: 3369.10 | G15: 3341.90 | H15: 3433.40 | I15: 3460.60 | J15: 3479.15 | K15: 3442.05 | L15: 3396.3
A16: 7 | B16: Nifty Midcap 50 | C16: 4597.15 | D16: 4621.30 | E16: 4565.95 | F16: 4534.75 | G16: 4479.40 | H16: 4652.50 | I16: 4707.85 | J16: 4739.05 | K16: 4676.65 | L16: 4590.1
A17: 8 | B17: ACC | C17: 1514.65 | D17: 1529.68 | E17: 1495.37 | F17: 1476.08 | G17: 1441.77 | H17: 1548.97 | I17: 1583.28 | J17: 1602.57 | K17: 1564 | L17: 1510.4 | M17: 9.14025
A18: 9 | B18: AUBANK | C18: 674.75 | D18: 678.98 | E18: 666.77 | F18: 658.78 | G18: 646.57 | H18: 686.97 | I18: 699.18 | J18: 707.17 | K18: 691.2 | L18: 671 | M18: 1.95701
A19: 10 | B19: ADANIPORTS | C19: 390 | D19: 389.80 | E19: 386.70 | F19: 383.40 | G19: 380.30 | H19: 393.10 | I19: 396.20 | J19: 399.50 | K19: 392.9 | L19: 386.5 | M19: 13.95899
A20: 11 | B20: ADANIPOWER | C20: 69.9 | D20: 70.57 | E20: 68.68 | F20: 67.47 | G20: 65.58 | H20: 71.78 | I20: 73.67 | J20: 74.88 | K20: 72.45 | L20: 69.35 | M20: 96.65951
A21: 12 | B21: ABCAPITAL | C21: 85.45 | D21: 84.80 | E21: 83.65 | F21: 81.85 | G21: 80.70 | H21: 86.60 | I21: 87.75 | J21: 89.55 | K21: 85.95 | L21: 83 | M21: 34.70582
A22: 13 | B22: ABFRL | C22: 209.6 | D22: 210.12 | E22: 205.28 | F22: 200.97 | G22: 196.13 | H22: 214.43 | I22: 219.27 | J22: 223.58 | K22: 214.95 | L22: 205.8 | M22: 4.75008
A23: 14 | B23: AJANTPHARM | C23: 1002.3 | D23: 1007.65 | E23: 985.65 | F23: 969.00 | G23: 947.00 | H23: 1024.30 | I23: 1046.30 | J23: 1062.95 | K23: 1029.65 | L23: 991 | M23: 1.92532
A24: 15 | B24: ALKEM | C24: 2048.75 | D24: 2038.37 | E24: 2026.73 | F24: 2004.72 | G24: 1993.08 | H24: 2060.38 | I24: 2072.02 | J24: 2094.03 | K24: 2050 | L24: 2016.35 | M24: 0.6495
A25: 16 | B25: ALBK | C25: 27.3 | D25: 27.47 | E25: 26.88 | F25: 26.47 | G25: 25.88 | H25: 27.88 | I25: 28.47 | J25: 28.88 | K25: 28.05 | L25: 27.05 | M25: 9.85986
A26: 17 | B26: AMARAJABAT | C26: 657.35 | D26: 658.77 | E26: 650.63 | F26: 643.92 | G26: 635.78 | H26: 665.48 | I26: 673.62 | J26: 680.33 | K26: 666.9 | L26: 652.05 | M26: 4.35964
A27: 18 | B27: AMBUJACEM | C27: 201.55 | D27: 202.13 | E27: 199.92 | F27: 198.28 | G27: 196.07 | H27: 203.77 | I27: 205.98 | J27: 207.62 | K27: 204.35 | L27: 200.5 | M27: 21.90913
A28: 19 | B28: APOLLOHOSP | C28: 1414.95 | D28: 1424.75 | E28: 1402.70 | F28: 1390.45 | G28: 1368.40 | H28: 1437.00 | I28: 1459.05 | J28: 1471.30 | K28: 1446.8 | L28: 1412.5 | M28: 6.20983
A29: 20 | B29: APOLLOTYRE | C29: 179.85 | D29: 181.82 | E29: 175.98 | F29: 172.12 | G29: 166.28 | H29: 185.68 | I29: 191.52 | J29: 195.38 | K29: 187.65 | L29: 177.95 | M29: 85.95442
A30: 21 | B30: ASHOKLEY | C30: 74.95 | D30: 75.43 | E30: 74.22 | F30: 73.48 | G30: 72.27 | H30: 76.17 | I30: 77.38 | J30: 78.12 | K30: 76.65 | L30: 74.7 | M30: 152.2867
A31: 22 | B31: ASIANPAINT | C31: 1793.85 | D31: 1786.42 | E31: 1775.03 | F31: 1756.22 | G31: 1744.83 | H31: 1805.23 | I31: 1816.62 | J31: 1835.43 | K31: 1797.8 | L31: 1767.6 | M31: 12.51974
A32: 23 | B32: AUROPHARMA | C32: 473.9 | D32: 476.60 | E32: 467.70 | F32: 461.50 | G32: 452.60 | H32: 482.80 | I32: 491.70 | J32: 497.90 | K32: 485.5 | L32: 470.4 | M32: 32.70484
A33: 24 | B33: DMART | C33: 1976.85 | D33: 1964.85 | E33: 1947.10 | F33: 1917.35 | G33: 1899.60 | H33: 1994.60 | I33: 2012.35 | J33: 2042.10 | K33: 1982.6 | L33: 1935.1 | M33: 3.12316
A34: 25 | B34: AXISBANK | C34: 738.05 | D34: 738.08 | E34: 730.57 | F34: 723.08 | G34: 715.57 | H34: 745.57 | I34: 753.08 | J34: 760.57 | K34: 745.6 | L34: 730.6 | M34: 73.06253
A35: 26 | B35: BAJAJ-AUTO | C35: 3246.3 | D35: 3231.05 | E35: 3206.40 | F35: 3166.50 | G35: 3141.85 | H35: 3270.95 | I35: 3295.60 | J35: 3335.50 | K35: 3255.7 | L35: 3191.15 | M35: 3.05513
A36: 27 | B36: BAJFINANCE | C36: 4227.8 | D36: 4205.93 | E36: 4156.87 | F36: 4085.93 | G36: 4036.87 | H36: 4276.87 | I36: 4325.93 | J36: 4396.87 | K36: 4255 | L36: 4135 | M36: 29.34652
A37: 28 | B37: BAJAJFINSV | C37: 8845.75 | D37: 8796.30 | E37: 8704.85 | F37: 8563.95 | G37: 8472.50 | H37: 8937.20 | I37: 9028.65 | J37: 9169.55 | K37: 8887.75 | L37: 8655.4 | M37: 5.9842
A38: 29 | B38: BAJAJHLDNG | C38: 3728.05 | D38: 3722.72 | E38: 3700.43 | F38: 3672.82 | G38: 3650.53 | H38: 3750.33 | I38: 3772.62 | J38: 3800.23 | K38: 3745 | L38: 3695.1 | M38: 0.17767
A39: 30 | B39: BALKRISIND | C39: 856.9 | D39: 865.48 | E39: 840.47 | F39: 824.03 | G39: 799.02 | H39: 881.92 | I39: 906.93 | J39: 923.37 | K39: 890.5 | L39: 849.05 | M39: 7.50313
A40: 31 | B40: BANDHANBNK | C40: 587 | D40: 586.63 | E40: 580.37 | F40: 573.73 | G40: 567.47 | H40: 593.27 | I40: 599.53 | J40: 606.17 | K40: 592.9 | L40: 580 | M40: 8.28572
A41: 32 | B41: BANKBARODA | C41: 101.9 | D41: 102.38 | E41: 100.82 | F41: 99.73 | G41: 98.17 | H41: 103.47 | I41: 105.03 | J41: 106.12 | K41: 103.95 | L41: 101.3 | M41: 323.5592
A42: 33 | B42: BANKINDIA | C42: 70.4 | D42: 71.05 | E42: 69.45 | F42: 68.50 | G42: 66.90 | H42: 72.00 | I42: 73.60 | J42: 74.55 | K42: 72.65 | L42: 70.1 | M42: 98.19361
A43: 34 | B43: BATAINDIA | C43: 1704.7 | D43: 1715.73 | E43: 1689.57 | F43: 1674.43 | G43: 1648.27 | H43: 1730.87 | I43: 1757.03 | J43: 1772.17 | K43: 1741.9 | L43: 1700.6 | M43: 9.37911
A44: 35 | B44: BERGEPAINT | C44: 498.3 | D44: 499.33 | E44: 490.02 | F44: 481.73 | G44: 472.42 | H44: 507.62 | I44: 516.93 | J44: 525.22 | K44: 508.65 | L44: 491.05 | M44: 36.64134
A45: 36 | B45: BEL | C45: 112.6 | D45: 113.37 | E45: 110.83 | F45: 109.07 | G45: 106.53 | H45: 115.13 | I45: 117.67 | J45: 119.43 | K45: 115.9 | L45: 111.6 | M45: 209.62769
A46: 37 | B46: BHARATFORG | C46: 464.55 | D46: 469.45 | E46: 452.10 | F46: 439.65 | G46: 422.30 | H46: 481.90 | I46: 499.25 | J46: 511.70 | K46: 486.8 | L46: 457 | M46: 38.6342
A47: 38 | B47: BHEL | C47: 56.05 | D47: 56.65 | E47: 55.30 | F47: 54.55 | G47: 53.20 | H47: 57.40 | I47: 58.75 | J47: 59.50 | K47: 58 | L47: 55.9 | M47: 166.70483
A48: 39 | B48: BPCL | C48: 517.5 | D48: 517.70 | E48: 513.20 | F48: 508.90 | G48: 504.40 | H48: 522.00 | I48: 526.50 | J48: 530.80 | K48: 522.2 | L48: 513.4 | M48: 32.81529
A49: 40 | B49: BHARTIARTL | C49: 383.95 | D49: 381.33 | E49: 377.17 | F49: 370.38 | G49: 366.22 | H49: 388.12 | I49: 392.28 | J49: 399.07 | K49: 385.5 | L49: 374.55 | M49: 66.41731
A50: 41 | B50: INFRATEL | C50: 222.15 | D50: 219.60 | E50: 214.95 | F50: 207.75 | G50: 203.10 | H50: 226.80 | I50: 231.45 | J50: 238.65 | K50: 224.25 | L50: 212.4 | M50: 98.51993
A51: 42 | B51: BIOCON | C51: 256.25 | D51: 261.03 | E51: 249.47 | F51: 242.68 | G51: 231.12 | H51: 267.82 | I51: 279.38 | J51: 286.17 | K51: 272.6 | L51: 254.25 | M51: 90.80951
A52: 43 | B52: BBTC | C52: 1201.4 | D52: 1207.45 | E52: 1185.95 | F52: 1170.50 | G52: 1149.00 | H52: 1222.90 | I52: 1244.40 | J52: 1259.85 | K52: 1228.95 | L52: 1192 | M52: 0.89821
A53: 44 | B53: BOSCHLTD | C53: 15681.05 | D53: 15652.50 | E53: 15560.90 | F53: 15440.75 | G53: 15349.15 | H53: 15772.65 | I53: 15864.25 | J53: 15984.40 | K53: 15744.1 | L53: 15532.35 | M53: 0.21492
A54: 45 | B54: BRITANNIA | C54: 3231.75 | D54: 3238.02 | E54: 3196.03 | F54: 3160.32 | G54: 3118.33 | H54: 3273.73 | I54: 3315.72 | J54: 3351.43 | K54: 3280 | L54: 3202.3 | M54: 3.30794
A55: 46 | B55: CESC | C55: 803.3 | D55: 815.77 | E55: 785.53 | F55: 767.77 | G55: 737.53 | H55: 833.53 | I55: 863.77 | J55: 881.53 | K55: 846 | L55: 798 | M55: 13.57799
A56: 47 | B56: CADILAHC | C56: 239.6 | D56: 240.87 | E56: 237.23 | F56: 234.87 | G56: 231.23 | H56: 243.23 | I56: 246.87 | J56: 249.23 | K56: 244.5 | L56: 238.5 | M56: 13.5679
A57: 48 | B57: CANBK | C57: 206.8 | D57: 208.57 | E57: 203.48 | F57: 200.17 | G57: 195.08 | H57: 211.88 | I57: 216.97 | J57: 220.28 | K57: 213.65 | L57: 205.25 | M57: 103.18146
A58: 49 | B58: CASTROLIND | C58: 150.75 | D58: 150.42 | E58: 148.58 | F58: 146.42 | G58: 144.58 | H58: 152.58 | I58: 154.42 | J58: 156.58 | K58: 152.25 | L58: 148.25 | M58: 10.34058
A59: 50 | B59: CHOLAFIN | C59: 316.6 | D59: 316.67 | E59: 313.48 | F59: 310.37 | G59: 307.18 | H59: 319.78 | I59: 322.97 | J59: 326.08 | K59: 319.85 | L59: 313.55 | M59: 19.76356
A60: 51 | B60: CIPLA | C60: 467.85 | D60: 469.50 | E60: 463.50 | F60: 459.15 | G60: 453.15 | H60: 473.85 | I60: 479.85 | J60: 484.20 | K60: 475.5 | L60: 465.15 | M60: 13.91429
A61: 52 | B61: CUB | C61: 206.8 | D61: 208.22 | E61: 202.93 | F61: 199.07 | G61: 193.78 | H61: 212.08 | I61: 217.37 | J61: 221.23 | K61: 213.5 | L61: 204.35 | M61: 12.45138
A62: 53 | B62: COALINDIA | C62: 211.15 | D62: 212.77 | E62: 207.98 | F62: 204.82 | G62: 200.03 | H62: 215.93 | I62: 220.72 | J62: 223.88 | K62: 217.55 | L62: 209.6 | M62: 126.81517
A63: 54 | B63: COLPAL | C63: 1522.95 | D63: 1528.40 | E63: 1507.70 | F63: 1492.45 | G63: 1471.75 | H63: 1543.65 | I63: 1564.35 | J63: 1579.60 | K63: 1549.1 | L63: 1513.15 | M63: 6.4711
A64: 55 | B64: CONCOR | C64: 576.85 | D64: 578.57 | E64: 570.63 | F64: 564.42 | G64: 556.48 | H64: 584.78 | I64: 592.72 | J64: 598.93 | K64: 586.5 | L64: 572.35 | M64: 8.11208
A65: 56 | B65: COROMANDEL | C65: 460.5 | D65: 463.85 | E65: 453.70 | F65: 446.90 | G65: 436.75 | H65: 470.65 | I65: 480.80 | J65: 487.60 | K65: 474 | L65: 457.05 | M65: 0.76355
A66: 57 | B66: CROMPTON | C66: 249.15 | D66: 250.88 | E66: 246.32 | F66: 243.48 | G66: 238.92 | H66: 253.72 | I66: 258.28 | J66: 261.12 | K66: 255.45 | L66: 248.05 | M66: 11.19164
A67: 58 | B67: CUMMINSIND | C67: 546.5 | D67: 545.93 | E67: 541.87 | F67: 537.23 | G67: 533.17 | H67: 550.57 | I67: 554.63 | J67: 559.27 | K67: 550 | L67: 541.3 | M67: 5.74136
A68: 59 | B68: DLF | C68: 184.35 | D68: 184.60 | E68: 181.80 | F68: 179.25 | G68: 176.45 | H68: 187.15 | I68: 189.95 | J68: 192.50 | K68: 187.4 | L68: 182.05 | M68: 78.47108
A69: 60 | B69: DABUR | C69: 481.35 | D69: 473.32 | E69: 463.23 | F69: 445.12 | G69: 435.03 | H69: 491.43 | I69: 501.52 | J69: 519.63 | K69: 483.4 | L69: 455.2 | M69: 88.58287
A70: 61 | B70: DALBHARAT | C70: 823.35 | D70: 822.62 | E70: 801.23 | F70: 779.12 | G70: 757.73 | H70: 844.73 | I70: 866.12 | J70: 888.23 | K70: 844 | L70: 800.5 | M70: 44.37139
A71: 62 | B71: DIVISLAB | C71: 1687.45 | D71: 1700.83 | E71: 1663.42 | F71: 1639.38 | G71: 1601.97 | H71: 1724.87 | I71: 1762.28 | J71: 1786.32 | K71: 1738.25 | L71: 1676.8 | M71: 5.87695
A72: 63 | B72: DRREDDY | C72: 2815.7 | D72: 2819.07 | E72: 2788.63 | F72: 2761.57 | G72: 2731.13 | H72: 2846.13 | I72: 2876.57 | J72: 2903.63 | K72: 2849.5 | L72: 2792 | M72: 8.43662
A73: 64 | B73: EDELWEISS | C73: 95.85 | D73: 95.95 | E73: 94.50 | F73: 93.15 | G73: 91.70 | H73: 97.30 | I73: 98.75 | J73: 100.10 | K73: 97.4 | L73: 94.6 | M73: 20.00048
A74: 65 | B74: EICHERMOT | C74: 21287.15 | D74: 21488.32 | E74: 21029.33 | F74: 20771.52 | G74: 20312.53 | H74: 21746.13 | I74: 22205.12 | J74: 22462.93 | K74: 21947.3 | L74: 21230.5 | M74: 1.49412
A75: 66 | B75: EMAMILTD | C75: 328.55 | D75: 328.97 | E75: 325.13 | F75: 321.72 | G75: 317.88 | H75: 332.38 | I75: 336.22 | J75: 339.63 | K75: 332.8 | L75: 325.55 | M75: 2.47536
A76: 67 | B76: ENDURANCE | C76: 1105.45 | D76: 1110.18 | E76: 1095.37 | F76: 1085.28 | G76: 1070.47 | H76: 1120.27 | I76: 1135.08 | J76: 1145.17 | K76: 1125 | L76: 1100.1 | M76: 0.08187
A77: 68 | B77: ENGINERSIN | C77: 115.3 | D77: 115.87 | E77: 112.23 | F77: 109.17 | G77: 105.53 | H77: 118.93 | I77: 122.57 | J77: 125.63 | K77: 119.5 | L77: 112.8 | M77: 21.20549
A78: 69 | B78: ESCORTS | C78: 652.55 | D78: 654.95 | E78: 644.10 | F78: 635.65 | G78: 624.80 | H78: 663.40 | I78: 674.25 | J78: 682.70 | K78: 665.8 | L78: 646.5 | M78: 27.96804
A79: 70 | B79: EXIDEIND | C79: 188.7 | D79: 188.85 | E79: 185.55 | F79: 182.40 | G79: 179.10 | H79: 192.00 | I79: 195.30 | J79: 198.45 | K79: 192.15 | L79: 185.7 | M79: 23.66978
A80: 71 | B80: FEDERALBNK | C80: 84.4 | D80: 85.80 | E80: 82.75 | F80: 81.10 | G80: 78.05 | H80: 87.45 | I80: 90.50 | J80: 92.15 | K80: 88.85 | L80: 84.15 | M80: 190.85828
A81: 72 | B81: FCONSUMER | C81: 26.65 | D81: 26.73 | E81: 25.67 | F81: 24.68 | G81: 23.62 | H81: 27.72 | I81: 28.78 | J81: 29.77 | K81: 27.8 | L81: 25.75 | M81: 16.63977
A82: 73 | B82: FRETAIL | C82: 375 | D82: 375.90 | E82: 372.10 | F82: 369.20 | G82: 365.40 | H82: 378.80 | I82: 382.60 | J82: 385.50 | K82: 379.7 | L82: 373 | M82: 4.32776
A83: 74 | B83: GAIL | C83: 137.4 | D83: 137.02 | E83: 135.53 | F83: 133.67 | G83: 132.18 | H83: 138.88 | I83: 140.37 | J83: 142.23 | K83: 138.5 | L83: 135.15 | M83: 75.19917
A84: 75 | B84: GMRINFRA | C84: 20.65 | D84: 20.65 | E84: 20.25 | F84: 19.85 | G84: 19.45 | H84: 21.05 | I84: 21.45 | J84: 21.85 | K84: 21.05 | L84: 20.25 | M84: 67.96037
A85: 76 | B85: GICRE | C85: 280.2 | D85: 285.10 | E85: 271.15 | F85: 262.10 | G85: 248.15 | H85: 294.15 | I85: 308.10 | J85: 317.15 | K85: 299.05 | L85: 276.05 | M85: 5.21135
A86: 77 | B86: GLENMARK | C86: 317.1 | D86: 317.85 | E86: 313.90 | F86: 310.70 | G86: 306.75 | H86: 321.05 | I86: 325.00 | J86: 328.20 | K86: 321.8 | L86: 314.65 | M86: 11.61397
A87: 78 | B87: GODREJAGRO | C87: 500.65 | D87: 504.38 | E87: 489.77 | F87: 478.88 | G87: 464.27 | H87: 515.27 | I87: 529.88 | J87: 540.77 | K87: 519 | L87: 493.5 | M87: 1.1949
A88: 79 | B88: GODREJCP | C88: 721.5 | D88: 718.37 | E88: 711.73 | F88: 701.97 | G88: 695.33 | H88: 728.13 | I88: 734.77 | J88: 744.53 | K88: 725 | L88: 708.6 | M88: 7.61475
A89: 80 | B89: GODREJIND | C89: 421.95 | D89: 423.35 | E89: 418.60 | F89: 415.25 | G89: 410.50 | H89: 426.70 | I89: 431.45 | J89: 434.80 | K89: 428.1 | L89: 420 | M89: 0.66307
A90: 81 | B90: GODREJPROP | C90: 955.15 | D90: 962.55 | E90: 940.80 | F90: 926.45 | G90: 904.70 | H90: 976.90 | I90: 998.65 | J90: 1013.00 | K90: 984.3 | L90: 948.2 | M90: 6.74484
A91: 82 | B91: GRAPHITE | C91: 295.75 | D91: 298.43 | E91: 290.97 | F91: 286.18 | G91: 278.72 | H91: 303.22 | I91: 310.68 | J91: 315.47 | K91: 305.9 | L91: 293.65 | M91: 16.57068
A92: 83 | B92: GRASIM | C92: 768.6 | D92: 774.38 | E92: 753.77 | F92: 738.93 | G92: 718.32 | H92: 789.22 | I92: 809.83 | J92: 824.67 | K92: 795 | L92: 759.55 | M92: 27.42795
A93: 84 | B93: GSPL | C93: 221.3 | D93: 221.17 | E93: 219.38 | F93: 217.47 | G93: 215.68 | H93: 223.08 | I93: 224.87 | J93: 226.78 | K93: 222.95 | L93: 219.25 | M93: 4.87249
A94: 85 | B94: HEG | C94: 1012.95 | D94: 1022.17 | E94: 998.33 | F94: 983.72 | G94: 959.88 | H94: 1036.78 | I94: 1060.62 | J94: 1075.23 | K94: 1046 | L94: 1007.55 | M94: 4.26348
A95: 86 | B95: HCLTECH | C95: 1158.7 | D95: 1154.22 | E95: 1147.83 | F95: 1136.97 | G95: 1130.58 | H95: 1165.08 | I95: 1171.47 | J95: 1182.33 | K95: 1160.6 | L95: 1143.35 | M95: 14.3905
A96: 87 | B96: HDFCAMC | C96: 3008.3 | D96: 3005.62 | E96: 2938.73 | F96: 2869.17 | G96: 2802.28 | H96: 3075.18 | I96: 3142.07 | J96: 3211.63 | K96: 3072.5 | L96: 2936.05 | M96: 12.21743
A97: 88 | B97: HDFCBANK | C97: 1239.5 | D97: 1237.78 | E97: 1230.77 | F97: 1222.03 | G97: 1215.02 | H97: 1246.52 | I97: 1253.53 | J97: 1262.27 | K97: 1244.8 | L97: 1229.05 | M97: 61.83905
A98: 89 | B98: HDFCLIFE | C98: 583.65 | D98: 588.60 | E98: 575.20 | F98: 566.75 | G98: 553.35 | H98: 597.05 | I98: 610.45 | J98: 618.90 | K98: 602 | L98: 580.15 | M98: 61.70402
A99: 90 | B99: HAVELLS | C99: 687.05 | D99: 688.02 | E99: 679.13 | F99: 671.22 | G99: 662.33 | H99: 695.93 | I99: 704.82 | J99: 712.73 | K99: 696.9 | L99: 680.1 | M99: 8.2945
A100: 91 | B100: HEROMOTOCO | C100: 2665 | D100: 2660.68 | E100: 2642.37 | F100: 2619.73 | G100: 2601.42 | H100: 2683.32 | I100: 2701.63 | J100: 2724.27 | K100: 2679 | L100: 2638.05 | M100: 5.08321
A101: 92 | B101: HEXAWARE | C101: 340 | D101: 341.37 | E101: 337.73 | F101: 335.47 | G101: 331.83 | H101: 343.63 | I101: 347.27 | J101: 349.53 | K101: 345 | L101: 339.1 | M101: 4.08734
A102: 93 | B102: HINDALCO | C102: 198.6 | D102: 199.55 | E102: 196.40 | F102: 194.20 | G102: 191.05 | H102: 201.75 | I102: 204.90 | J102: 207.10 | K102: 202.7 | L102: 197.35 | M102: 89.12298
A103: 94 | B103: HINDPETRO | C103: 312.5 | D103: 315.53 | E103: 308.12 | F103: 303.73 | G103: 296.32 | H103: 319.92 | I103: 327.33 | J103: 331.72 | K103: 322.95 | L103: 311.15 | M103: 37.04276
A104: 95 | B104: HINDUNILVR | C104: 2172.15 | D104: 2163.68 | E104: 2151.62 | F104: 2131.08 | G104: 2119.02 | H104: 2184.22 | I104: 2196.28 | J104: 2216.82 | K104: 2175.75 | L104: 2143.15 | M104: 21.67085
A105: 96 | B105: HINDZINC | C105: 207 | D105: 209.43 | E105: 204.37 | F105: 201.73 | G105: 196.67 | H105: 212.07 | I105: 217.13 | J105: 219.77 | K105: 214.5 | L105: 206.8 | M105: 12.87977
A106: 97 | B106: HUDCO | C106: 39.85 | D106: 40.30 | E106: 39.25 | F106: 38.65 | G106: 37.60 | H106: 40.90 | I106: 41.95 | J106: 42.55 | K106: 41.35 | L106: 39.7 | M106: 11.27054
A107: 98 | B107: HDFC | C107: 2181.3 | D107: 2185.27 | E107: 2160.73 | F107: 2140.17 | G107: 2115.63 | H107: 2205.83 | I107: 2230.37 | J107: 2250.93 | K107: 2209.8 | L107: 2164.7 | M107: 55.25743
A108: 99 | B108: ICICIBANK | C108: 468.35 | D108: 469.75 | E108: 465.50 | F108: 462.65 | G108: 458.40 | H108: 472.60 | I108: 476.85 | J108: 479.70 | K108: 474 | L108: 466.9 | M108: 149.52189
A109: 100 | B109: ICICIGI | C109: 1305.35 | D109: 1313.60 | E109: 1281.75 | F109: 1258.15 | G109: 1226.30 | H109: 1337.20 | I109: 1369.05 | J109: 1392.65 | K109: 1345.45 | L109: 1290 | M109: 5.06519
A110: 101 | B110: ICICIPRULI | C110: 509.9 | D110: 511.33 | E110: 503.67 | F110: 497.43 | G110: 489.77 | H110: 517.57 | I110: 525.23 | J110: 531.47 | K110: 519 | L110: 505.1 | M110: 22.68137
A111: 102 | B111: IDBI | C111: 33.8 | D111: 34.23 | E111: 33.02 | F111: 32.23 | G111: 31.02 | H111: 35.02 | I111: 36.23 | J111: 37.02 | K111: 35.45 | L111: 33.45 | M111: 29.51514
A112: 103 | B112: IDFCFIRSTB | C112: 43.05 | D112: 43.33 | E112: 42.42 | F112: 41.78 | G112: 40.87 | H112: 43.97 | I112: 44.88 | J112: 45.52 | K112: 44.25 | L112: 42.7 | M112: 139.10867
A113: 104 | B113: ITC | C113: 262.9 | D113: 261.83 | E113: 259.67 | F113: 256.43 | G113: 254.27 | H113: 265.07 | I113: 267.23 | J113: 270.47 | K113: 264 | L113: 258.6 | M113: 102.78362
A114: 105 | B114: IBULHSGFIN | C114: 225.05 | D114: 225.13 | E114: 217.62 | F114: 210.18 | G114: 202.67 | H114: 232.57 | I114: 240.08 | J114: 247.52 | K114: 232.65 | L114: 217.7 | M114: 476.37319
A115: 106 | B115: IBVENTURES | C115: 116.65 | D115: 116.65 | E115: 116.65 | F115: 116.65 | G115: 116.65 | H115: 116.65 | I115: 116.65 | J115: 116.65 | K115: 116.65 | L115: 116.65 | M115: 0.4235
A116: 107 | B116: INDIANB | C116: 128.7 | D116: 130.70 | E116: 125.45 | F116: 122.20 | G116: 116.95 | H116: 133.95 | I116: 139.20 | J116: 142.45 | K116: 135.95 | L116: 127.45 | M116: 18.57979
A117: 108 | B117: INDHOTEL | C117: 151.5 | D117: 153.37 | E117: 148.73 | F117: 145.97 | G117: 141.33 | H117: 156.13 | I117: 160.77 | J117: 163.53 | K117: 158 | L117: 150.6 | M117: 15.16772
A118: 109 | B118: IOC | C118: 137 | D118: 137.57 | E118: 135.63 | F118: 134.27 | G118: 132.33 | H118: 138.93 | I118: 140.87 | J118: 142.23 | K118: 139.5 | L118: 136.2 | M118: 89.89792
A119: 110 | B119: IGL | C119: 388.05 | D119: 389.75 | E119: 383.90 | F119: 379.75 | G119: 373.90 | H119: 393.90 | I119: 399.75 | J119: 403.90 | K119: 395.6 | L119: 385.6 | M119: 15.10116
A120: 111 | B120: INDUSINDBK | C120: 1320.1 | D120: 1331.80 | E120: 1303.30 | F120: 1286.50 | G120: 1258.00 | H120: 1348.60 | I120: 1377.10 | J120: 1393.90 | K120: 1360.3 | L120: 1315 | M120: 26.56825
A121: 112 | B121: NAUKRI | C121: 2492 | D121: 2499.35 | E121: 2436.70 | F121: 2381.40 | G121: 2318.75 | H121: 2554.65 | I121: 2617.30 | J121: 2672.60 | K121: 2562 | L121: 2444.05 | M121: 2.17982
A122: 113 | B122: INFY | C122: 696.1 | D122: 698.78 | E122: 688.82 | F122: 681.53 | G122: 671.57 | H122: 706.07 | I122: 716.03 | J122: 723.32 | K122: 708.75 | L122: 691.5 | M122: 128.97805
A123: 114 | B123: INDIGO | C123: 1462.45 | D123: 1459.10 | E123: 1415.20 | F123: 1367.95 | G123: 1324.05 | H123: 1506.35 | I123: 1550.25 | J123: 1597.50 | K123: 1503 | L123: 1411.85 | M123: 47.97987
A124: 115 | B124: IPCALAB | C124: 994.9 | D124: 1013.27 | E124: 971.63 | F124: 948.37 | G124: 906.73 | H124: 1036.53 | I124: 1078.17 | J124: 1101.43 | K124: 1054.9 | L124: 990 | M124: 2.51731
A125: 116 | B125: JSWENERGY | C125: 73.15 | D125: 73.38 | E125: 71.97 | F125: 70.78 | G125: 69.37 | H125: 74.57 | I125: 75.98 | J125: 77.17 | K125: 74.8 | L125: 72.2 | M125: 7.60116
A126: 117 | B126: JSWSTEEL | C126: 246.05 | D126: 248.15 | E126: 242.15 | F126: 238.25 | G126: 232.25 | H126: 252.05 | I126: 258.05 | J126: 261.95 | K126: 254.15 | L126: 244.25 | M126: 103.94354
A127: 118 | B127: JINDALSTEL | C127: 134.05 | D127: 135.95 | E127: 130.90 | F127: 127.75 | G127: 122.70 | H127: 139.10 | I127: 144.15 | J127: 147.30 | K127: 141 | L127: 132.8 | M127: 433.15239
A128: 119 | B128: JUBLFOOD | C128: 1583.85 | D128: 1575.27 | E128: 1559.58 | F128: 1535.32 | G128: 1519.63 | H128: 1599.53 | I128: 1615.22 | J128: 1639.48 | K128: 1590.95 | L128: 1551 | M128: 6.43713
A129: 120 | B129: JUBILANT | C129: 539.45 | D129: 543.50 | E129: 532.50 | F129: 525.55 | G129: 514.55 | H129: 550.45 | I129: 561.45 | J129: 568.40 | K129: 554.5 | L129: 536.55 | M129: 1.3876
A130: 121 | B130: KOTAKBANK | C130: 1553.9 | D130: 1557.98 | E130: 1546.22 | F130: 1538.53 | G130: 1526.77 | H130: 1565.67 | I130: 1577.43 | J130: 1585.12 | K130: 1569.75 | L130: 1550.3 | M130: 22.63394
A131: 122 | B131: L&TFH | C131: 95.4 | D131: 96.17 | E131: 94.23 | F131: 93.07 | G131: 91.13 | H131: 97.33 | I131: 99.27 | J131: 100.43 | K131: 98.1 | L131: 95 | M131: 71.07244
A132: 123 | B132: LTTS | C132: 1501.05 | D132: 1500.23 | E132: 1490.47 | F132: 1479.88 | G132: 1470.12 | H132: 1510.82 | I132: 1520.58 | J132: 1531.17 | K132: 1510 | L132: 1489.65 | M132: 1.25081
A133: 124 | B133: LICHSGFIN | C133: 419.85 | D133: 420.47 | E133: 414.53 | F133: 409.22 | G133: 403.28 | H133: 425.78 | I133: 431.72 | J133: 437.03 | K133: 426.4 | L133: 415.15 | M133: 30.09767
A134: 125 | B134: LTI | C134: 1667.35 | D134: 1667.12 | E134: 1661.23 | F134: 1655.12 | G134: 1649.23 | H134: 1673.23 | I134: 1679.12 | J134: 1685.23 | K134: 1673 | L134: 1661 | M134: 0.59607
A135: 126 | B135: LT | C135: 1439.8 | D135: 1443.80 | E135: 1428.00 | F135: 1416.20 | G135: 1400.40 | H135: 1455.60 | I135: 1471.40 | J135: 1483.20 | K135: 1459.6 | L135: 1432 | M135: 24.01916
A136: 127 | B136: LUPIN | C136: 754.95 | D136: 756.07 | E136: 747.23 | F136: 739.52 | G136: 730.68 | H136: 763.78 | I136: 772.62 | J136: 780.33 | K136: 764.9 | L136: 748.35 | M136: 8.51794
A137: 128 | B137: MRF | C137: 63855.75 | D137: 64096.00 | E137: 62991.15 | F137: 62126.55 | G137: 61021.70 | H137: 64960.60 | I137: 66065.45 | J137: 66930.05 | K137: 65200.85 | L137: 63231.4 | M137: 0.05484
A138: 129 | B138: MGL | C138: 959.7 | D138: 968.63 | E138: 945.32 | F138: 930.93 | G138: 907.62 | H138: 983.02 | I138: 1006.33 | J138: 1020.72 | K138: 991.95 | L138: 954.25 | M138: 6.75833
A139: 130 | B139: M&MFIN | C139: 348.6 | D139: 353.27 | E139: 340.83 | F139: 333.07 | G139: 320.63 | H139: 361.03 | I139: 373.47 | J139: 381.23 | K139: 365.7 | L139: 345.5 | M139: 16.31049
A140: 131 | B140: M&M | C140: 580.15 | D140: 582.62 | E140: 574.63 | F140: 569.12 | G140: 561.13 | H140: 588.13 | I140: 596.12 | J140: 601.63 | K140: 590.6 | L140: 577.1 | M140: 26.53917
A141: 132 | B141: MANAPPURAM | C141: 168.15 | D141: 168.47 | E141: 165.68 | F141: 163.22 | G141: 160.43 | H141: 170.93 | I141: 173.72 | J141: 176.18 | K141: 171.25 | L141: 166 | M141: 33.6853
A142: 133 | B142: MRPL | C142: 50.4 | D142: 50.83 | E142: 49.72 | F142: 49.03 | G142: 47.92 | H142: 51.52 | I142: 52.63 | J142: 53.32 | K142: 51.95 | L142: 50.15 | M142: 5.40818
A143: 134 | B143: MARICO | C143: 366.4 | D143: 364.63 | E143: 362.27 | F143: 358.13 | G143: 355.77 | H143: 368.77 | I143: 371.13 | J143: 375.27 | K143: 367 | L143: 360.5 | M143: 24.59875
A144: 135 | B144: MARUTI | C144: 7389 | D144: 7418.65 | E144: 7295.35 | F144: 7201.70 | G144: 7078.40 | H144: 7512.30 | I144: 7635.60 | J144: 7729.25 | K144: 7541.95 | L144: 7325 | M144: 12.07089
A145: 136 | B145: MFSL | C145: 428.7 | D145: 431.37 | E145: 420.38 | F145: 412.07 | G145: 401.08 | H145: 439.68 | I145: 450.67 | J145: 458.98 | K145: 442.35 | L145: 423.05 | M145: 19.42276
A146: 137 | B146: MINDTREE | C146: 710.05 | D146: 710.12 | E146: 701.13 | F146: 692.22 | G146: 683.23 | H146: 719.03 | I146: 728.02 | J146: 736.93 | K146: 719.1 | L146: 701.2 | M146: 6.0026
A147: 138 | B147: MOTHERSUMI | C147: 126.5 | D147: 126.32 | E147: 122.83 | F147: 119.17 | G147: 115.68 | H147: 129.98 | I147: 133.47 | J147: 137.13 | K147: 129.8 | L147: 122.65 | M147: 145.58708
A148: 139 | B148: MPHASIS | C148: 914.6 | D148: 922.67 | E148: 904.93 | F148: 895.27 | G148: 877.53 | H148: 932.33 | I148: 950.07 | J148: 959.73 | K148: 940.4 | L148: 913 | M148: 1.68201
A149: 140 | B149: MUTHOOTFIN | C149: 704.5 | D149: 704.88 | E149: 699.62 | F149: 694.73 | G149: 689.47 | H149: 709.77 | I149: 715.03 | J149: 719.92 | K149: 710.15 | L149: 700 | M149: 2.40137
A150: 141 | B150: NATCOPHARM | C150: 586.25 | D150: 588.92 | E150: 580.33 | F150: 574.42 | G150: 565.83 | H150: 594.83 | I150: 603.42 | J150: 609.33 | K150: 597.5 | L150: 583 | M150: 0.73045
A151: 142 | B151: NBCC | C151: 37.2 | D151: 37.52 | E151: 36.33 | F151: 35.47 | G151: 34.28 | H151: 38.38 | I151: 39.57 | J151: 40.43 | K151: 38.7 | L151: 36.65 | M151: 121.34315
A152: 143 | B152: NHPC | C152: 23.7 | D152: 23.75 | E152: 23.55 | F152: 23.40 | G152: 23.20 | H152: 23.90 | I152: 24.10 | J152: 24.25 | K152: 23.95 | L152: 23.6 | M152: 15.4651
A153: 144 | B153: NMDC | C153: 111.65 | D153: 111.27 | E153: 110.18 | F153: 108.72 | G153: 107.63 | H153: 112.73 | I153: 113.82 | J153: 115.28 | K153: 112.35 | L153: 109.8 | M153: 30.85676
A154: 145 | B154: NTPC | C154: 120.6 | D154: 120.55 | E154: 119.60 | F154: 118.60 | G154: 117.65 | H154: 121.55 | I154: 122.50 | J154: 123.50 | K154: 121.5 | L154: 119.55 | M154: 61.56847
A155: 146 | B155: NATIONALUM | C155: 46.65 | D155: 47.07 | E155: 46.13 | F155: 45.62 | G155: 44.68 | H155: 47.58 | I155: 48.52 | J155: 49.03 | K155: 48 | L155: 46.55 | M155: 81.95194
A156: 147 | B156: NESTLEIND | C156: 14650.2 | D156: 14713.53 | E156: 14542.07 | F156: 14433.93 | G156: 14262.47 | H156: 14821.67 | I156: 14993.13 | J156: 15101.27 | K156: 14885 | L156: 14605.4 | M156: 0.83265
A157: 148 | B157: OBEROIRLTY | C157: 500.1 | D157: 500.48 | E157: 495.22 | F157: 490.33 | G157: 485.07 | H157: 505.37 | I157: 510.63 | J157: 515.52 | K157: 505.75 | L157: 495.6 | M157: 2.67745
A158: 149 | B158: ONGC | C158: 146.35 | D158: 146.70 | E158: 144.65 | F158: 142.95 | G158: 140.90 | H158: 148.40 | I158: 150.45 | J158: 152.15 | K158: 148.75 | L158: 145 | M158: 78.83507
A159: 150 | B159: OIL | C159: 169.5 | D159: 169.58 | E159: 166.97 | F159: 164.43 | G159: 161.82 | H159: 172.12 | I159: 174.73 | J159: 177.27 | K159: 172.2 | L159: 167.05 | M159: 3.0774
A160: 151 | B160: OFSS | C160: 3130.4 | D160: 3138.80 | E160: 3116.60 | F160: 3102.80 | G160: 3080.60 | H160: 3152.60 | I160: 3174.80 | J160: 3188.60 | K160: 3161 | L160: 3125 | M160: 0.06608
A161: 152 | B161: ORIENTBANK | C161: 54.4 | D161: 55.03 | E161: 53.47 | F161: 52.53 | G161: 50.97 | H161: 55.97 | I161: 57.53 | J161: 58.47 | K161: 56.6 | L161: 54.1 | M161: 8.81809
A162: 153 | B162: PIIND | C162: 1385.4 | D162: 1391.52 | E162: 1362.88 | F162: 1340.37 | G162: 1311.73 | H162: 1414.03 | I162: 1442.67 | J162: 1465.18 | K162: 1420.15 | L162: 1369 | M162: 0.93176
A163: 154 | B163: PNBHOUSING | C163: 568.3 | D163: 571.37 | E163: 558.93 | F163: 549.57 | G163: 537.13 | H163: 580.73 | I163: 593.17 | J163: 602.53 | K163: 583.8 | L163: 562 | M163: 11.82553
A164: 155 | B164: PAGEIND | C164: 24157.15 | D164: 24324.93 | E164: 23887.22 | F164: 23617.28 | G164: 23179.57 | H164: 24594.87 | I164: 25032.58 | J164: 25302.52 | K164: 24762.65 | L164: 24055 | M164: 0.15354
A165: 156 | B165: PETRONET | C165: 284.95 | D165: 285.08 | E165: 281.42 | F165: 277.88 | G165: 274.22 | H165: 288.62 | I165: 292.28 | J165: 295.82 | K165: 288.75 | L165: 281.55 | M165: 29.60869
A166: 157 | B166: PFIZER | C166: 4055.75 | D166: 4059.93 | E166: 4019.92 | F166: 3984.08 | G166: 3944.07 | H166: 4095.77 | I166: 4135.78 | J166: 4171.62 | K166: 4099.95 | L166: 4024.1 | M166: 0.19964
A167: 158 | B167: PIDILITIND | C167: 1388.8 | D167: 1390.27 | E167: 1375.53 | F167: 1362.27 | G167: 1347.53 | H167: 1403.53 | I167: 1418.27 | J167: 1431.53 | K167: 1405 | L167: 1377 | M167: 4.2565
A168: 159 | B168: PEL | C168: 1714.8 | D168: 1725.93 | E168: 1693.87 | F168: 1672.93 | G168: 1640.87 | H168: 1746.87 | I168: 1778.93 | J168: 1799.87 | K168: 1758 | L168: 1705 | M168: 10.43878
A169: 160 | B169: PFC | C169: 111.9 | D169: 111.73 | E169: 110.22 | F169: 108.53 | G169: 107.02 | H169: 113.42 | I169: 114.93 | J169: 116.62 | K169: 113.25 | L169: 110.05 | M169: 46.74551
A170: 161 | B170: POWERGRID | C170: 195.4 | D170: 195.27 | E170: 194.03 | F170: 192.67 | G170: 191.43 | H170: 196.63 | I170: 197.87 | J170: 199.23 | K170: 196.5 | L170: 193.9 | M170: 45.86524
A171: 162 | B171: PRESTIGE | C171: 299.9 | D171: 301.13 | E171: 295.27 | F171: 290.63 | G171: 284.77 | H171: 305.77 | I171: 311.63 | J171: 316.27 | K171: 307 | L171: 296.5 | M171: 4.35105
A172: 163 | B172: PGHH | C172: 11881.4 | D172: 11944.13 | E172: 11698.27 | F172: 11515.13 | G172: 11269.27 | H172: 12127.27 | I172: 12373.13 | J172: 12556.27 | K172: 12190 | L172: 11761 | M172: 0.05064
A173: 164 | B173: PNB | C173: 64.75 | D173: 66.18 | E173: 62.82 | F173: 60.88 | G173: 57.52 | H173: 68.12 | I173: 71.48 | J173: 73.42 | K173: 69.55 | L173: 64.25 | M173: 800.19705
A174: 165 | B174: QUESS | C174: 510.55 | D174: 509.43 | E174: 497.12 | F174: 483.68 | G174: 471.37 | H174: 522.87 | I174: 535.18 | J174: 548.62 | K174: 521.75 | L174: 496 | M174: 4.0485
A175: 166 | B175: RBLBANK | C175: 299.1 | D175: 303.77 | E175: 291.33 | F175: 283.57 | G175: 271.13 | H175: 311.53 | I175: 323.97 | J175: 331.73 | K175: 316.2 | L175: 296 | M175: 109.99661
A176: 167 | B176: RECLTD | C176: 137.4 | D176: 138.45 | E176: 135.10 | F176: 132.80 | G176: 129.45 | H176: 140.75 | I176: 144.10 | J176: 146.40 | K176: 141.8 | L176: 136.15 | M176: 42.95472
A177: 168 | B177: RAJESHEXPO | C177: 674.45 | D177: 675.97 | E177: 670.98 | F177: 667.52 | G177: 662.53 | H177: 679.43 | I177: 684.42 | J177: 687.88 | K177: 680.95 | L177: 672.5 | M177: 7.4572
A178: 169 | B178: RELIANCE | C178: 1447.3 | D178: 1452.42 | E178: 1435.88 | F178: 1424.47 | G178: 1407.93 | H178: 1463.83 | I178: 1480.37 | J178: 1491.78 | K178: 1468.95 | L178: 1441 | M178: 57.99318
A179: 170 | B179: RNAM | C179: 332.2 | D179: 339.80 | E179: 322.60 | F179: 313.00 | G179: 295.80 | H179: 349.40 | I179: 366.60 | J179: 376.20 | K179: 357 | L179: 330.2 | M179: 31.03732
A180: 171 | B180: SBILIFE | C180: 969.8 | D180: 979.63 | E180: 956.27 | F180: 942.73 | G180: 919.37 | H180: 993.17 | I180: 1016.53 | J180: 1030.07 | K180: 1003 | L180: 966.1 | M180: 12.30007
A181: 172 | B181: SRF | C181: 2957.45 | D181: 2970.72 | E181: 2876.73 | F181: 2796.02 | G181: 2702.03 | H181: 3051.43 | I181: 3145.42 | J181: 3226.13 | K181: 3064.7 | L181: 2890 | M181: 11.50812
A182: 173 | B182: SHREECEM | C182: 19829.3 | D182: 19939.95 | E182: 19680.90 | F182: 19532.50 | G182: 19273.45 | H182: 20088.35 | I182: 20347.40 | J182: 20495.80 | K182: 20199 | L182: 19791.55 | M182: 0.17968
A183: 174 | B183: SRTRANSFIN | C183: 1139.2 | D183: 1139.80 | E183: 1127.40 | F183: 1115.60 | G183: 1103.20 | H183: 1151.60 | I183: 1164.00 | J183: 1175.80 | K183: 1152.2 | L183: 1128 | M183: 5.28009
A184: 175 | B184: SIEMENS | C184: 1677.4 | D184: 1667.88 | E184: 1649.72 | F184: 1622.03 | G184: 1603.87 | H184: 1695.57 | I184: 1713.73 | J184: 1741.42 | K184: 1686.05 | L184: 1640.2 | M184: 4.4052
A185: 176 | B185: SBIN | C185: 319.2 | D185: 318.00 | E185: 314.00 | F185: 308.80 | G185: 304.80 | H185: 323.20 | I185: 327.20 | J185: 332.40 | K185: 322 | L185: 312.8 | M185: 500.80853
A186: 177 | B186: SAIL | C186: 39.1 | D186: 39.55 | E186: 38.35 | F186: 37.60 | G186: 36.40 | H186: 40.30 | I186: 41.50 | J186: 42.25 | K186: 40.75 | L186: 38.8 | M186: 296.97013
A187: 178 | B187: STRTECH | C187: 131.8 | D187: 132.60 | E187: 130.20 | F187: 128.60 | G187: 126.20 | H187: 134.20 | I187: 136.60 | J187: 138.20 | K187: 135 | L187: 131 | M187: 6.99463
A188: 179 | B188: SUNPHARMA | C188: 429.9 | D188: 431.25 | E188: 422.70 | F188: 415.50 | G188: 406.95 | H188: 438.45 | I188: 447.00 | J188: 454.20 | K188: 439.8 | L188: 424.05 | M188: 67.19996
A189: 180 | B189: SUNTV | C189: 520 | D189: 520.73 | E189: 513.62 | F189: 507.23 | G189: 500.12 | H189: 527.12 | I189: 534.23 | J189: 540.62 | K189: 527.85 | L189: 514.35 | M189: 13.98222
A190: 181 | B190: SYNGENE | C190: 330.25 | D190: 330.10 | E190: 328.40 | F190: 326.55 | G190: 324.85 | H190: 331.95 | I190: 333.65 | J190: 335.50 | K190: 331.8 | L190: 328.25 | M190: 0.70919
A191: 182 | B191: TVSMOTOR | C191: 458.85 | D191: 460.72 | E191: 453.13 | F191: 447.42 | G191: 439.83 | H191: 466.43 | I191: 474.02 | J191: 479.73 | K191: 468.3 | L191: 455 | M191: 19.72191
A192: 183 | B192: TATACHEM | C192: 636.85 | D192: 637.52 | E192: 628.03 | F192: 619.22 | G192: 609.73 | H192: 646.33 | I192: 655.82 | J192: 664.63 | K192: 647 | L192: 628.7 | M192: 9.49765
A193: 184 | B193: TCS | C193: 2201.85 | D193: 2193.95 | E193: 2176.90 | F193: 2151.95 | G193: 2134.90 | H193: 2218.90 | I193: 2235.95 | J193: 2260.90 | K193: 2211 | L193: 2169 | M193: 26.93475
A194: 185 | B194: TATAGLOBAL | C194: 300.5 | D194: 302.73 | E194: 297.32 | F194: 294.13 | G194: 288.72 | H194: 305.92 | I194: 311.33 | J194: 314.52 | K194: 308.15 | L194: 299.55 | M194: 26.21087
A195: 186 | B195: TATAMTRDVR | C195: 80.05 | D195: 80.20 | E195: 78.90 | F195: 77.75 | G195: 76.45 | H195: 81.35 | I195: 82.65 | J195: 83.80 | K195: 81.5 | L195: 79.05 | M195: 51.81567
A196: 187 | B196: TATAMOTORS | C196: 172 | D196: 172.57 | E196: 169.38 | F196: 166.77 | G196: 163.58 | H196: 175.18 | I196: 178.37 | J196: 180.98 | K196: 175.75 | L196: 169.95 | M196: 362.68596
A197: 188 | B197: TATAPOWER | C197: 58.7 | D197: 59.10 | E197: 58.05 | F197: 57.40 | G197: 56.35 | H197: 59.75 | I197: 60.80 | J197: 61.45 | K197: 60.15 | L197: 58.45 | M197: 53.08306
A198: 189 | B198: TATASTEEL | C198: 403.95 | D198: 407.82 | E198: 397.73 | F198: 391.52 | G198: 381.43 | H198: 414.03 | I198: 424.12 | J198: 430.33 | K198: 417.9 | L198: 401.6 | M198: 208.74434
A199: 190 | B199: TECHM | C199: 773.25 | D199: 771.20 | E199: 766.85 | F199: 760.45 | G199: 756.10 | H199: 777.60 | I199: 781.95 | J199: 788.35 | K199: 775.55 | L199: 764.8 | M199: 33.03839
A200: 191 | B200: NIACL | C200: 155.85 | D200: 158.17 | E200: 152.33 | F200: 148.82 | G200: 142.98 | H200: 161.68 | I200: 167.52 | J200: 171.03 | K200: 164 | L200: 154.65 | M200: 3.62664
A201: 192 | B201: RAMCOCEM | C201: 791.05 | D201: 796.57 | E201: 781.58 | F201: 772.12 | G201: 757.13 | H201: 806.03 | I201: 821.02 | J201: 830.48 | K201: 811.55 | L201: 787.1 | M201: 2.37942
A202: 193 | B202: TITAN | C202: 1283.8 | D202: 1289.18 | E202: 1272.12 | F202: 1260.43 | G202: 1243.37 | H202: 1300.87 | I202: 1317.93 | J202: 1329.62 | K202: 1306.25 | L202: 1277.5 | M202: 28.81634
A203: 194 | B203: TORNTPHARM | C203: 1791.65 | D203: 1803.02 | E203: 1776.13 | F203: 1760.62 | G203: 1733.73 | H203: 1818.53 | I203: 1845.42 | J203: 1860.93 | K203: 1829.9 | L203: 1787.5 | M203: 1.21289
A204: 195 | B204: TORNTPOWER | C204: 280.1 | D204: 281.47 | E204: 275.43 | F204: 270.77 | G204: 264.73 | H204: 286.13 | I204: 292.17 | J204: 296.83 | K204: 287.5 | L204: 276.8 | M204: 9.4908
A205: 196 | B205: UPL | C205: 605.65 | D205: 604.47 | E205: 591.18 | F205: 576.72 | G205: 563.43 | H205: 618.93 | I205: 632.22 | J205: 646.68 | K205: 617.75 | L205: 590 | M205: 59.9524
... 30 more rows

Sheet MidCap Intra
L5: Back To Main Page
A6: FOR INTRA DAY TRADING | K6: =Main!B10 -> 2019-11-06
A9: Sr.no | B9: Scrip | C9: CLOSE RATE | D9: Pivot Point | E9: Supports | H9: Resistances
C10: Point | E10: S1 | F10: S2 | G10: S3 | H10: R1 | I10: R2 | J10: R3 | K10: HIGH | L10: LOW | M10: Total Trade Quanity in Lakhs
A11: 1 | B11: 3MINDIA | C11: 22456.5 | D11: 22452.17 | E11: 22254.33 | F11: 22052.17 | G11: 21854.33 | H11: 22654.33 | I11: 22852.17 | J11: 23054.33 | K11: 22650 | L11: 22250 | M11: 0.01862
A12: 2 | B12: ACC | C12: 1514.65 | D12: 1529.68 | E12: 1495.37 | F12: 1476.08 | G12: 1441.77 | H12: 1548.97 | I12: 1583.28 | J12: 1602.57 | K12: 1564 | L12: 1510.4 | M12: 9.14025
A13: 3 | B13: AIAENG | C13: 1718.9 | D13: 1705.33 | E13: 1675.67 | F13: 1632.43 | G13: 1602.77 | H13: 1748.57 | I13: 1778.23 | J13: 1821.47 | K13: 1735 | L13: 1662.1 | M13: 0.07702
A14: 4 | B14: APLAPOLLO | C14: 1497.3 | D14: 1502.95 | E14: 1481.90 | F14: 1466.50 | G14: 1445.45 | H14: 1518.35 | I14: 1539.40 | J14: 1554.80 | K14: 1524 | L14: 1487.55 | M14: 1.12676
A15: 5 | B15: AUBANK | C15: 674.75 | D15: 678.98 | E15: 666.77 | F15: 658.78 | G15: 646.57 | H15: 686.97 | I15: 699.18 | J15: 707.17 | K15: 691.2 | L15: 671 | M15: 1.95701
A16: 6 | B16: AAVAS | C16: 1473.75 | D16: 1492.25 | E16: 1436.50 | F16: 1399.25 | G16: 1343.50 | H16: 1529.50 | I16: 1585.25 | J16: 1622.50 | K16: 1548 | L16: 1455 | M16: 0.43163
A17: 7 | B17: ABBOTINDIA | C17: 11786.55 | D17: 11859.85 | E17: 11631.70 | F17: 11476.85 | G17: 11248.70 | H17: 12014.70 | I17: 12242.85 | J17: 12397.70 | K17: 12088 | L17: 11705 | M17: 0.05344
A18: 8 | B18: ADANIGAS | C18: 146.75 | D18: 147.37 | E18: 145.88 | F18: 145.02 | G18: 143.53 | H18: 148.23 | I18: 149.72 | J18: 150.58 | K18: 148.85 | L18: 146.5 | M18: 4.58786
A19: 9 | B19: ADANIGREEN | C19: 90.7 | D19: 91.47 | E19: 89.33 | F19: 87.97 | G19: 85.83 | H19: 92.83 | I19: 94.97 | J19: 96.33 | K19: 93.6 | L19: 90.1 | M19: 9.63016
A20: 10 | B20: ADANIPORTS | C20: 390 | D20: 389.80 | E20: 386.70 | F20: 383.40 | G20: 380.30 | H20: 393.10 | I20: 396.20 | J20: 399.50 | K20: 392.9 | L20: 386.5 | M20: 13.95899
A21: 11 | B21: ADANIPOWER | C21: 69.9 | D21: 70.57 | E21: 68.68 | F21: 67.47 | G21: 65.58 | H21: 71.78 | I21: 73.67 | J21: 74.88 | K21: 72.45 | L21: 69.35 | M21: 96.65951
A22: 12 | B22: ADANITRANS | C22: 284.25 | D22: 285.92 | E22: 280.03 | F22: 275.82 | G22: 269.93 | H22: 290.13 | I22: 296.02 | J22: 300.23 | K22: 291.8 | L22: 281.7 | M22: 4.22266
A23: 13 | B23: ABCAPITAL | C23: 85.45 | D23: 84.80 | E23: 83.65 | F23: 81.85 | G23: 80.70 | H23: 86.60 | I23: 87.75 | J23: 89.55 | K23: 85.95 | L23: 83 | M23: 34.70582
A24: 14 | B24: ABFRL | C24: 209.6 | D24: 210.12 | E24: 205.28 | F24: 200.97 | G24: 196.13 | H24: 214.43 | I24: 219.27 | J24: 223.58 | K24: 214.95 | L24: 205.8 | M24: 4.75008
A25: 15 | B25: ADVENZYMES | C25: 187.1 | D25: 187.72 | E25: 184.38 | F25: 181.67 | G25: 178.33 | H25: 190.43 | I25: 193.77 | J25: 196.48 | K25: 191.05 | L25: 185 | M25: 2.3332
A26: 16 | B26: AEGISCHEM | C26: 165.75 | D26: 168.40 | E26: 161.90 | F26: 158.05 | G26: 151.55 | H26: 172.25 | I26: 178.75 | J26: 182.60 | K26: 174.9 | L26: 164.55 | M26: 2.32249
A27: 17 | B27: AJANTPHARM | C27: 1002.3 | D27: 1007.65 | E27: 985.65 | F27: 969.00 | G27: 947.00 | H27: 1024.30 | I27: 1046.30 | J27: 1062.95 | K27: 1029.65 | L27: 991 | M27: 1.92532
A28: 18 | B28: AKZOINDIA | C28: 2214.65 | D28: 2199.88 | E28: 2129.77 | F28: 2044.88 | G28: 1974.77 | H28: 2284.77 | I28: 2354.88 | J28: 2439.77 | K28: 2270 | L28: 2115 | M28: 0.36886
A29: 19 | B29: APLLTD | C29: 579.8 | D29: 578.47 | E29: 572.93 | F29: 566.07 | G29: 560.53 | H29: 585.33 | I29: 590.87 | J29: 597.73 | K29: 584 | L29: 571.6 | M29: 2.15675
A30: 20 | B30: ALKEM | C30: 2048.75 | D30: 2038.37 | E30: 2026.73 | F30: 2004.72 | G30: 1993.08 | H30: 2060.38 | I30: 2072.02 | J30: 2094.03 | K30: 2050 | L30: 2016.35 | M30: 0.6495
A31: 21 | B31: ALBK | C31: 27.3 | D31: 27.47 | E31: 26.88 | F31: 26.47 | G31: 25.88 | H31: 27.88 | I31: 28.47 | J31: 28.88 | K31: 28.05 | L31: 27.05 | M31: 9.85986
A32: 22 | B32: ALLCARGO | C32: 106.45 | D32: 107.55 | E32: 104.60 | F32: 102.75 | G32: 99.80 | H32: 109.40 | I32: 112.35 | J32: 114.20 | K32: 110.5 | L32: 105.7 | M32: 1.42282
A33: 23 | B33: AMARAJABAT | C33: 657.35 | D33: 658.77 | E33: 650.63 | F33: 643.92 | G33: 635.78 | H33: 665.48 | I33: 673.62 | J33: 680.33 | K33: 666.9 | L33: 652.05 | M33: 4.35964
A34: 24 | B34: AMBER | C34: 988.85 | D34: 995.88 | E34: 976.97 | F34: 965.08 | G34: 946.17 | H34: 1007.77 | I34: 1026.68 | J34: 1038.57 | K34: 1014.8 | L34: 984 | M34: 0.16884
A35: 25 | B35: AMBUJACEM | C35: 201.55 | D35: 202.13 | E35: 199.92 | F35: 198.28 | G35: 196.07 | H35: 203.77 | I35: 205.98 | J35: 207.62 | K35: 204.35 | L35: 200.5 | M35: 21.90913
A36: 26 | B36: ANDHRABANK | C36: 18.15 | D36: 18.30 | E36: 18.00 | F36: 17.85 | G36: 17.55 | H36: 18.45 | I36: 18.75 | J36: 18.90 | K36: 18.6 | L36: 18.15 | M36: 6.68575
A37: 27 | B37: APOLLOHOSP | C37: 1414.95 | D37: 1424.75 | E37: 1402.70 | F37: 1390.45 | G37: 1368.40 | H37: 1437.00 | I37: 1459.05 | J37: 1471.30 | K37: 1446.8 | L37: 1412.5 | M37: 6.20983
A38: 28 | B38: APOLLOTYRE | C38: 179.85 | D38: 181.82 | E38: 175.98 | F38: 172.12 | G38: 166.28 | H38: 185.68 | I38: 191.52 | J38: 195.38 | K38: 187.65 | L38: 177.95 | M38: 85.95442
A39: 29 | B39: ARVINDFASN | C39: 438 | D39: 439.23 | E39: 435.27 | F39: 432.53 | G39: 428.57 | H39: 441.97 | I39: 445.93 | J39: 448.67 | K39: 443.2 | L39: 436.5 | M39: 0.13289
A40: 30 | B40: ASHOKLEY | C40: 74.95 | D40: 75.43 | E40: 74.22 | F40: 73.48 | G40: 72.27 | H40: 76.17 | I40: 77.38 | J40: 78.12 | K40: 76.65 | L40: 74.7 | M40: 152.2867
A41: 31 | B41: ASHOKA | C41: 95.9 | D41: 97.23 | E41: 93.17 | F41: 90.43 | G41: 86.37 | H41: 99.97 | I41: 104.03 | J41: 106.77 | K41: 101.3 | L41: 94.5 | M41: 5.18626
A42: 32 | B42: ASIANPAINT | C42: 1793.85 | D42: 1786.42 | E42: 1775.03 | F42: 1756.22 | G42: 1744.83 | H42: 1805.23 | I42: 1816.62 | J42: 1835.43 | K42: 1797.8 | L42: 1767.6 | M42: 12.51974
A43: 33 | B43: ASTERDM | C43: 140.8 | D43: 141.18 | E43: 137.62 | F43: 134.43 | G43: 130.87 | H43: 144.37 | I43: 147.93 | J43: 151.12 | K43: 144.75 | L43: 138 | M43: 0.96263
A44: 34 | B44: ASTRAZEN | C44: 2582.95 | D44: 2600.05 | E44: 2543.10 | F44: 2503.25 | G44: 2446.30 | H44: 2639.90 | I44: 2696.85 | J44: 2736.70 | K44: 2657 | L44: 2560.2 | M44: 0.10651
A45: 35 | B45: ASTRAL | C45: 1059.95 | D45: 1071.00 | E45: 1044.05 | F45: 1028.15 | G45: 1001.20 | H45: 1086.90 | I45: 1113.85 | J45: 1129.75 | K45: 1097.95 | L45: 1055.1 | M45: 3.06566
A46: 36 | B46: ATUL | C46: 4254.95 | D46: 4261.93 | E46: 4233.02 | F46: 4211.08 | G46: 4182.17 | H46: 4283.87 | I46: 4312.78 | J46: 4334.72 | K46: 4290.85 | L46: 4240 | M46: 0.05194
A47: 37 | B47: AUROPHARMA | C47: 473.9 | D47: 476.60 | E47: 467.70 | F47: 461.50 | G47: 452.60 | H47: 482.80 | I47: 491.70 | J47: 497.90 | K47: 485.5 | L47: 470.4 | M47: 32.70484
A48: 38 | B48: AVANTIFEED | C48: 462.1 | D48: 461.13 | E48: 456.02 | F48: 449.93 | G48: 444.82 | H48: 467.22 | I48: 472.33 | J48: 478.42 | K48: 466.25 | L48: 455.05 | M48: 2.74561
A49: 39 | B49: DMART | C49: 1976.85 | D49: 1964.85 | E49: 1947.10 | F49: 1917.35 | G49: 1899.60 | H49: 1994.60 | I49: 2012.35 | J49: 2042.10 | K49: 1982.6 | L49: 1935.1 | M49: 3.12316
A50: 40 | B50: AXISBANK | C50: 738.05 | D50: 738.08 | E50: 730.57 | F50: 723.08 | G50: 715.57 | H50: 745.57 | I50: 753.08 | J50: 760.57 | K50: 745.6 | L50: 730.6 | M50: 73.06253
A51: 41 | B51: BASF | C51: 1009.5 | D51: 1015.67 | E51: 991.33 | F51: 973.17 | G51: 948.83 | H51: 1033.83 | I51: 1058.17 | J51: 1076.33 | K51: 1040 | L51: 997.5 | M51: 0.35558
A52: 42 | B52: BEML | C52: 969.2 | D52: 977.72 | E52: 956.48 | F52: 943.77 | G52: 922.53 | H52: 990.43 | I52: 1011.67 | J52: 1024.38 | K52: 998.95 | L52: 965 | M52: 5.16552
A53: 43 | B53: BSE | C53: 536.6 | D53: 540.77 | E53: 530.63 | F53: 524.67 | G53: 514.53 | H53: 546.73 | I53: 556.87 | J53: 562.83 | K53: 550.9 | L53: 534.8 | M53: 1.29666
A54: 44 | B54: BAJAJ-AUTO | C54: 3246.3 | D54: 3231.05 | E54: 3206.40 | F54: 3166.50 | G54: 3141.85 | H54: 3270.95 | I54: 3295.60 | J54: 3335.50 | K54: 3255.7 | L54: 3191.15 | M54: 3.05513
A55: 45 | B55: BAJAJCON | C55: 251.1 | D55: 252.02 | E55: 246.08 | F55: 241.07 | G55: 235.13 | H55: 257.03 | I55: 262.97 | J55: 267.98 | K55: 257.95 | L55: 247 | M55: 1.58545
A56: 46 | B56: BAJAJELEC | C56: 381.9 | D56: 385.52 | E56: 376.38 | F56: 370.87 | G56: 361.73 | H56: 391.03 | I56: 400.17 | J56: 405.68 | K56: 394.65 | L56: 380 | M56: 0.71837
A57: 47 | B57: BAJFINANCE | C57: 4227.8 | D57: 4205.93 | E57: 4156.87 | F57: 4085.93 | G57: 4036.87 | H57: 4276.87 | I57: 4325.93 | J57: 4396.87 | K57: 4255 | L57: 4135 | M57: 29.34652
A58: 48 | B58: BAJAJFINSV | C58: 8845.75 | D58: 8796.30 | E58: 8704.85 | F58: 8563.95 | G58: 8472.50 | H58: 8937.20 | I58: 9028.65 | J58: 9169.55 | K58: 8887.75 | L58: 8655.4 | M58: 5.9842
A59: 49 | B59: BAJAJHLDNG | C59: 3728.05 | D59: 3722.72 | E59: 3700.43 | F59: 3672.82 | G59: 3650.53 | H59: 3750.33 | I59: 3772.62 | J59: 3800.23 | K59: 3745 | L59: 3695.1 | M59: 0.17767
A60: 50 | B60: BALKRISIND | C60: 856.9 | D60: 865.48 | E60: 840.47 | F60: 824.03 | G60: 799.02 | H60: 881.92 | I60: 906.93 | J60: 923.37 | K60: 890.5 | L60: 849.05 | M60: 7.50313
A61: 51 | B61: BALMLAWRIE | C61: 198.6 | D61: 200.17 | E61: 195.93 | F61: 193.27 | G61: 189.03 | H61: 202.83 | I61: 207.07 | J61: 209.73 | K61: 204.4 | L61: 197.5 | M61: 1.34396
A62: 52 | B62: BALRAMCHIN | C62: 158.3 | D62: 159.10 | E62: 155.20 | F62: 152.10 | G62: 148.20 | H62: 162.20 | I62: 166.10 | J62: 169.20 | K62: 163 | L62: 156 | M62: 7.09143
A63: 53 | B63: BANDHANBNK | C63: 587 | D63: 586.63 | E63: 580.37 | F63: 573.73 | G63: 567.47 | H63: 593.27 | I63: 599.53 | J63: 606.17 | K63: 592.9 | L63: 580 | M63: 8.28572
A64: 54 | B64: BANKBARODA | C64: 101.9 | D64: 102.38 | E64: 100.82 | F64: 99.73 | G64: 98.17 | H64: 103.47 | I64: 105.03 | J64: 106.12 | K64: 103.95 | L64: 101.3 | M64: 323.5592
A65: 55 | B65: BANKINDIA | C65: 70.4 | D65: 71.05 | E65: 69.45 | F65: 68.50 | G65: 66.90 | H65: 72.00 | I65: 73.60 | J65: 74.55 | K65: 72.65 | L65: 70.1 | M65: 98.19361
A66: 56 | B66: MAHABANK | C66: 12.6 | D66: 12.75 | E66: 12.35 | F66: 12.10 | G66: 11.70 | H66: 13.00 | I66: 13.40 | J66: 13.65 | K66: 13.15 | L66: 12.5 | M66: 7.30224
A67: 57 | B67: BATAINDIA | C67: 1704.7 | D67: 1715.73 | E67: 1689.57 | F67: 1674.43 | G67: 1648.27 | H67: 1730.87 | I67: 1757.03 | J67: 1772.17 | K67: 1741.9 | L67: 1700.6 | M67: 9.37911
A68: 58 | B68: BAYERCROP | C68: 3670.35 | D68: 3681.43 | E68: 3614.92 | F68: 3559.48 | G68: 3492.97 | H68: 3736.87 | I68: 3803.38 | J68: 3858.82 | K68: 3747.95 | L68: 3626 | M68: 0.04343
A69: 59 | B69: BERGEPAINT | C69: 498.3 | D69: 499.33 | E69: 490.02 | F69: 481.73 | G69: 472.42 | H69: 507.62 | I69: 516.93 | J69: 525.22 | K69: 508.65 | L69: 491.05 | M69: 36.64134
A70: 60 | B70: BDL | C70: 322.5 | D70: 325.38 | E70: 315.67 | F70: 308.83 | G70: 299.12 | H70: 332.22 | I70: 341.93 | J70: 348.77 | K70: 335.1 | L70: 318.55 | M70: 0.49916
A71: 61 | B71: BEL | C71: 112.6 | D71: 113.37 | E71: 110.83 | F71: 109.07 | G71: 106.53 | H71: 115.13 | I71: 117.67 | J71: 119.43 | K71: 115.9 | L71: 111.6 | M71: 209.62769
A72: 62 | B72: BHARATFORG | C72: 464.55 | D72: 469.45 | E72: 452.10 | F72: 439.65 | G72: 422.30 | H72: 481.90 | I72: 499.25 | J72: 511.70 | K72: 486.8 | L72: 457 | M72: 38.6342
A73: 63 | B73: BHEL | C73: 56.05 | D73: 56.65 | E73: 55.30 | F73: 54.55 | G73: 53.20 | H73: 57.40 | I73: 58.75 | J73: 59.50 | K73: 58 | L73: 55.9 | M73: 166.70483
A74: 64 | B74: BPCL | C74: 517.5 | D74: 517.70 | E74: 513.20 | F74: 508.90 | G74: 504.40 | H74: 522.00 | I74: 526.50 | J74: 530.80 | K74: 522.2 | L74: 513.4 | M74: 32.81529
A75: 65 | B75: BHARTIARTL | C75: 383.95 | D75: 381.33 | E75: 377.17 | F75: 370.38 | G75: 366.22 | H75: 388.12 | I75: 392.28 | J75: 399.07 | K75: 385.5 | L75: 374.55 | M75: 66.41731
A76: 66 | B76: INFRATEL | C76: 222.15 | D76: 219.60 | E76: 214.95 | F76: 207.75 | G76: 203.10 | H76: 226.80 | I76: 231.45 | J76: 238.65 | K76: 224.25 | L76: 212.4 | M76: 98.51993
A77: 67 | B77: BIOCON | C77: 256.25 | D77: 261.03 | E77: 249.47 | F77: 242.68 | G77: 231.12 | H77: 267.82 | I77: 279.38 | J77: 286.17 | K77: 272.6 | L77: 254.25 | M77: 90.80951
A78: 68 | B78: BIRLACORPN | C78: 624.1 | D78: 620.37 | E78: 608.73 | F78: 593.37 | G78: 581.73 | H78: 635.73 | I78: 647.37 | J78: 662.73 | K78: 632 | L78: 605 | M78: 2.69843
A79: 69 | B79: BSOFT | C79: 65.4 | D79: 66.03 | E79: 64.62 | F79: 63.83 | G79: 62.42 | H79: 66.82 | I79: 68.23 | J79: 69.02 | K79: 67.45 | L79: 65.25 | M79: 1.20515
A80: 70 | B80: BLISSGVS | C80: 144.4 | D80: 144.95 | E80: 141.90 | F80: 139.40 | G80: 136.35 | H80: 147.45 | I80: 150.50 | J80: 153.00 | K80: 148 | L80: 142.45 | M80: 1.09244
A81: 71 | B81: BLUEDART | C81: 2328.35 | D81: 2322.78 | E81: 2270.57 | F81: 2212.78 | G81: 2160.57 | H81: 2380.57 | I81: 2432.78 | J81: 2490.57 | K81: 2375 | L81: 2265 | M81: 0.0651
A82: 72 | B82: BLUESTARCO | C82: 786.3 | D82: 789.82 | E82: 771.58 | F82: 756.87 | G82: 738.63 | H82: 804.53 | I82: 822.77 | J82: 837.48 | K82: 808.05 | L82: 775.1 | M82: 0.48828
A83: 73 | B83: BBTC | C83: 1201.4 | D83: 1207.45 | E83: 1185.95 | F83: 1170.50 | G83: 1149.00 | H83: 1222.90 | I83: 1244.40 | J83: 1259.85 | K83: 1228.95 | L83: 1192 | M83: 0.89821
A84: 74 | B84: BOMDYEING | C84: 83.15 | D84: 83.88 | E84: 81.77 | F84: 80.38 | G84: 78.27 | H84: 85.27 | I84: 87.38 | J84: 88.77 | K84: 86 | L84: 82.5 | M84: 17.24466
A85: 75 | B85: BOSCHLTD | C85: 15681.05 | D85: 15652.50 | E85: 15560.90 | F85: 15440.75 | G85: 15349.15 | H85: 15772.65 | I85: 15864.25 | J85: 15984.40 | K85: 15744.1 | L85: 15532.35 | M85: 0.21492
A86: 76 | B86: BRIGADE | C86: 205.55 | D86: 204.92 | E86: 200.83 | F86: 196.12 | G86: 192.03 | H86: 209.63 | I86: 213.72 | J86: 218.43 | K86: 209 | L86: 200.2 | M86: 0.48399
A87: 77 | B87: BRITANNIA | C87: 3231.75 | D87: 3238.02 | E87: 3196.03 | F87: 3160.32 | G87: 3118.33 | H87: 3273.73 | I87: 3315.72 | J87: 3351.43 | K87: 3280 | L87: 3202.3 | M87: 3.30794
A88: 78 | B88: CARERATING | C88: 527.95 | D88: 534.63 | E88: 514.32 | F88: 500.68 | G88: 480.37 | H88: 548.27 | I88: 568.58 | J88: 582.22 | K88: 554.95 | L88: 521 | M88: 3.27413
A89: 79 | B89: CCL | C89: 205.05 | D89: 208.02 | E89: 200.08 | F89: 195.12 | G89: 187.18 | H89: 212.98 | I89: 220.92 | J89: 225.88 | K89: 215.95 | L89: 203.05 | M89: 1.02738
A90: 80 | B90: CESC | C90: 803.3 | D90: 815.77 | E90: 785.53 | F90: 767.77 | G90: 737.53 | H90: 833.53 | I90: 863.77 | J90: 881.53 | K90: 846 | L90: 798 | M90: 13.57799
A91: 81 | B91: CGPOWER | C91: 15.25 | D91: 15.13 | E91: 15.02 | F91: 14.78 | G91: 14.67 | H91: 15.37 | I91: 15.48 | J91: 15.72 | K91: 15.25 | L91: 14.9 | M91: 23.717
A92: 82 | B92: CRISIL | C92: 1498.7 | D92: 1502.52 | E92: 1478.03 | F92: 1457.37 | G92: 1432.88 | H92: 1523.18 | I92: 1547.67 | J92: 1568.33 | K92: 1527 | L92: 1481.85 | M92: 0.17118
A93: 83 | B93: CADILAHC | C93: 239.6 | D93: 240.87 | E93: 237.23 | F93: 234.87 | G93: 231.23 | H93: 243.23 | I93: 246.87 | J93: 249.23 | K93: 244.5 | L93: 238.5 | M93: 13.5679
A94: 84 | B94: CANFINHOME | C94: 417.35 | D94: 420.75 | E94: 407.80 | F94: 398.25 | G94: 385.30 | H94: 430.30 | I94: 443.25 | J94: 452.80 | K94: 433.7 | L94: 411.2 | M94: 6.4438
A95: 85 | B95: CANBK | C95: 206.8 | D95: 208.57 | E95: 203.48 | F95: 200.17 | G95: 195.08 | H95: 211.88 | I95: 216.97 | J95: 220.28 | K95: 213.65 | L95: 205.25 | M95: 103.18146
A96: 86 | B96: CAPLIPOINT | C96: 386.95 | D96: 395.32 | E96: 376.63 | F96: 366.32 | G96: 347.63 | H96: 405.63 | I96: 424.32 | J96: 434.63 | K96: 414 | L96: 385 | M96: 0.70698
A97: 87 | B97: CGCL | C97: 224.7 | D97: 223.95 | E97: 218.95 | F97: 213.20 | G97: 208.20 | H97: 229.70 | I97: 234.70 | J97: 240.45 | K97: 228.95 | L97: 218.2 | M97: 4.38872
A98: 88 | B98: CARBORUNIV | C98: 312.05 | D98: 315.25 | E98: 305.60 | F98: 299.15 | G98: 289.50 | H98: 321.70 | I98: 331.35 | J98: 337.80 | K98: 324.9 | L98: 308.8 | M98: 1.94757
A99: 89 | B99: CASTROLIND | C99: 150.75 | D99: 150.42 | E99: 148.58 | F99: 146.42 | G99: 144.58 | H99: 152.58 | I99: 154.42 | J99: 156.58 | K99: 152.25 | L99: 148.25 | M99: 10.34058
A100: 90 | B100: CEATLTD | C100: 1003.65 | D100: 1001.23 | E100: 992.47 | F100: 981.28 | G100: 972.52 | H100: 1012.42 | I100: 1021.18 | J100: 1032.37 | K100: 1010 | L100: 990.05 | M100: 1.32517
A101: 91 | B101: CENTRALBK | C101: 22.2 | D101: 22.57 | E101: 21.73 | F101: 21.27 | G101: 20.43 | H101: 23.03 | I101: 23.87 | J101: 24.33 | K101: 23.4 | L101: 22.1 | M101: 9.87865
A102: 92 | B102: CDSL | C102: 230.65 | D102: 232.88 | E102: 226.77 | F102: 222.88 | G102: 216.77 | H102: 236.77 | I102: 242.88 | J102: 246.77 | K102: 239 | L102: 229 | M102: 3.02054
A103: 93 | B103: CENTURYPLY | C103: 165.65 | D103: 169.13 | E103: 159.77 | F103: 153.88 | G103: 144.52 | H103: 175.02 | I103: 184.38 | J103: 190.27 | K103: 178.5 | L103: 163.25 | M103: 5.60333
A104: 94 | B104: CERA | C104: 2630.65 | D104: 2653.48 | E104: 2580.17 | F104: 2529.68 | G104: 2456.37 | H104: 2703.97 | I104: 2777.28 | J104: 2827.77 | K104: 2726.8 | L104: 2603 | M104: 0.13384
A105: 95 | B105: CHALET | C105: 320.15 | D105: 324.72 | E105: 309.43 | F105: 298.72 | G105: 283.43 | H105: 335.43 | I105: 350.72 | J105: 361.43 | K105: 340 | L105: 314 | M105: 4.70518
A106: 96 | B106: CHAMBLFERT | C106: 164.2 | D106: 166.25 | E106: 160.70 | F106: 157.20 | G106: 151.65 | H106: 169.75 | I106: 175.30 | J106: 178.80 | K106: 171.8 | L106: 162.75 | M106: 1.95121
A107: 97 | B107: CHENNPETRO | C107: 156.35 | D107: 157.15 | E107: 154.30 | F107: 152.25 | G107: 149.40 | H107: 159.20 | I107: 162.05 | J107: 164.10 | K107: 160 | L107: 155.1 | M107: 0.99328
A108: 98 | B108: CHOLAHLDNG | C108: 474.4 | D108: 474.02 | E108: 469.58 | F108: 464.77 | G108: 460.33 | H108: 478.83 | I108: 483.27 | J108: 488.08 | K108: 478.45 | L108: 469.2 | M108: 0.33662
A109: 99 | B109: CHOLAFIN | C109: 316.6 | D109: 316.67 | E109: 313.48 | F109: 310.37 | G109: 307.18 | H109: 319.78 | I109: 322.97 | J109: 326.08 | K109: 319.85 | L109: 313.55 | M109: 19.76356
A110: 100 | B110: CIPLA | C110: 467.85 | D110: 469.50 | E110: 463.50 | F110: 459.15 | G110: 453.15 | H110: 473.85 | I110: 479.85 | J110: 484.20 | K110: 475.5 | L110: 465.15 | M110: 13.91429
A111: 101 | B111: CUB | C111: 206.8 | D111: 208.22 | E111: 202.93 | F111: 199.07 | G111: 193.78 | H111: 212.08 | I111: 217.37 | J111: 221.23 | K111: 213.5 | L111: 204.35 | M111: 12.45138
A112: 102 | B112: COALINDIA | C112: 211.15 | D112: 212.77 | E112: 207.98 | F112: 204.82 | G112: 200.03 | H112: 215.93 | I112: 220.72 | J112: 223.88 | K112: 217.55 | L112: 209.6 | M112: 126.81517
A113: 103 | B113: COCHINSHIP | C113: 405.85 | D113: 405.68 | E113: 391.37 | F113: 376.88 | G113: 362.57 | H113: 420.17 | I113: 434.48 | J113: 448.97 | K113: 420 | L113: 391.2 | M113: 3.00044
A114: 104 | B114: COFFEEDAY | C114: 35.3 | D114: 35.30 | E114: 35.30 | F114: 35.30 | G114: 35.30 | H114: 35.30 | I114: 35.30 | J114: 35.30 | K114: 35.3 | L114: 35.3 | M114: 0.49364
A115: 105 | B115: COLPAL | C115: 1522.95 | D115: 1528.40 | E115: 1507.70 | F115: 1492.45 | G115: 1471.75 | H115: 1543.65 | I115: 1564.35 | J115: 1579.60 | K115: 1549.1 | L115: 1513.15 | M115: 6.4711
A116: 106 | B116: CONCOR | C116: 576.85 | D116: 578.57 | E116: 570.63 | F116: 564.42 | G116: 556.48 | H116: 584.78 | I116: 592.72 | J116: 598.93 | K116: 586.5 | L116: 572.35 | M116: 8.11208
A117: 107 | B117: COROMANDEL | C117: 460.5 | D117: 463.85 | E117: 453.70 | F117: 446.90 | G117: 436.75 | H117: 470.65 | I117: 480.80 | J117: 487.60 | K117: 474 | L117: 457.05 | M117: 0.76355
A118: 108 | B118: CORPBANK | C118: 17.25 | D118: 17.40 | E118: 17.00 | F118: 16.75 | G118: 16.35 | H118: 17.65 | I118: 18.05 | J118: 18.30 | K118: 17.8 | L118: 17.15 | M118: 4.02272
A119: 109 | B119: COX&KINGS | C119: 1.6 | D119: 1.60 | E119: 1.60 | F119: 1.60 | G119: 1.60 | H119: 1.60 | I119: 1.60 | J119: 1.60 | K119: 1.6 | L119: 1.6 | M119: 22.35006
A120: 110 | B120: CREDITACC | C120: 700.55 | D120: 696.87 | E120: 679.73 | F120: 658.92 | G120: 641.78 | H120: 717.68 | I120: 734.82 | J120: 755.63 | K120: 714 | L120: 676.05 | M120: 2.97296
A121: 111 | B121: CROMPTON | C121: 249.15 | D121: 250.88 | E121: 246.32 | F121: 243.48 | G121: 238.92 | H121: 253.72 | I121: 258.28 | J121: 261.12 | K121: 255.45 | L121: 248.05 | M121: 11.19164
A122: 112 | B122: CUMMINSIND | C122: 546.5 | D122: 545.93 | E122: 541.87 | F122: 537.23 | G122: 533.17 | H122: 550.57 | I122: 554.63 | J122: 559.27 | K122: 550 | L122: 541.3 | M122: 5.74136
A123: 113 | B123: CYIENT | C123: 401.15 | D123: 405.42 | E123: 395.98 | F123: 390.82 | G123: 381.38 | H123: 410.58 | I123: 420.02 | J123: 425.18 | K123: 414.85 | L123: 400.25 | M123: 1.12323
A124: 114 | B124: DBCORP | C124: 146.45 | D124: 146.88 | E124: 145.07 | F124: 143.68 | G124: 141.87 | H124: 148.27 | I124: 150.08 | J124: 151.47 | K124: 148.7 | L124: 145.5 | M124: 0.35589
A125: 115 | B125: DCBBANK | C125: 182.7 | D125: 183.07 | E125: 180.38 | F125: 178.07 | G125: 175.38 | H125: 185.38 | I125: 188.07 | J125: 190.38 | K125: 185.75 | L125: 180.75 | M125: 8.96772
A126: 116 | B126: DCMSHRIRAM | C126: 362.35 | D126: 365.63 | E126: 356.87 | F126: 351.38 | G126: 342.62 | H126: 371.12 | I126: 379.88 | J126: 385.37 | K126: 374.4 | L126: 360.15 | M126: 0.61232
A127: 117 | B127: DLF | C127: 184.35 | D127: 184.60 | E127: 181.80 | F127: 179.25 | G127: 176.45 | H127: 187.15 | I127: 189.95 | J127: 192.50 | K127: 187.4 | L127: 182.05 | M127: 78.47108
A128: 118 | B128: DABUR | C128: 481.35 | D128: 473.32 | E128: 463.23 | F128: 445.12 | G128: 435.03 | H128: 491.43 | I128: 501.52 | J128: 519.63 | K128: 483.4 | L128: 455.2 | M128: 88.58287
A129: 119 | B129: DALBHARAT | C129: 823.35 | D129: 822.62 | E129: 801.23 | F129: 779.12 | G129: 757.73 | H129: 844.73 | I129: 866.12 | J129: 888.23 | K129: 844 | L129: 800.5 | M129: 44.37139
A130: 120 | B130: DEEPAKNTR | C130: 359.8 | D130: 352.93 | E130: 343.27 | F130: 326.73 | G130: 317.07 | H130: 369.47 | I130: 379.13 | J130: 395.67 | K130: 362.6 | L130: 336.4 | M130: 13.76398
A131: 121 | B131: DELTACORP | C131: 194.2 | D131: 194.32 | E131: 191.13 | F131: 188.07 | G131: 184.88 | H131: 197.38 | I131: 200.57 | J131: 203.63 | K131: 197.5 | L131: 191.25 | M131: 6.27397
A132: 122 | B132: DEN | C132: 45.7 | D132: 45.38 | E132: 43.82 | F132: 41.93 | G132: 40.37 | H132: 47.27 | I132: 48.83 | J132: 50.72 | K132: 46.95 | L132: 43.5 | M132: 0.33006
A133: 123 | B133: DHFL | C133: 20.15 | D133: 19.97 | E133: 19.78 | F133: 19.42 | G133: 19.23 | H133: 20.33 | I133: 20.52 | J133: 20.88 | K133: 20.15 | L133: 19.6 | M133: 10.94669
A134: 124 | B134: DBL | C134: 425.2 | D134: 431.07 | E134: 416.18 | F134: 407.17 | G134: 392.28 | H134: 440.08 | I134: 454.97 | J134: 463.98 | K134: 445.95 | L134: 422.05 | M134: 2.3121
A135: 125 | B135: DISHTV | C135: 14.5 | D135: 14.73 | E135: 14.02 | F135: 13.53 | G135: 12.82 | H135: 15.22 | I135: 15.93 | J135: 16.42 | K135: 15.45 | L135: 14.25 | M135: 587.90224
A136: 126 | B136: DCAL | C136: 122.85 | D136: 122.80 | E136: 118.15 | F136: 113.45 | G136: 108.80 | H136: 127.50 | I136: 132.15 | J136: 136.85 | K136: 127.45 | L136: 118.1 | M136: 24.65303
A137: 127 | B137: DIVISLAB | C137: 1687.45 | D137: 1700.83 | E137: 1663.42 | F137: 1639.38 | G137: 1601.97 | H137: 1724.87 | I137: 1762.28 | J137: 1786.32 | K137: 1738.25 | L137: 1676.8 | M137: 5.87695
A138: 128 | B138: DIXON | C138: 2952.5 | D138: 2975.27 | E138: 2912.58 | F138: 2872.67 | G138: 2809.98 | H138: 3015.18 | I138: 3077.87 | J138: 3117.78 | K138: 3037.95 | L138: 2935.35 | M138: 0.08051
A139: 129 | B139: LALPATHLAB | C139: 1464.35 | D139: 1470.37 | E139: 1442.93 | F139: 1421.52 | G139: 1394.08 | H139: 1491.78 | I139: 1519.22 | J139: 1540.63 | K139: 1497.8 | L139: 1448.95 | M139: 1.30192
A140: 130 | B140: DRREDDY | C140: 2815.7 | D140: 2819.07 | E140: 2788.63 | F140: 2761.57 | G140: 2731.13 | H140: 2846.13 | I140: 2876.57 | J140: 2903.63 | K140: 2849.5 | L140: 2792 | M140: 8.43662
A141: 131 | B141: EIDPARRY | C141: 165.4 | D141: 166.90 | E141: 163.55 | F141: 161.70 | G141: 158.35 | H141: 168.75 | I141: 172.10 | J141: 173.95 | K141: 170.25 | L141: 165.05 | M141: 1.27394
A142: 132 | B142: EIHOTEL | C142: 160.8 | D142: 161.93 | E142: 158.37 | F142: 155.93 | G142: 152.37 | H142: 164.37 | I142: 167.93 | J142: 170.37 | K142: 165.5 | L142: 159.5 | M142: 7.141
A143: 133 | B143: EDELWEISS | C143: 95.85 | D143: 95.95 | E143: 94.50 | F143: 93.15 | G143: 91.70 | H143: 97.30 | I143: 98.75 | J143: 100.10 | K143: 97.4 | L143: 94.6 | M143: 20.00048
A144: 134 | B144: EICHERMOT | C144: 21287.15 | D144: 21488.32 | E144: 21029.33 | F144: 20771.52 | G144: 20312.53 | H144: 21746.13 | I144: 22205.12 | J144: 22462.93 | K144: 21947.3 | L144: 21230.5 | M144: 1.49412
A145: 135 | B145: ELGIEQUIP | C145: 276.25 | D145: 275.87 | E145: 273.78 | F145: 271.32 | G145: 269.23 | H145: 278.33 | I145: 280.42 | J145: 282.88 | K145: 277.95 | L145: 273.4 | M145: 0.87361
A146: 136 | B146: EMAMILTD | C146: 328.55 | D146: 328.97 | E146: 325.13 | F146: 321.72 | G146: 317.88 | H146: 332.38 | I146: 336.22 | J146: 339.63 | K146: 332.8 | L146: 325.55 | M146: 2.47536
A147: 137 | B147: ENDURANCE | C147: 1105.45 | D147: 1110.18 | E147: 1095.37 | F147: 1085.28 | G147: 1070.47 | H147: 1120.27 | I147: 1135.08 | J147: 1145.17 | K147: 1125 | L147: 1100.1 | M147: 0.08187
A148: 138 | B148: ENGINERSIN | C148: 115.3 | D148: 115.87 | E148: 112.23 | F148: 109.17 | G148: 105.53 | H148: 118.93 | I148: 122.57 | J148: 125.63 | K148: 119.5 | L148: 112.8 | M148: 21.20549
A149: 139 | B149: EQUITAS | C149: 98.55 | D149: 98.85 | E149: 97.70 | F149: 96.85 | G149: 95.70 | H149: 99.70 | I149: 100.85 | J149: 101.70 | K149: 100 | L149: 98 | M149: 13.48032
A150: 140 | B150: ERIS | C150: 411.65 | D150: 415.45 | E150: 406.50 | F150: 401.35 | G150: 392.40 | H150: 420.60 | I150: 429.55 | J150: 434.70 | K150: 424.4 | L150: 410.3 | M150: 0.19872
A151: 141 | B151: ESCORTS | C151: 652.55 | D151: 654.95 | E151: 644.10 | F151: 635.65 | G151: 624.80 | H151: 663.40 | I151: 674.25 | J151: 682.70 | K151: 665.8 | L151: 646.5 | M151: 27.96804
A152: 142 | B152: ESSELPACK | C152: 114.55 | D152: 114.42 | E152: 112.33 | F152: 110.12 | G152: 108.03 | H152: 116.63 | I152: 118.72 | J152: 120.93 | K152: 116.5 | L152: 112.2 | M152: 0.38554
A153: 143 | B153: EXIDEIND | C153: 188.7 | D153: 188.85 | E153: 185.55 | F153: 182.40 | G153: 179.10 | H153: 192.00 | I153: 195.30 | J153: 198.45 | K153: 192.15 | L153: 185.7 | M153: 23.66978
A154: 144 | B154: FDC | C154: 174.9 | D154: 175.82 | E154: 172.58 | F154: 170.27 | G154: 167.03 | H154: 178.13 | I154: 181.37 | J154: 183.68 | K154: 179.05 | L154: 173.5 | M154: 0.35376
A155: 145 | B155: FEDERALBNK | C155: 84.4 | D155: 85.80 | E155: 82.75 | F155: 81.10 | G155: 78.05 | H155: 87.45 | I155: 90.50 | J155: 92.15 | K155: 88.85 | L155: 84.15 | M155: 190.85828
A156: 146 | B156: FMGOETZE | C156: 545.15 | D156: 545.72 | E156: 540.98 | F156: 536.82 | G156: 532.08 | H156: 549.88 | I156: 554.62 | J156: 558.78 | K156: 550.45 | L156: 541.55 | M156: 0.02276
A157: 147 | B157: FINEORG | C157: 1917.75 | D157: 1912.18 | E157: 1886.57 | F157: 1855.38 | G157: 1829.77 | H157: 1943.37 | I157: 1968.98 | J157: 2000.17 | K157: 1937.8 | L157: 1881 | M157: 0.05172
A158: 148 | B158: FINCABLES | C158: 382.9 | D158: 384.07 | E158: 379.18 | F158: 375.47 | G158: 370.58 | H158: 387.78 | I158: 392.67 | J158: 396.38 | K158: 388.95 | L158: 380.35 | M158: 0.25443
A159: 149 | B159: FINPIPE | C159: 585.6 | D159: 587.22 | E159: 578.98 | F159: 572.37 | G159: 564.13 | H159: 593.83 | I159: 602.07 | J159: 608.68 | K159: 595.45 | L159: 580.6 | M159: 0.1366
A160: 150 | B160: FSL | C160: 49.2 | D160: 49.60 | E160: 48.60 | F160: 48.00 | G160: 47.00 | H160: 50.20 | I160: 51.20 | J160: 51.80 | K160: 50.6 | L160: 49 | M160: 11.4729
A161: 151 | B161: FORTIS | C161: 145.25 | D161: 146.63 | E161: 141.87 | F161: 138.48 | G161: 133.72 | H161: 150.02 | I161: 154.78 | J161: 158.17 | K161: 151.4 | L161: 143.25 | M161: 67.0405
A162: 152 | B162: FCONSUMER | C162: 26.65 | D162: 26.73 | E162: 25.67 | F162: 24.68 | G162: 23.62 | H162: 27.72 | I162: 28.78 | J162: 29.77 | K162: 27.8 | L162: 25.75 | M162: 16.63977
A163: 153 | B163: FLFL | C163: 399.5 | D163: 403.45 | E163: 393.40 | F163: 387.30 | G163: 377.25 | H163: 409.55 | I163: 419.60 | J163: 425.70 | K163: 413.5 | L163: 397.35 | M163: 0.10176
A164: 154 | B164: FRETAIL | C164: 375 | D164: 375.90 | E164: 372.10 | F164: 369.20 | G164: 365.40 | H164: 378.80 | I164: 382.60 | J164: 385.50 | K164: 379.7 | L164: 373 | M164: 4.32776
A165: 155 | B165: GAIL | C165: 137.4 | D165: 137.02 | E165: 135.53 | F165: 133.67 | G165: 132.18 | H165: 138.88 | I165: 140.37 | J165: 142.23 | K165: 138.5 | L165: 135.15 | M165: 75.19917
A166: 156 | B166: GEPIL | C166: 710.15 | D166: 704.65 | E166: 694.05 | F166: 677.95 | G166: 667.35 | H166: 720.75 | I166: 731.35 | J166: 747.45 | K166: 715.25 | L166: 688.55 | M166: 0.41204
A167: 157 | B167: GET&D | C167: 193.5 | D167: 196.50 | E167: 190.00 | F167: 186.50 | G167: 180.00 | H167: 200.00 | I167: 206.50 | J167: 210.00 | K167: 203 | L167: 193 | M167: 0.20999
A168: 158 | B168: GHCL | C168: 210.75 | D168: 211.70 | E168: 208.80 | F168: 206.85 | G168: 203.95 | H168: 213.65 | I168: 216.55 | J168: 218.50 | K168: 214.6 | L168: 209.75 | M168: 0.50289
A169: 159 | B169: GMRINFRA | C169: 20.65 | D169: 20.65 | E169: 20.25 | F169: 19.85 | G169: 19.45 | H169: 21.05 | I169: 21.45 | J169: 21.85 | K169: 21.05 | L169: 20.25 | M169: 67.96037
A170: 160 | B170: GALAXYSURF | C170: 1476.4 | D170: 1479.92 | E170: 1451.48 | F170: 1426.57 | G170: 1398.13 | H170: 1504.83 | I170: 1533.27 | J170: 1558.18 | K170: 1508.35 | L170: 1455 | M170: 0.06892
A171: 161 | B171: GARFIBRES | C171: 1202.8 | D171: 1205.42 | E171: 1193.68 | F171: 1184.57 | G171: 1172.83 | H171: 1214.53 | I171: 1226.27 | J171: 1235.38 | K171: 1217.15 | L171: 1196.3 | M171: 0.03942
A172: 162 | B172: GAYAPROJ | C172: 114.25 | D172: 116.02 | E172: 109.78 | F172: 105.32 | G172: 99.08 | H172: 120.48 | I172: 126.72 | J172: 131.18 | K172: 122.25 | L172: 111.55 | M172: 0.74534
A173: 163 | B173: GICRE | C173: 280.2 | D173: 285.10 | E173: 271.15 | F173: 262.10 | G173: 248.15 | H173: 294.15 | I173: 308.10 | J173: 317.15 | K173: 299.05 | L173: 276.05 | M173: 5.21135
A174: 164 | B174: GILLETTE | C174: 7900.2 | D174: 7915.38 | E174: 7798.82 | F174: 7697.43 | G174: 7580.87 | H174: 8016.77 | I174: 8133.33 | J174: 8234.72 | K174: 8031.95 | L174: 7814 | M174: 0.03289
A175: 165 | B175: GLAXO | C175: 1621.95 | D175: 1630.97 | E175: 1592.18 | F175: 1562.42 | G175: 1523.63 | H175: 1660.73 | I175: 1699.52 | J175: 1729.28 | K175: 1669.75 | L175: 1601.2 | M175: 0.61682
A176: 166 | B176: GLENMARK | C176: 317.1 | D176: 317.85 | E176: 313.90 | F176: 310.70 | G176: 306.75 | H176: 321.05 | I176: 325.00 | J176: 328.20 | K176: 321.8 | L176: 314.65 | M176: 11.61397
A177: 167 | B177: GODFRYPHLP | C177: 1100.95 | D177: 1104.45 | E177: 1088.90 | F177: 1076.85 | G177: 1061.30 | H177: 1116.50 | I177: 1132.05 | J177: 1144.10 | K177: 1120 | L177: 1092.4 | M177: 0.28749
A178: 168 | B178: GODREJAGRO | C178: 500.65 | D178: 504.38 | E178: 489.77 | F178: 478.88 | G178: 464.27 | H178: 515.27 | I178: 529.88 | J178: 540.77 | K178: 519 | L178: 493.5 | M178: 1.1949
A179: 169 | B179: GODREJCP | C179: 721.5 | D179: 718.37 | E179: 711.73 | F179: 701.97 | G179: 695.33 | H179: 728.13 | I179: 734.77 | J179: 744.53 | K179: 725 | L179: 708.6 | M179: 7.61475
A180: 170 | B180: GODREJIND | C180: 421.95 | D180: 423.35 | E180: 418.60 | F180: 415.25 | G180: 410.50 | H180: 426.70 | I180: 431.45 | J180: 434.80 | K180: 428.1 | L180: 420 | M180: 0.66307
A181: 171 | B181: GODREJPROP | C181: 955.15 | D181: 962.55 | E181: 940.80 | F181: 926.45 | G181: 904.70 | H181: 976.90 | I181: 998.65 | J181: 1013.00 | K181: 984.3 | L181: 948.2 | M181: 6.74484
A182: 172 | B182: GRANULES | C182: 119.65 | D182: 120.73 | E182: 117.72 | F182: 115.78 | G182: 112.77 | H182: 122.67 | I182: 125.68 | J182: 127.62 | K182: 123.75 | L182: 118.8 | M182: 7.62432
A183: 173 | B183: GRAPHITE | C183: 295.75 | D183: 298.43 | E183: 290.97 | F183: 286.18 | G183: 278.72 | H183: 303.22 | I183: 310.68 | J183: 315.47 | K183: 305.9 | L183: 293.65 | M183: 16.57068
A184: 174 | B184: GRASIM | C184: 768.6 | D184: 774.38 | E184: 753.77 | F184: 738.93 | G184: 718.32 | H184: 789.22 | I184: 809.83 | J184: 824.67 | K184: 795 | L184: 759.55 | M184: 27.42795
A185: 175 | B185: GESHIP | C185: 292.85 | D185: 294.30 | E185: 290.10 | F185: 287.35 | G185: 283.15 | H185: 297.05 | I185: 301.25 | J185: 304.00 | K185: 298.5 | L185: 291.55 | M185: 0.54712
A186: 176 | B186: GREAVESCOT | C186: 136.45 | D186: 137.33 | E186: 134.67 | F186: 132.88 | G186: 130.22 | H186: 139.12 | I186: 141.78 | J186: 143.57 | K186: 140 | L186: 135.55 | M186: 0.94649
A187: 177 | B187: GRINDWELL | C187: 605 | D187: 604.53 | E187: 597.37 | F187: 589.73 | G187: 582.57 | H187: 612.17 | I187: 619.33 | J187: 626.97 | K187: 611.7 | L187: 596.9 | M187: 0.35721
A188: 178 | B188: GUJALKALI | C188: 465 | D188: 467.17 | E188: 461.33 | F188: 457.67 | G188: 451.83 | H188: 470.83 | I188: 476.67 | J188: 480.33 | K188: 473 | L188: 463.5 | M188: 0.16604
A189: 179 | B189: GUJGASLTD | C189: 205.15 | D189: 207.07 | E189: 201.13 | F189: 197.12 | G189: 191.18 | H189: 211.08 | I189: 217.02 | J189: 221.03 | K189: 213 | L189: 203.05 | M189: 18.44098
A190: 180 | B190: GMDCLTD | C190: 63.2 | D190: 63.82 | E190: 62.48 | F190: 61.77 | G190: 60.43 | H190: 64.53 | I190: 65.87 | J190: 66.58 | K190: 65.15 | L190: 63.1 | M190: 1.22291
A191: 181 | B191: GNFC | C191: 211.5 | D191: 213.87 | E191: 207.83 | F191: 204.17 | G191: 198.13 | H191: 217.53 | I191: 223.57 | J191: 227.23 | K191: 219.9 | L191: 210.2 | M191: 3.06277
A192: 182 | B192: GPPL | C192: 90.85 | D192: 90.05 | E192: 88.35 | F192: 85.85 | G192: 84.15 | H192: 92.55 | I192: 94.25 | J192: 96.75 | K192: 91.75 | L192: 87.55 | M192: 3.36657
A193: 183 | B193: GSFC | C193: 79.75 | D193: 80.33 | E193: 78.77 | F193: 77.78 | G193: 76.22 | H193: 81.32 | I193: 82.88 | J193: 83.87 | K193: 81.9 | L193: 79.35 | M193: 2.53157
A194: 184 | B194: GSPL | C194: 221.3 | D194: 221.17 | E194: 219.38 | F194: 217.47 | G194: 215.68 | H194: 223.08 | I194: 224.87 | J194: 226.78 | K194: 222.95 | L194: 219.25 | M194: 4.87249
A195: 185 | B195: GULFOILLUB | C195: 872.4 | D195: 882.05 | E195: 859.25 | F195: 846.10 | G195: 823.30 | H195: 895.20 | I195: 918.00 | J195: 931.15 | K195: 904.85 | L195: 868.9 | M195: 0.31708
A196: 186 | B196: HEG | C196: 1012.95 | D196: 1022.17 | E196: 998.33 | F196: 983.72 | G196: 959.88 | H196: 1036.78 | I196: 1060.62 | J196: 1075.23 | K196: 1046 | L196: 1007.55 | M196: 4.26348
A197: 187 | B197: HCLTECH | C197: 1158.7 | D197: 1154.22 | E197: 1147.83 | F197: 1136.97 | G197: 1130.58 | H197: 1165.08 | I197: 1171.47 | J197: 1182.33 | K197: 1160.6 | L197: 1143.35 | M197: 14.3905
A198: 188 | B198: HDFCAMC | C198: 3008.3 | D198: 3005.62 | E198: 2938.73 | F198: 2869.17 | G198: 2802.28 | H198: 3075.18 | I198: 3142.07 | J198: 3211.63 | K198: 3072.5 | L198: 2936.05 | M198: 12.21743
A199: 189 | B199: HDFCBANK | C199: 1239.5 | D199: 1237.78 | E199: 1230.77 | F199: 1222.03 | G199: 1215.02 | H199: 1246.52 | I199: 1253.53 | J199: 1262.27 | K199: 1244.8 | L199: 1229.05 | M199: 61.83905
A200: 190 | B200: HDFCLIFE | C200: 583.65 | D200: 588.60 | E200: 575.20 | F200: 566.75 | G200: 553.35 | H200: 597.05 | I200: 610.45 | J200: 618.90 | K200: 602 | L200: 580.15 | M200: 61.70402
A201: 191 | B201: HATHWAY | C201: 21.75 | D201: 21.68 | E201: 21.07 | F201: 20.38 | G201: 19.77 | H201: 22.37 | I201: 22.98 | J201: 23.67 | K201: 22.3 | L201: 21 | M201: 3.02593
A202: 192 | B202: HATSUN | C202: 599.4 | D202: 599.47 | E202: 593.93 | F202: 588.47 | G202: 582.93 | H202: 604.93 | I202: 610.47 | J202: 615.93 | K202: 605 | L202: 594 | M202: 0.02099
A203: 193 | B203: HAVELLS | C203: 687.05 | D203: 688.02 | E203: 679.13 | F203: 671.22 | G203: 662.33 | H203: 695.93 | I203: 704.82 | J203: 712.73 | K203: 696.9 | L203: 680.1 | M203: 8.2945
A204: 194 | B204: HEIDELBERG | C204: 197.45 | D204: 195.50 | E204: 192.00 | F204: 186.55 | G204: 183.05 | H204: 200.95 | I204: 204.45 | J204: 209.90 | K204: 199 | L204: 190.05 | M204: 5.64985
A205: 195 | B205: HERITGFOOD | C205: 337.8 | D205: 340.40 | E205: 327.90 | F205: 318.00 | G205: 305.50 | H205: 350.30 | I205: 362.80 | J205: 372.70 | K205: 352.9 | L205: 330.5 | M205: 1.1733
A206: 196 | B206: HEROMOTOCO | C206: 2665 | D206: 2660.68 | E206: 2642.37 | F206: 2619.73 | G206: 2601.42 | H206: 2683.32 | I206: 2701.63 | J206: 2724.27 | K206: 2679 | L206: 2638.05 | M206: 5.08321
... 320 more rows

Sheet Bulk Deals
E6: Back To Main Page
A7: Subject : | B7: BULK DEAL | D7: =Main!B10 -> 2019-11-06
A9: Date | B9: Scrip code | C9: Scrip Name | D9: Client Name | E9: Buy / Sell | F9: Quantity Traded | G9: Trade Price / Wt.Avg.trade price | H9: Exchange
A10: 2019-11-05 | B10: 532172 | C10: ADROITINFO | D10: MOHAMMED QAYYUM | E10: BUY | F10: 174,075 | G10: 7.50 | H10: BSE
A11: 2019-11-05 | B11: 532172 | C11: ADROITINFO | D11: JOKEMAN MEDIA AND ENTERTAINMENT PRIVATE LIMITED | E11: SELL | F11: 176,875 | G11: 7.50 | H11: BSE
A12: 2019-11-05 | B12: 542216 | C12: DALBHARAT | D12: TIMF HOLDINGS | E12: BUY | F12: 994,198 | G12: 815 | H12: BSE
A13: 2019-11-05 | B13: 542216 | C13: DALBHARAT | D13: OPPENHEIMER DEVELOPING MARKET FUND | E13: SELL | F13: 972,301 | G13: 815.13 | H13: BSE
A14: 2019-11-05 | B14: 539770 | C14: DARJEELING | D14: VIDHI NIKUNJ SHAH | E14: BUY | F14: 3,363 | G14: 91.21 | H14: BSE
A15: 2019-11-05 | B15: 539770 | C15: DARJEELING | D15: VIDHI NIKUNJ SHAH | E15: SELL | F15: 22,363 | G15: 83.26 | H15: BSE
A16: 2019-11-05 | B16: 539770 | C16: DARJEELING | D16: DEEPAK MALL | E16: BUY | F16: 16,000 | G16: 83.24 | H16: BSE
A17: 2019-11-05 | B17: 540134 | C17: IISL | D17: REKHA NAVINKUMAR TANK | E17: SELL | F17: 32,494 | G17: 14.41 | H17: BSE
A18: 2019-11-05 | B18: 519319 | C18: JATALIA | D18: HANSABEN HASMUKHBHAI AMIN | E18: BUY | F18: 26,874 | G18: 3.25 | H18: BSE
A19: 2019-11-05 | B19: 519319 | C19: JATALIA | D19: HANSABEN HASMUKHBHAI AMIN | E19: SELL | F19: 4 | G19: 3.10 | H19: BSE
A20: 2019-11-05 | B20: 519319 | C20: JATALIA | D20: ANILKUMARMOODEDLA | E20: SELL | F20: 26,875 | G20: 3.25 | H20: BSE
A21: 2019-11-05 | B21: 517230 | C21: PAEL | D21: RAVIRAJ DEVELOPERS LIMITED | E21: SELL | F21: 65,320 | G21: 3.56 | H21: BSE
A22: 2019-11-05 | B22: 532915 | C22: RELIGARE | D22: QUICK REALTORS LLP | E22: BUY | F22: 1,100,000 | G22: 50.04 | H22: BSE
A23: 2019-11-05 | B23: 532915 | C23: RELIGARE | D23: OLUMPUS TRADING AND ADVISORY LLP | E23: SELL | F23: 1,100,000 | G23: 50.04 | H23: BSE
A24: 2019-11-05 | B24: 542725 | C24: SBC | D24: SANDEEP KUMAR SRIVASTAVA | E24: BUY | F24: 66,000 | G24: 25.70 | H24: BSE
A25: 2019-11-05 | B25: 542725 | C25: SBC | D25: RIYAJ KHAN | E25: SELL | F25: 66,000 | G25: 25.7 | H25: BSE
A26: 2019-11-05 | B26: 542025 | C26: SUNRETAIL | D26: ARDENT VENTURES LLP | E26: BUY | F26: 195,000 | G26: 26.95 | H26: BSE
A27: 2019-11-05 | B27: 542025 | C27: SUNRETAIL | D27: KHUSHBOO VANRAJ KAHOR | E27: SELL | F27: 54,000 | G27: 28 | H27: BSE
A28: 2019-11-05 | B28: 542025 | C28: SUNRETAIL | D28: HARSH SHAILESH JHAVERI | E28: SELL | F28: 141,000 | G28: 27.2 | H28: BSE
A29: 2019-11-05 | B29: 542025 | C29: SUNRETAIL | D29: RUPAL BHAVIN SHAH | E29: BUY | F29: 96,000 | G29: 27.87 | H29: BSE
A30: 2019-11-05 | B30: AMJUMBO | C30: A and M Jumbo Bags Ltd | D30: USHABEN DALPATBHAI BORICHA | E30: BUY | F30: 40,000 | G30: 11.65 | H30: NSE
A31: 2019-11-05 | B31: APTECHT | C31: Aptech Limited | D31: ANKITA VISHAL SHAH | E31: BUY | F31: 227,932 | G31: 186.08 | H31: NSE
A32: 2019-11-05 | B32: COX&KINGS | C32: Cox & Kings Limited | D32: MANOJ KUMAR MEHTA HUF | E32: BUY | F32: 1,000,000 | G32: 1.6 | H32: NSE
A33: 2019-11-05 | B33: DCAL | C33: Dishman Carbo Amcis Ltd | D33: NORGES BANK ON ACCOUNT OF GOVERNMENT PENSION FUND GLOBAL | E33: BUY | F33: 1,425,309 | G33: 119 | H33: NSE
A34: 2019-11-05 | B34: IBULHSGFIN | C34: Indiabulls Hsg Fin Ltd | D34: TOWER RESEARCH CAPITAL MARKETS INDIA PRIVATE LIMITED | E34: BUY | F34: 3,118,207 | G34: 225.28 | H34: NSE
A35: 2019-11-05 | B35: IBULHSGFIN | C35: Indiabulls Hsg Fin Ltd | D35: SURJECTIVE RESEARCH CAPITAL LLP | E35: BUY | F35: 2,216,887 | G35: 225.94 | H35: NSE
A36: 2019-11-05 | B36: NCC | C36: NCC Limited | D36: TOWER RESEARCH CAPITAL MARKETS INDIA PRIVATE LIMITED | E36: BUY | F36: 4,446,292 | G36: 56.85 | H36: NSE
A37: 2019-11-05 | B37: NCC | C37: NCC Limited | D37: SURJECTIVE RESEARCH CAPITAL LLP | E37: BUY | F37: 3,564,502 | G37: 56.93 | H37: NSE
A38: 2019-11-05 | B38: RELIGARE | C38: Religare Enterprises Limi | D38: QUICK REALTORS LLP | E38: BUY | F38: 1,100,000 | G38: 49.9 | H38: NSE
A39: 2019-11-05 | B39: SONISOYA | C39: Soni Soya Product Limited | D39: SOMYA AGRA | E39: BUY | F39: 36,000 | G39: 14 | H39: NSE
A40: 2019-11-05 | B40: YESBANK | C40: Yes Bank Limited | D40: TOWER RESEARCH CAPITAL MARKETS INDIA PRIVATE LIMITED | E40: BUY | F40: 14,268,471 | G40: 69.11 | H40: NSE
A41: 2019-11-05 | B41: YESBANK | C41: Yes Bank Limited | D41: SURJECTIVE RESEARCH CAPITAL LLP | E41: BUY | F41: 17,378,171 | G41: 68.91 | H41: NSE
A42: 2019-11-05 | B42: APTECHT | C42: Aptech Limited | D42: ANKITA VISHAL SHAH | E42: SELL | F42: 113,898 | G42: 186.97 | H42: NSE
A43: 2019-11-05 | B43: COX&KINGS | C43: Cox & Kings Limited | D43: ALPHA LEON ENTERPRISES LLP | E43: SELL | F43: 1,534,793 | G43: 1.6 | H43: NSE
A44: 2019-11-05 | B44: DALBHARAT | C44: Dalmia Bharat Limited | D44: OPPENHEIMER DEVELOPING MARKETS FUND | E44: SELL | F44: 2,066,713 | G44: 810.52 | H44: NSE
A45: 2019-11-05 | B45: HDIL | C45: Housing Development and I | D45: EMERGING MARKETS VALUE FUND OF DIMENSIONAL FUNDS PLC | E45: SELL | F45: 3,369,100 | G45: 1.8 | H45: NSE
A46: 2019-11-05 | B46: IBULHSGFIN | C46: Indiabulls Hsg Fin Ltd | D46: TOWER RESEARCH CAPITAL MARKETS INDIA PRIVATE LIMITED | E46: SELL | F46: 3,130,249 | G46: 225.52 | H46: NSE
A47: 2019-11-05 | B47: IBULHSGFIN | C47: Indiabulls Hsg Fin Ltd | D47: SURJECTIVE RESEARCH CAPITAL LLP | E47: SELL | F47: 2,218,711 | G47: 226.01 | H47: NSE
A48: 2019-11-05 | B48: INTELLECT | C48: Intellect Design Arena | D48: FID FUNDS AIAN SMALLER COMP POOL | E48: SELL | F48: 677,453 | G48: 154.46 | H48: NSE
A49: 2019-11-05 | B49: NCC | C49: NCC Limited | D49: TOWER RESEARCH CAPITAL MARKETS INDIA PRIVATE LIMITED | E49: SELL | F49: 4,381,203 | G49: 57.01 | H49: NSE
A50: 2019-11-05 | B50: NCC | C50: NCC Limited | D50: SURJECTIVE RESEARCH CAPITAL LLP | E50: SELL | F50: 3,533,121 | G50: 57.04 | H50: NSE
A51: 2019-11-05 | B51: RELIGARE | C51: Religare Enterprises Limi | D51: OLUMPUS TRADING AND ADVISORY LLP | E51: SELL | F51: 1,100,000 | G51: 49.9 | H51: NSE
A52: 2019-11-05 | B52: SONISOYA | C52: Soni Soya Product Limited | D52: VYANGESH CHOKSI (HUF) | E52: SELL | F52: 36,000 | G52: 14 | H52: NSE
A53: 2019-11-05 | B53: YESBANK | C53: Yes Bank Limited | D53: TOWER RESEARCH CAPITAL MARKETS INDIA PRIVATE LIMITED | E53: SELL | F53: 12,717,837 | G53: 69.17 | H53: NSE
A54: 2019-11-05 | B54: YESBANK | C54: Yes Bank Limited | D54: SURJECTIVE RESEARCH CAPITAL LLP | E54: SELL | F54: 17,357,930 | G54: 68.92 | H54: NSE

Sheet Call Tracker (Equity & F&O)
M5: Back To Main Page
A6: Retail Research Technical Calls & Fundamental Performance Report for the month of November-2019
M7: =Main!B10 -> 2019-11-06
B8: Positional Call
A9: Sr.no | B9: Date | D9: Company | E9: Rec | F9: Rec Price | G9: Stop Loss*** | H9: Call Closed At | I9: Target | J9: Remark | K9: Profit / Loss per Share | L9: Gain / Loss % | M9: Status | N9: Closed Date | O9: NSE Closed Price
A10: 1 | B10: 2019-09-26 | D10: HDFC | E10: Buy | F10: 2070 | G10: 1940 | H10: 2165 | I10: 2250-2300 | J10: Profit of Rs.95/- | K10: =H10-F10 -> 95 | L10: =K10/F10 -> 4.59% | M10: Successful | N10: 2019-11-01 | R10: H
A11: 2 | B11: 2019-10-01 | D11: UPL | E11: Buy | F11: 595 | G11: 564 | H11: 614 | I11: 650-660 | J11: Part Profit of Rs.19/- | K11: 19 | L11: 3.19% | M11: Successful | N11: 2019-11-05 | O11: =VLOOKUP(D11,Sheet2!A50:M1689,6,0) -> 605.65 | R11: R
A12: 3 | B12: 2019-10-07 | D12: PIDILITIND | E12: Buy | F12: 1367.5 | G12: 1297 | H12: 1413.5 | I12: 1500-1520 | J12: Part Profit of Rs.46/- | K12: =H12-F12 -> 46 | L12: =K12/F12 -> 3.36% | M12: Successful | N12: 2019-10-31 | O12: =VLOOKUP(D12,Sheet2!A51:M1690,6,0) -> 1388.8 | R12: R
A13: 4 | B13: 2019-10-22 | D13: HEIDELBERG | E13: Buy | F13: 188.5 | G13: 178 | H13: 199 | I13: 205-210 | J13: Profit of Rs.10.50/- | K13: 10.5 | L13: 5.57% | M13: Successful | N13: 2019-11-05 | R13: H
A14: 5 | B14: 2019-10-27 | D14: AMBUJACEM | E14: Buy | F14: 197 | G14: 185.4 | H14: 203.5 | I14: 216-220 | J14: Part Profit of Rs.6.5/- | K14: =H14-F14 -> 6.5 | L14: =K14/F14 -> 3.30% | M14: Successful | N14: 2019-10-30 | O14: =VLOOKUP(D14,Sheet2!A60:M1699,6,0) -> 201.55 | R14: R
A15: 6 | B15: 2019-11-04 | D15: UBL | E15: Buy | F15: 1237-1243 | G15: 1178 | I15: 1340-1360 | J15: Open | O15: =VLOOKUP(D15,Sheet2!A60:M1699,6,0) -> 1217.85 | R15: H
A16: 7 | B16: 2019-11-05 | D16: TATAMOTORS | E16: Sell | F16: 172-174 | G16: 183.3 | I16: 158-155 | J16: Open
A30: CLBS = Closing Basis ***
A31: Dividend adjusted <> | F31: Reinitiated $
A32: Part book {} | F32: Revised stoploss #
B34: Momentum Call
A35: Sr.no | B35: Date | D35: Company | E35: Rec | F35: Rec Price | G35: Stop Loss | H35: Call Closed At | I35: Target | J35: Remark | K35: Profit / Loss per Share/Lot | L35: Gain / Loss % | M35: Gain / Loss per Lot | N35: Lot | O35: Status | P35: Closed Date
A36: 1 | B36: 2019-10-29 | D36: RELIANCE | E36: Sell | F36: 1445-1450 | G36: 1505 | I36: 1380-1350 | J36: Open | R36: H
A37: 2 | B37: 2019-10-29 | D37: INDUSINDBK | E37: Buy | F37: 1319 | G37: 1278 | H37: 1347.5 | I37: 1370-1390 | J37: Profit of Rs.28.5/- | K37: =H37-F37 -> 28.5 | L37: =K37/F37 -> 2.16% | O37: Successful | P37: 2019-11-01 | R37: H
A38: 3 | B38: 2019-10-30 | D38: POWERGRID | E38: Buy | F38: 199-200 | G38: 194.5 | I38: 210 | J38: Open | R38: H
A39: 4 | B39: 2019-10-31 | D39: MFSL NOV FUT | E39: Buy | F39: 407 | G39: 396 | H39: 414 | I39: 425 | J39: Profit of Rs.7/- | K39: 7 | M39: =N39*K39 -> 8400 | N39: 1200 | O39: Successful | P39: 2019-11-04 | R39: N
A40: 5 | B40: 2019-10-31 | D40: HDFCBANK NOV FUT | E40: Buy | F40: 1238-1240 | G40: 1215 | I40: 1280 | J40: Open | R40: N
A41: 6 | B41: 2019-11-01 | D41: TORNTPOWER NOV FUT | E41: Sell | F41: 285 | G41: 289 | H41: 282 | I41: 276 | J41: Profit of Rs.3/- | K41: =F41-H41 -> 3 | M41: =N41*K41 -> 9000 | N41: 3000 | O41: Successful | P41: 2019-11-01 | R41: N
A42: 7 | B42: 2019-11-01 | D42: SBIN | E42: Sell | F42: 313-315 | G42: 322 | I42: 300-395 | J42: Open | R42: R
A43: 8 | B43: 2019-11-04 | D43: AXISBANK NOV FUT | E43: Sell | F43: 749 | G43: 758.3 | H43: 742.5 | I43: 733 | J43: Profit of Rs.6.50/- | K43: =F43-H43 -> 6.5 | M43: =N43*K43 -> 7800 | N43: 1200 | O43: Successful | P43: 2019-11-04 | R43: R
A44: 9 | B44: 2019-11-04 | D44: COLPAL NOV FUT | E44: Buy | F44: 1527.5 | G44: 1510 | H44: 1539 | I44: 1560 | J44: Profit of Rs.11.50/- | K44: =H44-F44 -> 11.5 | M44: =N44*K44 -> 8050 | N44: 700 | O44: Successful | P44: 2019-11-04 | R44: N
A45: 10 | B45: 2019-11-04 | D45: LUPIN | E45: Buy | F45: 760-765 | G45: 747 | I45: 790-800 | J45: Open | R45: H
A46: 11 | B46: 2019-11-04 | D46: MARUTI | E46: Sell | F46: 7515 | G46: 7777.7 | H46: 7335 | I46: 7100-7000 | J46: Profit of Rs.180/- | K46: =F46-H46 -> 180 | L46: =K46/F46 -> 2.40% | O46: Successful | P46: 2019-11-05 | R46: R
A47: 12 | B47: 2019-11-04 | D47: BANKBARODA | E47: Sell | F47: 101-102 | G47: 105 | I47: 97-95 | J47: Open | R47: H
A48: 13 | B48: 2019-11-04 | D48: COALINDIA | E48: Sell | F48: 210-212 | G48: 216.3 | I48: 200-198 | J48: Open | R48: R
A49: 14 | B49: 2019-11-05 | D49: TCS | E49: Buy | F49: 2170 | G49: 2097 | H49: 2205 | I49: 2300-2330 | J49: Profit of Rs.35/- | K49: =H49-F49 -> 35 | L49: =K49/F49 -> 1.61% | O49: Successful | P49: 2019-11-05
A50: 15 | B50: 2019-11-05 | D50: COLPAL NOV FUT | E50: Buy | F50: 1526-1528 | G50: 1509 | I50: 1560 | J50: Open
A51: 16 | B51: 2019-11-05 | D51: HDFCLIFE | E51: Buy | F51: 587-590 | G51: 569 | I51: 620-630 | J51: Open
A52: 17 | B52: 2019-11-05 | D52: ICICIBANK | E52: Sell | F52: 469-471 | G52: 480.2 | I52: 450 | J52: Open
A53: 18
A54: 19
A55: 20
A56: 21
A57: 22
A58: 23
A59: 24
A60: 25
A61: 26
A62: 27
A63: 28
A64: 29
A65: 30
A66: 31
A67: 32
A68: 33
A69: 34
A72: CLBS = Closing Basis ***
A73: Dividend adjusted <> | F73: Reinitiated $
F74: Revised stoploss #
A76: Master Trade High Risk
A77: Sr.no | B77: Date | D77: Company | E77: Rec | F77: Rec Price | G77: Stop Loss | H77: Call Closed At | I77: Target | J77: Remark | K77: Profit / Loss per share | L77: Gain / Loss per Lot | M77: Lot | N77: Status | O77: Closed Date
A78: 1 | B78: 2019-10-30 | D78: BAJAJ-AUTO NOV FUT | E78: Sell | F78: 3240 | G78: 3360 | H78: 3205 | I78: 3040 | J78: Profit of Rs.36.50/- | K78: =F78-H78 -> 35 | L78: =M78*36.5 -> 9125 | M78: 250 | N78: Successful | O78: 2019-11-04 | R78: H
D79: BAJAJ-AUTO 3100 PE NOV | E79: Sell | F79: 49.50 | H79: 48 | K79: =F79-H79 -> 1.5 | R79: H
A80: 2 | B80: 2019-10-30 | D80: LT NOV FUT | E80: Buy | F80: 1474-1479 | G80: 1418 | I80: 1550 | J80: Open | R80: H
D81: LT 1520 CE NOV | E81: Sell | F81: 27-29 | R81: H
A82: 3 | B82: 2019-10-30 | D82: HEROMOTOCO NOV FUT | E82: Buy | F82: 2715 | G82: 2640 | H82: 2747.5 | I82: 2900 | J82: Profit of Rs.27.50/- | K82: =H82-F82 -> 32.5 | L82: =M82*27.5 -> 5500 | M82: 200 | N82: Successful | O82: 2019-11-01 | R82: N
D83: HEROMOTOCO 2850 CE NOV | E83: Sell | F83: 55 | H83: 60 | K83: =F83-H83 -> -5 | R83: N
A84: 4 | B84: 2019-10-31 | D84: AXISBANK NOV FUT | E84: Buy | F84: 738 | G84: 718 | H84: 743.5 | I84: 760 | J84: Profit of Rs.5/- | K84: =H84-F84 -> 5.5 | L84: =M84*5 -> 6000 | M84: 1200 | N84: Successful | O84: 2019-11-01 | R84: H
D85: AXISBANK 760 CE NOV | E85: Sell | F85: 17.50 | H85: 18 | K85: =F85-H85 -> -0.5 | R85: H
A86: 5 | B86: 2019-11-01 | D86: NIFTY NOV FUT | E86: Sell | F86: 11905-11910 | G86: 12060 | I86: 11700 | J86: Open | R86: H
D87: Nifty 11750 PE 14-NOV | E87: Sell | F87: 76-80 | R87: H
A88: 6 | B88: 2019-11-05 | D88: HAVELLS NOV FUT | E88: Buy | F88: 686-688 | G88: 670 | I88: 720-730 | J88: Open
D89: HAVELLS 710 CE NOV | E89: Sell | F89: 13-14
A90: 7 | B90: 2019-11-05 | D90: BATAINDIA NOV FUT | E90: Buy | F90: 1734-1736 | G90: 1701 | I90: 1820 | J90: Open
D91: BATAINDIA 1800 CE NOV | E91: Sell | F91: 34-36
A111: Master Trade Medium Risk
A112: Sr.no | B112: Date | D112: Company | E112: Rec | F112: Rec Price | G112: Stop Loss | H112: Call Closed At | I112: Target | J112: Remark | K112: Profit/ Loss per lot | L112: Gain / Loss per Lot | M112: Lot | N112: Status | O112: Closed Date
A113: 1 | B113: 2019-11-01 | D113: INFRATEL NOV 200 CE | E113: Buy | F113: 16.50 | H113: 21.5 | J113: Profit of Rs.2/- | K113: =H113-F113 -> 5 | L113: =2000*2 -> 4000 | M113: 2000 | N113: Successful | O113: 2019-11-04 | R113: H
D114: INFRATEL NOV 210 CE | E114: Sell | F114: 12.50 | H114: 15.5 | K114: -3 | R114: H
A115: 2 | B115: 2019-11-01 | D115: MARUTI NOV 7500 PE | E115: Buy | F115: 200 | H115: 270 | J115: Profit of Rs.30/- | K115: =H115-F115 -> 70 | L115: =30*M115 -> 2250 | M115: 75 | N115: Successful | O115: 2019-11-05 | R115: N
D116: MARUTI NOV 7300 PE | E116: Sell | F116: 132.50 | H116: 172.5 | K116: -40 | R116: N
A117: 3 | B117: 2019-11-01 | D117: BANKNIFTY 30000 PE 7-NOV | E117: Buy | F117: 250 | G117: 130 | H117: 130 | I117: 450-500 | J117: Loss of Rs.120/- | K117: =H117-F117 -> -120 | L117: =M117*K117 -> -2400 | M117: 20 | N117: Unsuccessful | O117: 2019-11-04 | R117: H
A118: 4 | B118: 2019-11-04 | D118: BANKNIFTY 14 NOV 30400 PE | E118: Buy | F118: 400-420 | J118: Open | R118: H
D119: BANKNIFTY 14 NOV 30100 PE | E119: Sell | F119: 295-305 | R119: H
A120: 5 | B120: 2019-11-04 | D120: MOTHERSUMI NOV 120 PE | E120: Buy | F120: 5.50-6.00 | J120: Open | R120: H
D121: MOTHERSUMI 115 PE | E121: Sell | F121: 4.00-4.20 | R121: H
A130: Techno -Funda (positional)
A131: Sr.no | B131: Date | D131: Company | E131: Rec | F131: Rec Price | G131: Stop Loss*** | H131: Call Closed At | I131: Target | J131: Remark | K131: Profit / Loss per Share | L131: Gain / Loss % | M131: Status | N131: Closed Date | O131: NSE Closed Price
A132: 1 | B132: 2019-08-13 | D132: ITC | E132: Buy | F132: 247 | G132: 228 | H132: 262.5 | I132: 290-300 | J132: Part Profit of Rs.15.5/- | K132: =H132-F132 -> 15.5 | L132: =K132/F132 -> 6.28% | M132: Successful | N132: 2019-10-01 | O132: =VLOOKUP(D132,Sheet2!A131:M1770,6,0) -> 262.9 | R132: H
A136: CLBS = Closing Basis *** | F136: Reinitiated $
A137: Dividend adjusted <> | F137: Revised stoploss #
B142: Investment Idea
A143: Sr.no | B143: Date | D143: Company | E143: Rec | F143: Rec Price | G143: Point of Review | H143: Close Rate | I143: Target | J143: Remark | K143: Profit / Loss per Share | L143: Gain / Loss % | M143: Status | N143: Closed Date
A144: 1 | B144: 2013-11-01 | D144: L&T Finance Holding | E144: Accu | F144: 82.00 | G144: - | H144: 100 | I144: 100.00 | J144: Target Achieved | K144: =H144-F144 -> 18.00 | L144: =K144/F144 -> 21.95% | M144: Successful | N144: 2016-10-14
A145: 2 | B145: 2014-06-04 | D145: Finolex Inds | E145: Buy | F145: 257.00 | G145: - | H145: 300 | I145: 300.00 | J145: Target Achieved | K145: 43.00 | L145: 16.73% | M145: Successful | N145: 2014-07-02
A146: 3 | B146: 2014-07-08 | D146: JK Cement | E146: Buy | F146: 393.00 | G146: - | H146: 468 | I146: 468.00 | J146: Target Achieved | K146: 75.00 | L146: 19.08% | M146: Successful | N146: 2014-08-12
A147: 4 | B147: 2014-08-06 | D147: Finolex Cables | E147: Buy | F147: 205.00 | G147: - | H147: 275 | I147: 250.00 | J147: Target Achieved | K147: 70.00 | L147: 34.15% | M147: Successful | N147: 2014-11-19
A148: 5 | B148: 2014-09-04 | D148: Exide Inds | E148: Buy | F148: 162.00 | G148: - | H148: 190 | I148: 190.00 | J148: Target Achieved | K148: 28.00 | L148: 17.28% | M148: Successful | N148: 2015-01-02
A149: 6 | B149: 2014-09-04 | D149: Deepak Nitrite | E149: Buy | F149: 75.00 | G149: - | H149: 91.5 | I149: 95-100 | J149: Profit of Rs.16.50/- | K149: 16.50 | L149: 22.00% | M149: Successful | N149: 2014-11-11
A150: 7 | B150: 2014-10-01 | D150: Mercks | E150: Buy | F150: 850.00 | G150: - | H150: 982.5 | I150: 1050.00 | J150: Profit of Rs.132.50/- | K150: 132.50 | L150: 15.59% | M150: Successful | N150: 2015-02-04
A151: 8 | B151: 2014-10-01 | D151: Grindwell Norton | E151: Buy | F151: 475.00 | G151: - | H151: 515 | I151: 600.00 | J151: Profit of Rs.40/- | K151: 40.00 | L151: 8.42% | M151: Successful | N151: 2014-10-27
A152: 9 | B152: 2014-10-01 | D152: Snowman Logistics | E152: Buy | F152: 86.00 | G152: - | H152: 99 | I152: 140.00 | J152: Profit of Rs.13.00/- | K152: 13.00 | L152: 15.12% | M152: Successful | N152: 2014-10-27
A153: 10 | B153: 2014-10-14 | D153: Birla Corp | E153: Buy | F153: 496.60 | G153: - | H153: 621 | I153: 580.00 | J153: Target Achieved | K153: 124.40 | L153: 25.05% | M153: Successful | N153: 2016-08-23
A154: 11 | B154: 2014-10-14 | D154: Ultratech Cem | E154: Buy | F154: 2481.90 | G154: - | H154: 2840 | I154: 2870.00 | J154: Profit of Rs.358.10/- | K154: 358.10 | L154: 14.43% | M154: Successful | N154: 2015-01-13
A155: 12 | B155: 2014-10-16 | D155: Sintex Inds | E155: Buy | F155: 84.50 | G155: - | H155: 93 | I155: 110.00 | J155: Profit of Rs.8.50/- | K155: 8.50 | L155: 10.06% | M155: Successful | N155: 2014-10-27
A156: 13 | B156: 2014-10-16 | D156: HSIL | E156: Buy | F156: 401.00 | G156: - | H156: 428 | I156: 450.00 | J156: Profit of Rs.27.00/- | K156: 27.00 | L156: 6.73% | M156: Successful | N156: 2015-01-16
A157: 14 | B157: 2014-10-16 | D157: Eveready Inds | E157: Buy | F157: 101.00 | G157: - | H157: 112 | I157: 120.00 | J157: Profit of Rs.11.00/- | K157: 11.00 | L157: 10.89% | M157: Successful | N157: 2014-10-27
A158: 15 | B158: 2014-11-11 | D158: Pennar Inds | E158: Buy | F158: 59.00 | G158: - | H158: 76 | I158: 76.00 | J158: Target Achieved | K158: 17.00 | L158: 28.81% | M158: Successful | N158: 2017-10-24
A159: 16 | B159: 2014-11-11 | D159: Snowman Logistics | E159: Buy | F159: 99.00 | G159: - | H159: 120 | I159: 120.00 | J159: Profit of Rs.21/- | K159: 21.00 | L159: 21.21% | M159: Successful | N159: 2014-11-17
A160: 17 | B160: 2014-11-13 | D160: Dharamsi Morarji Chem | E160: Buy | F160: 22.00 | G160: - | H160: 33.55 | I160: 32.00 | J160: Profit of Rs 11.55/- | K160: 11.55 | L160: 52.50% | M160: Successful | N160: 2015-07-03
A161: 18 | B161: 2014-12-03 | D161: Tatachem | E161: Buy | F161: 440.00 | G161: - | H161: 520 | I161: 520.00 | J161: Profit of Rs 80.00/- | K161: 80.00 | L161: 18.18% | M161: Successful | N161: 2015-07-23
A162: 19 | B162: 2014-12-03 | D162: Advanta | E162: Buy | F162: 360.00 | G162: - | H162: 427 | I162: 425.00 | J162: Profit of Rs.67.00/- | K162: 67.00 | L162: 18.61% | M162: Successful | N162: 2015-02-23
A163: 20 | B163: 2015-01-08 | D163: GDL | E163: Buy | F163: 360.00 | G163: - | H163: 455 | I163: 420.00 | J163: Profit of Rs.95.00/- | K163: 95.00 | L163: 26.39% | M163: Successful | N163: 2015-01-20
A164: 21 | B164: 2015-01-08 | D164: NRB Bearing | E164: Buy | F164: 130.00 | H164: 175.5 | I164: 165.00 | J164: Profit of Rs 45.50/- | K164: 45.50 | L164: 35.00% | M164: Successful | N164: 2017-12-19
A165: 22 | B165: 2015-02-05 | D165: GSFC | E165: Accu | F165: 98.00 | H165: 120 | I165: 120.00 | J165: Target Achieved | K165: 22.00 | L165: 22.45% | M165: Successful | N165: 2017-01-18
A166: 23 | B166: 2015-02-05 | D166: Sundrmfast | E166: Accu | F166: 196.00 | H166: 262 | I166: 255.00 | J166: Target Achieved | K166: 66.00 | L166: 33.67% | M166: Successful | N166: 2016-08-17
A167: 24 | B167: 2015-03-04 | D167: GPPL | E167: Accu | F167: 235 | H167: 77.00 | I167: 280-285 | J167: Loss of Rs.158/- | K167: -158.00 | L167: -67.23% | M167: Unsuccessful | N167: 2019-02-26
A168: 25 | B168: 2015-03-04 | D168: ORIENTCEM | E168: Accu | F168: 185.00 | H168: 224 | I168: 220-225 | J168: Target Achieved | K168: 39.00 | L168: 21.08% | M168: Successful | N168: 2016-10-04
A169: 26 | B169: 2015-03-27 | D169: PFS | E169: Accu | F169: 49.5 | H169: 15.85 | I169: 67.00 | J169: Loss of Rs.33.65/- | K169: -33.65 | L169: -68% | M169: Unsuccessful | N169: 2019-06-11
A170: 27 | B170: 2015-03-30 | D170: Walchandnagar Ind Ltd | E170: Accu | F170: 183.50 | H170: 219 | I170: 218.00 | J170: Profit of Rs.35.50/- | K170: 35.50 | L170: 19.35% | M170: Successful | N170: 2015-04-09
A171: 28 | B171: 2015-04-20 | D171: Kalpataru Power Transmission Ltd | E171: Accu | F171: =(227+237)/2 -> 232.00 | H171: 298 | I171: 298.00 | J171: Target Achieved | K171: 66.00 | L171: 28.45% | M171: Successful | N171: 2017-03-29
A172: 29 | B172: 2015-05-04 | D172: Mastek Ltd | E172: Buy | F172: 385.00 | H172: =212.5+331 -> 543.5 | I172: 510.00 | J172: Profit of Rs 158.50/- | K172: 158.50 | L172: 41.17% | M172: Successful | N172: 2015-08-19
A173: 30 | B173: 2015-05-04 | D173: Suprajit Eng | E173: Buy | F173: 115.50 | H173: 146 | I173: 142.00 | J173: Profit of Rs 30.50/- | K173: 30.50 | L173: 26.41% | M173: Successful | N173: 2015-07-17
A174: 31 | B174: 2015-05-27 | D174: TCI | E174: Buy | F174: 237.50 | H174: 279.5 | I174: 278.00 | J174: Target Achieved | K174: 42.00 | L174: 17.68% | M174: Successful | N174: 2015-08-06
A175: 32 | B175: 2015-06-19 | D175: HSIL | E175: Accu | F175: 340.00 | H175: 448 | I175: 448.00 | J175: Target Achieved | K175: 108.00 | L175: 31.76% | M175: Successful | N175: 2017-10-10
A176: 33 | B176: 2015-07-06 | D176: Capital First | E176: Accu | F176: 390.00 | H176: 460 | I176: 460.00 | J176: Target Achieved | K176: =H176-F176 -> 70.00 | L176: =K176/F176 -> 17.95% | M176: Successful | N176: 2016-04-18
A177: 34 | B177: 2015-07-10 | D177: Dolphin OffShore | E177: Accu | F177: 122.5 | H177: 61.00 | I177: 172.00 | J177: Loss of Rs.61.50/- | K177: -61.50 | L177: -50.20% | M177: Unsuccessful | N177: 2018-08-21
A178: 35 | B178: 2015-08-03 | D178: Allcargo logistics | E178: Accu | F178: 297.50 | H178: 350 | I178: 360.00 | J178: Profit of Rs 52.50/- | K178: 52.50 | L178: 17.65% | M178: Successful | N178: 2015-08-16
A179: 36 | B179: 2015-08-03 | D179: Camline Fine | E179: Accu | F179: 115.50 | H179: 149 | I179: 140.00 | J179: Profit of Rs 33.50/- | K179: 33.50 | L179: 29.00% | M179: Successful | N179: 2017-01-05
A180: 37 | B180: 2015-09-04 | D180: TCI | E180: Accu | F180: 226.00 | H180: 292 | I180: 292.00 | J180: Target Achieved | K180: 66.00 | L180: 29.20% | M180: Successful | N180: 2015-10-09
A181: 38 | B181: 2015-09-07 | D181: Kalpataru Power Transmission Ltd | E181: Accu | F181: 232.50 | H181: 312.5 | I181: 310.00 | J181: Target Achieved | K181: 80.00 | L181: 34.41% | M181: Successful | N181: 2017-03-29
A182: 39 | B182: 2015-09-21 | D182: LLOYD ELECTRIC & ENG LTD | E182: Accu | F182: 196.50 | H182: 238 | I182: 238.00 | J182: Target Achieved | K182: 41.50 | L182: 21.12% | M182: Successful | N182: 2015-10-14
A183: 40 | B183: 2015-09-24 | D183: L&T Finance Holding | E183: Accu | F183: 65.00 | H183: 82 | I183: 82.00 | J183: Target Achieved | K183: 17.00 | L183: 26.15% | M183: Successful | N183: 2016-07-27
A184: 41 | B184: 2015-10-14 | D184: KEC International ltd | E184: Accu | F184: 144.00 | H184: 182.5 | I184: 181.00 | J184: Target Achieved | K184: 38.50 | L184: 26.74% | M184: Successful | N184: 2017-03-23
A185: 42 | B185: 2015-10-14 | D185: Gruh Finance | E185: Accu | F185: 264.00 | H185: 311 | I185: 311.00 | J185: Target Achieved | K185: 47.00 | L185: 17.80% | M185: Successful | N185: 2016-08-22
A186: 43 | B186: 2015-11-10 | D186: Pidilitind | E186: Buy | F186: 549.50 | H186: 630 | I186: 630.00 | J186: Target Achieved | K186: 80.50 | L186: 14.65% | M186: Successful | N186: 2016-02-19
A187: 44 | B187: 2015-12-04 | D187: Zensar Technology | E187: Accu | F187: 1027.50 | H187: 1315 | I187: 1250.00 | J187: Target Achieved | K187: 287.50 | L187: 27.98% | M187: Successful | N187: 2018-05-24
A188: 45 | B188: 2015-12-29 | D188: Vinati Organics Ltd | E188: Accu | F188: 465.00 | H188: 540 | I188: 540.00 | J188: Target Achieved | K188: 75.00 | L188: 16.13% | M188: Successful | N188: 2016-06-09
A189: 46 | B189: 2016-01-11 | D189: GSFC | E189: Buy | F189: 81.00 | H189: 110 | I189: 110.00 | J189: Target Achieved | K189: 29.00 | L189: 35.80% | M189: Successful | N189: 2017-01-10
A190: 47 | B190: 2016-01-13 | D190: SSWL | E190: Buy | F190: 417.50 | H190: 547 | I190: 535.00 | J190: Target Achieved | K190: 129.50 | L190: 31.02% | M190: Successful | N190: 2016-07-27
A191: 48 | B191: 2016-02-08 | D191: Persistent System Ltd | E191: Accu | F191: 650.00 | H191: 800 | I191: 800.00 | J191: Target Achieved | K191: 150.00 | L191: 23.08% | M191: Successful | N191: 2018-02-23
A192: 49 | B192: 2016-03-04 | D192: UPL | E192: Accu | F192: 437.50 | H192: 504.5 | I192: 522.00 | J192: Profit of Rs.67/- | K192: 67.00 | L192: 15.31% | M192: Successful | N192: 2016-04-20
A193: 50 | B193: 2016-03-09 | D193: Ashoka Buildcon Ltd | E193: Accu | F193: 189.50 | H193: 218 | I193: 218.00 | J193: Target Achieved | K193: 28.50 | L193: 15.04% | M193: Successful | N193: 2017-10-26
A194: 51 | B194: 2016-04-11 | D194: PTC INDIA FIN SERV LTD | E194: Accu | F194: 36.5 | H194: 15.85 | I194: 60.00 | J194: Loss of Rs.20.65/- | K194: -20.65 | L194: -56.58% | M194: Unsuccessful | N194: 2019-06-11
A195: 52 | B195: 2016-04-12 | D195: CAMLINFINE $ | E195: Accu | F195: 93.00 | H195: 149 | I195: 140.00 | J195: Profit of Rs 56/- | K195: 56.00 | L195: 60.22% | M195: Successful | N195: 2017-01-05
A196: 53 | B196: 2016-04-12 | D196: Greaves Cotton Ltd. | E196: Accu | F196: 130.00 | H196: 150 | I196: 150-155 | J196: Target Achieved | K196: 20.00 | L196: 15.38% | M196: Successful | N196: 2016-07-13
A197: 54 | B197: 2016-04-13 | D197: DHFL | E197: Accu | F197: 196.00 | H197: 299 | I197: 299.00 | J197: Target Achieved | K197: 103.00 | L197: 52.55% | M197: Successful | N197: 2016-09-07
A198: 55 | B198: 2016-04-13 | D198: Magma | E198: Accu | F198: 88.00 | H198: 103 | I198: 103.00 | J198: Target Achieved | K198: 15.00 | L198: 17.05% | M198: Successful | N198: 2016-06-09
A199: 56 | B199: 2016-05-02 | D199: KEC International ltd $ | E199: Accu | F199: 127.50 | H199: 148 | I199: 148-150 | J199: Target Achieved | K199: =H199-F199 -> 20.50 | L199: =K199/F199 -> 16.08% | M199: Successful | N199: 2016-07-13
A200: 57 | B200: 2016-05-03 | D200: Mindtree | E200: Accu | F200: 675.00 | H200: 815 | I200: 790-800 | J200: Target Achieved | K200: =H200-F200 -> 140.00 | L200: =K200/F200 -> 20.74% | M200: Successful | N200: 2018-02-23
A201: 58 | B201: 2016-06-01 | D201: Atulauto | E201: Accu | F201: 500 | H201: 232.50 | I201: 565-570 | J201: Loss of Rs.267.50 /- | K201: =H201-F201 -> -267.50 | L201: =K201/F201 -> -53.50% | M201: Unsuccessful | N201: 2019-09-27
A202: 59 | B202: 2016-06-06 | D202: TRITURBINE | E202: Accu | F202: 110.00 | H202: 126.5 | I202: 125.00 | J202: Profit of Rs.16.50/- | K202: =H202-F202 -> 16.50 | L202: =K202/F202 -> 15.00% | M202: Successful | N202: 2016-07-01
A203: 60 | B203: 2016-06-17 | D203: Pennar Industries Ltd | E203: Accu | F203: 44.00 | H203: 69.5 | I203: 69.50 | J203: Profit of Rs.25.50/- | K203: =H203-F203 -> 25.50 | L203: =K203/F203 -> 57.95% | M203: Successful | N203: 2017-08-30
A204: 61 | B204: 2016-06-28 | D204: EVEREADY | E204: Accu | F204: 262.50 | H204: 340 | I204: 333.00 | J204: Profit of Rs.77.50/- | K204: 77.50 | L204: 29.52% | M204: Successful | N204: 2017-10-09
A205: 62 | B205: 2016-06-28 | D205: FIEMIND | E205: Accu | F205: 840.00 | H205: 1230 | I205: 1230.00 | J205: Target Achieved | K205: 390.00 | L205: 46.43% | M205: Successful | N205: 2016-10-06
A206: 63 | B206: 2016-07-05 | D206: Bajaj Corp Ltd | E206: Accu | F206: 395 | H206: =(468.5+342.5)/2 -> 405.50 | I206: 510.00 | J206: Profit of Rs.10.50/- | K206: =H206-F206 -> 10.50 | L206: =K206/F206 -> 3% | M206: Neutral | N206: 2019-05-21
A207: 64 | B207: 2016-08-02 | D207: GPPL $ | E207: Buy | F207: 169.5 | H207: 77.00 | I207: 198-200 | J207: Loss of Rs.92.5/- | K207: -92.50 | L207: -54.57% | M207: Unsuccessful | N207: 2019-02-26
A208: 65 | B208: 2016-08-04 | D208: WONDERLA HOLIDAYS LTD | E208: Accu | F208: 400 | H208: 305.00 | I208: 475.00 | J208: Loss of Rs.95/- | K208: -95.00 | L208: -23.75% | M208: Unsuccessful | N208: 2019-05-21
A209: 66 | B209: 2016-08-11 | D209: CAMLINFINE | E209: Accu | F209: 86.50 | H209: 130 | I209: 130.00 | J209: Profit of Rs.43.50/- | K209: 43.50 | L209: 50.29% | M209: Successful | N209: 2017-12-22
A210: 67 | B210: 2016-08-18 | D210: GRANULES | E210: Accu | F210: 133.5 | H210: 126.50 | I210: 178.00 | J210: Exit | K210: -7.00 | L210: -5.24% | M210: Unsuccessful | N210: 2016-09-02
A211: 68 | B211: 2016-08-31 | D211: VA TECH WABAG | E211: Accu | F211: 560.00 | H211: 725 | I211: 725.00 | J211: Target Achieved | K211: 165.00 | L211: 29.46% | M211: Successful | N211: 2016-03-27
A212: 69 | B212: 2016-09-01 | D212: SKIPPER LIMITED | E212: Accu | F212: 160.50 | H212: 210 | I212: 210.00 | J212: Target Achieved | K212: 49.50 | L212: 30.84% | M212: Successful | N212: 2017-05-16
A213: 70 | B213: 2016-10-03 | D213: IFBIND | E213: Accu | F213: 430.00 | H213: 596 | I213: 575.00 | J213: Profit of Rs.166/- | K213: 166.00 | L213: 38.60% | M213: Successful | N213: 2017-02-03
A214: 71 | B214: 2016-10-14 | D214: ASIANTILES | E214: Accu | F214: 280.00 | H214: 345 | I214: 345.00 | J214: Target Achieved | K214: =H214-F214 -> 65.00 | L214: =K214/F214 -> 23.21% | M214: Successful | N214: 2017-03-20
A215: 72 | B215: 2016-10-14 | D215: DEEPIND | E215: Accu | F215: 245.00 | H215: 325.5 | I215: 330.00 | J215: Profit of Rs.80.5/- | K215: 80.50 | L215: =K215/F215 -> 32.86% | M215: Successful | N215: 2017-02-03
A216: 73 | B216: 2016-10-17 | D216: DCBBANK | E216: Accu | F216: 125.00 | H216: 160 | I216: 160.00 | J216: Target Achieved | K216: 35.00 | L216: 28.00% | M216: Successful | N216: 2017-03-09
A217: 74 | B217: 2016-10-17 | D217: ORIENTREF | E217: Accu | F217: 114.00 | H217: 145 | I217: 145.00 | J217: Target Achieved | K217: 31.00 | L217: =K217/F217 -> 27.19% | M217: Successful | N217: 2017-05-04
A218: 75 | B218: 2016-10-17 | D218: GANECOS | E218: Accu | F218: 212.00 | H218: 280 | I218: 276.00 | J218: Profit of Rs.68/- | K218: 68.00 | L218: =K218/F218 -> 32.08% | M218: Successful | N218: 2017-05-03
A219: 76 | B219: 2016-11-04 | D219: NBCC | E219: Accu | F219: 155.00 | H219: 210 | I219: 210.00 | J219: Profit of Rs.55/- | K219: 55.00 | L219: =K219/F219 -> 35.48% | M219: Successful | N219: 2017-07-28
A220: 77 | B220: 2016-12-06 | D220: PRECAM | E220: Accu | F220: 150.5 | H220: 72.50 | I220: 174.00 | J220: Loss of Rs.78/- | K220: -78.00 | L220: -51.83% | M220: Unsuccessful | N220: 2018-08-21
A221: 78 | B221: 2016-12-08 | D221: INFRATEL | E221: Accu | F221: 380.00 | H221: 478 | I221: 468.00 | J221: Target Achieved | K221: =H221-F221 -> 98.00 | L221: =K221/F221 -> 25.79% | M221: Successful | N221: 2017-10-17
A222: 79 | B222: 2016-12-30 | D222: GODREJPROP | E222: Accu | F222: 305.00 | H222: 375 | I222: 375.00 | J222: Target Achieved | K222: =H222-F222 -> 70.00 | L222: =K222/F222 -> 22.95% | M222: Successful | N222: 2017-02-02
A223: 80 | B223: 2017-01-04 | D223: DEEPAKNTR | E223: Accu | F223: 99.50 | H223: 158 | I223: 158.00 | J223: Target Achieved | K223: =H223-F223 -> 58.50 | L223: =K223/F223 -> 58.79% | M223: Successful | N223: 2017-06-12
A224: 81 | B224: 2017-01-04 | D224: DEEPAKNTR | E224: Accu | F224: 99.50 | H224: 158 | I224: 158.00 | J224: Target Achieved | K224: 58.50 | L224: 58.79% | M224: Successful | N224: 2017-06-12
A225: 82 | B225: 2017-02-20 | D225: RECLTD | E225: Accu | F225: 140.50 | H225: 220 | I225: 220.00 | J225: Target Achieved | K225: =H225-F225 -> 79.50 | L225: =K225/F225 -> 56.58% | M225: Successful | N225: 2017-05-09
A226: 83 | B226: 2017-02-20 | D226: SUBROS | E226: Accu | F226: 202.50 | H226: 234 | I226: 234.00 | J226: Target Achieved | K226: 31.50 | L226: 15.56% | M226: Successful | N226: 2017-04-11
A227: 84 | B227: 2017-03-24 | D227: VRLLOG | E227: Accu | F227: 300.50 | H227: 417.5 | I227: 420.00 | J227: Profit of Rs.117/- | K227: =H227-F227 -> 117.00 | L227: =K227/F227 -> 38.94% | M227: Successful | N227: 2017-12-01
A228: 85 | B228: 2017-03-24 | D228: FIEMIND | E228: Accu | F228: 850.00 | H228: 1042.5 | I228: 1023.00 | J228: Profit of Rs 192.50/- | K228: 192.50 | L228: 22.65% | M228: Successful | N228: 2017-04-05
A229: 86 | B229: 2017-04-05 | D229: RATNAMANI | E229: Accu | F229: 785.00 | H229: 930 | I229: 920.00 | J229: Profit of Rs.145/- | K229: =H229-F229 -> 145.00 | L229: =K229/F229 -> 18.47% | M229: Successful | N229: 2017-08-29
A230: 87 | B230: 2017-04-06 | D230: ZEEMEDIA | E230: Accu | F230: 40 | H230: 13.10 | I230: 60.00 | J230: Loss of Rs.26.9/- | K230: -26.90 | L230: -67.25% | M230: Unsuccessful | N230: 2018-02-07
A231: 88 | B231: 2017-04-12 | D231: DABUR | E231: Accu | F231: 289.50 | H231: 354 | I231: 360.00 | J231: Profit of Rs.64.5/- | K231: =H231-F231 -> 64.50 | L231: =K231/F231 -> 22.28% | M231: Successful | N231: 2017-11-01
A232: 89 | B232: 2017-04-20 | D232: KPRMILL | E232: Accu | F232: 700.00 | H232: 840 | I232: 840.00 | J232: Profit of Rs.140/- | K232: 140.00 | L232: 20.00% | M232: Successful | N232: 2017-06-07
A233: 90 | B233: 2017-06-01 | D233: ESSELPACK | E233: Accu | F233: 130.00 | H233: 144.25 | I233: 170.00 | J233: Profit of Rs.14.25/- | K233: 14.25 | L233: 10.96% | M233: Successful | N233: 2019-07-29
A234: 91 | B234: 2017-06-15 | D234: KEI | E234: Accu | F234: 214.50 | H234: 262 | I234: 262.00 | J234: Profit of Rs.47.5/- | K234: 47.50 | L234: 22.14% | M234: Successful | N234: 2017-08-30
A235: 92 | B235: 2017-07-17 | D235: MAYURUNIQ | E235: Accu | F235: 370.00 | H235: 447.5 | I235: 450.00 | J235: Target Achieved | K235: 77.50 | L235: 20.95% | M235: Successful | N235: 2017-10-27
A236: 93 | B236: 2017-07-27 | D236: RAMCOCEM | E236: Accu | F236: 657.50 | H236: 825 | I236: 820.00 | J236: Target Achieved | K236: 167.50 | L236: 25.48% | M236: Successful | N236: 2017-12-21
A237: 94 | B237: 2017-08-17 | D237: FINPIPE | E237: Accu | F237: 605.00 | H237: 750 | I237: 750.00 | J237: Profit of Rs.145/- | K237: 145.00 | L237: 23.97% | M237: Successful | N237: 2017-10-19
A238: 95 | B238: 2017-09-01 | D238: SHK | E238: Accu | F238: 255 | H238: 217.25 | I238: 320.00 | J238: Loss of Rs.37.75/- | K238: -37.75 | L238: -15% | M238: Unsuccessful | N238: 2019-07-15
A239: 96 | B239: 2017-09-19 | D239: SKIPPER | E239: Accu | F239: 215.00 | H239: 258 | I239: 258.00 | J239: Target Achieved | K239: 43.00 | L239: 20.00% | M239: Successful | N239: 2017-11-01
A240: 97 | B240: 2017-09-19 | D240: SKIPPER | E240: Accu | F240: 215.00 | H240: 258 | I240: 258.00 | J240: Target Achieved | K240: 43.00 | L240: 20.00% | M240: Successful | N240: 2017-11-01
A241: 98 | B241: 2017-09-20 | D241: CAMLINFINE$ | E241: Accu | F241: 75.00 | H241: 90 | I241: 90.00 | J241: Profit of Rs.15.00/- | K241: =H241-F241 -> 15.00 | L241: =K241/F241 -> 20.00% | M241: Successful | N241: 2017-10-11
A242: 99 | B242: 2017-10-03 | D242: GNA | E242: Accu | F242: 315.00 | H242: 392 | I242: 384.00 | J242: Profit of Rs.77/- | K242: 77.00 | L242: 24.44% | M242: Successful | N242: 2017-10-09
A243: 100 | B243: 2017-10-05 | D243: NOCIL | E243: Accu | F243: 145.00 | H243: 179 | I243: 180.00 | J243: Profit of Rs.34/- | K243: 34.00 | L243: 23.45% | M243: Successful | N243: 2017-10-17
A244: 101 | B244: 2017-10-06 | D244: CENTURYPLY | E244: Accu | F244: 256.00 | H244: 323 | I244: 320.00 | J244: Target Achieved | K244: 67.00 | L244: 26.17% | M244: Successful | N244: 2017-11-28
A245: 102 | B245: 2017-10-09 | D245: EIHOTEL | E245: Accu | F245: 137.50 | H245: 184 | I245: 183.00 | J245: Profit of Rs.46.5/- | K245: 46.50 | L245: 33.82% | M245: Successful | N245: 2018-01-08
A246: 103 | B246: 2017-10-10 | D246: NRBBEARING | E246: Accu | F246: 125.50 | H246: 158 | I246: 155.00 | J246: Profit of Rs.32.5/- | K246: 32.50 | L246: 25.90% | M246: Successful | N246: 2017-11-28
A247: 104 | B247: 2017-10-10 | D247: BOROSIL | E247: Accu | F247: 895.00 | H247: 1122.5 | I247: 1078.00 | J247: Profit of Rs.227.5/- | K247: 227.50 | L247: 25.42% | M247: Successful | N247: 2018-01-17
A248: 105 | B248: 2017-10-12 | D248: CYIENT | E248: Accu | F248: 525.00 | H248: 629 | I248: 629.00 | J248: Target Achieved | K248: 104.00 | L248: 19.81% | M248: Successful | N248: 2018-01-19
A249: 106 | B249: 2017-11-07 | D249: HATSUN | E249: Accu | F249: 740.00 | H249: 892.5 | I249: 900.00 | J249: Profit of Rs.152.5/- | K249: =H249-F249 -> 152.50 | L249: =K249/F249 -> 20.61% | M249: Successful | N249: 2017-11-13
A250: 107 | B250: 2017-12-04 | D250: SANGHIIND | E250: Accu | F250: 118.50 | H250: 143.5 | I250: 145.00 | J250: Profit of Rs.25/- | K250: =H250-F250 -> 25.00 | L250: =K250/F250 -> 21.10% | M250: Successful | N250: 2017-12-28
A251: 108 | B251: 2017-12-21 | D251: KAJARIACER | E251: Accu | F251: 715 | H251: 500.00 | I251: 872.00 | J251: Loss of Rs.215/- | K251: =H251-F251 -> -215.00 | L251: =K251/F251 -> -30.07% | M251: Unsuccessful | N251: 2019-07-24
A252: 109 | B252: 2017-12-29 | D252: GNA | E252: Accu | F252: 435.00 | H252: 542.5 | I252: 539.00 | J252: Target Achieved | K252: 107.50 | L252: 24.71% | M252: Successful | N252: 2018-04-16
A253: 110 | B253: 2017-12-29 | D253: ZENSARTECH | E253: Accu | F253: 885.00 | H253: 1090 | I253: 1084.00 | J253: Target Achieved | K253: 205.00 | L253: 23.16% | M253: Successful | N253: 2018-04-23
A254: 111 | B254: 2018-04-02 | D254: EVERESTIND | E254: Accu | F254: 492.50 | H254: 442 | I254: 613.00 | J254: Loss of Rs.50.50 /- | K254: =H254-F254 -> -50.50 | L254: =K254/F254 -> -10.25% | M254: Unsuccessful | N254: 2019-10-24
A255: 112 | B255: 2018-04-04 | D255: GPPL$ | E255: Accu | F255: 141.5 | H255: 77.00 | I255: 180.00 | J255: Loss of Rs.64.5/- | K255: =H255-F255 -> -64.50 | L255: =K255/F255 -> -45.58% | M255: Unsuccessful | N255: 2019-02-26
... 41 more rows

Sheet Sheet2 (hidden)
A1: SYMBOL | B1: SERIES | C1: OPEN | D1: HIGH | E1: LOW | F1: CLOSE | G1: LAST | H1: PREVCLOSE | I1: TOTTRDQTY | J1: TOTTRDVAL | K1: TIMESTAMP | L1: TOTALTRADES | M1: ISIN | N1: ISIN
A2: 20MICRONS | B2: EQ | C2: 37.05 | D2: 39.25 | E2: 37.05 | F2: 39 | G2: 38.85 | H2: 37.35 | I2: 169093 | J2: 6531376.65 | K2: 2019-11-05 | L2: 1460 | M2: INE144J01027
A3: 21STCENMGM | B3: EQ | C3: 13.75 | D3: 13.75 | E3: 13.75 | F3: 13.75 | G3: 13.75 | H3: 13.5 | I3: 203 | J3: 2791.25 | K3: 2019-11-05 | L3: 3 | M3: INE253B01015
A4: 3IINFOTECH | B4: EQ | C4: 2.05 | D4: 2.05 | E4: 1.95 | F4: 1.95 | G4: 2 | H4: 2 | I4: 1445744 | J4: 2892782.5 | K4: 2019-11-05 | L4: 559 | M4: INE748C01020
A5: 3MINDIA | B5: EQ | C5: 22499.85 | D5: 22650 | E5: 22250 | F5: 22456.5 | G5: 22390 | H5: 22314.85 | I5: 1862 | J5: 41754586.5 | K5: 2019-11-05 | L5: 923 | M5: INE470A01017
A6: 3PLAND | B6: EQ | C6: 6.5 | D6: 6.5 | E6: 6.5 | F6: 6.5 | G6: 6.5 | H6: 6.5 | I6: 20 | J6: 130 | K6: 2019-11-05 | L6: 2 | M6: INE105C01023
A7: 5PAISA | B7: EQ | C7: 170.35 | D7: 170.4 | E7: 164 | F7: 168.95 | G7: 169 | H7: 166.25 | I7: 4775 | J7: 805698.85 | K7: 2019-11-05 | L7: 177 | M7: INE618L01018
A8: 63MOONS | B8: EQ | C8: 118.2 | D8: 119.95 | E8: 116.9 | F8: 117.45 | G8: 117.6 | H8: 117.6 | I8: 70674 | J8: 8341894.1 | K8: 2019-11-05 | L8: 1353 | M8: INE111B01023
A9: A2ZINFRA | B9: EQ | C9: 10.25 | D9: 10.3 | E9: 9.85 | F9: 10 | G9: 10.05 | H9: 10 | I9: 241785 | J9: 2436371.1 | K9: 2019-11-05 | L9: 493 | M9: INE619I01012
A10: AARTIDRUGS | B10: EQ | C10: 532 | D10: 532 | E10: 515.7 | F10: 522.85 | G10: 524.75 | H10: 526.6 | I10: 7840 | J10: 4091251.85 | K10: 2019-11-05 | L10: 668 | M10: INE767A01016
A11: AARTIIND | B11: EQ | C11: 850.3 | D11: 869.8 | E11: 838 | F11: 845 | G11: 844.6 | H11: 852.1 | I11: 73911 | J11: 63353150.45 | K11: 2019-11-05 | L11: 3362 | M11: INE769A01020
A12: AARVEEDEN | B12: EQ | C12: 15.45 | D12: 15.5 | E12: 12.75 | F12: 13.85 | G12: 13.7 | H12: 14.3 | I12: 27199 | J12: 374165.5 | K12: 2019-11-05 | L12: 434 | M12: INE273D01019
A13: AAVAS | B13: EQ | C13: 1533 | D13: 1548 | E13: 1455 | F13: 1473.75 | G13: 1464.95 | H13: 1532.55 | I13: 43163 | J13: 64713125.75 | K13: 2019-11-05 | L13: 3568 | M13: INE216P01012
A14: ABAN | B14: BE | C14: 30.85 | D14: 30.85 | E14: 30.85 | F14: 30.85 | G14: 30.85 | H14: 29.4 | I14: 45368 | J14: 1399602.8 | K14: 2019-11-05 | L14: 333 | M14: INE421A01028
A15: ABB | B15: EQ | C15: 1457.25 | D15: 1474 | E15: 1445.55 | F15: 1448.35 | G15: 1449 | H15: 1456.7 | I15: 40619 | J15: 59215154 | K15: 2019-11-05 | L15: 4209 | M15: INE117A01022
A16: ABBOTINDIA | B16: EQ | C16: 12088 | D16: 12088 | E16: 11705 | F16: 11786.55 | G16: 11839.95 | H16: 11987.25 | I16: 5344 | J16: 63191407.15 | K16: 2019-11-05 | L16: 2194 | M16: INE358A01014
A17: ABCAPITAL | B17: EQ | C17: 83.65 | D17: 85.95 | E17: 83 | F17: 85.45 | G17: 85.5 | H17: 83.35 | I17: 3470582 | J17: 294183831.2 | K17: 2019-11-05 | L17: 36475 | M17: INE674K01013
A18: ABFRL | B18: EQ | C18: 213.85 | D18: 214.95 | E18: 205.8 | F18: 209.6 | G18: 208.95 | H18: 213.7 | I18: 475008 | J18: 99481730.05 | K18: 2019-11-05 | L18: 8580 | M18: INE647O01011
A19: ABSLBANETF | B19: EQ | C19: 275.19 | D19: 329.9 | E19: 275.19 | F19: 329.9 | G19: 329.9 | H19: 330 | I19: 94 | J19: 26414.96 | K19: 2019-11-05 | L19: 10 | M19: INF209KB1O58
A20: ACC | B20: EQ | C20: 1561 | D20: 1564 | E20: 1510.4 | F20: 1514.65 | G20: 1515 | H20: 1564.65 | I20: 914025 | J20: 1400100420 | K20: 2019-11-05 | L20: 44378 | M20: INE012A01025
A21: ACCELYA | B21: EQ | C21: 938.9 | D21: 959 | E21: 925.05 | F21: 952.1 | G21: 955 | H21: 939 | I21: 8796 | J21: 8341440.3 | K21: 2019-11-05 | L21: 393 | M21: INE793A01012
A22: ACE | B22: EQ | C22: 84.2 | D22: 84.75 | E22: 83.5 | F22: 83.8 | G22: 83.8 | H22: 84.05 | I22: 151284 | J22: 12680565.7 | K22: 2019-11-05 | L22: 1917 | M22: INE731H01025
A23: ADANIENT | B23: EQ | C23: 200 | D23: 201.5 | E23: 197.7 | F23: 200.55 | G23: 200 | H23: 200.9 | I23: 2326138 | J23: 464497562.1 | K23: 2019-11-05 | L23: 16451 | M23: INE423A01024
A24: ADANIGAS | B24: EQ | C24: 148.05 | D24: 148.85 | E24: 146.5 | F24: 146.75 | G24: 146.75 | H24: 147.9 | I24: 458786 | J24: 67719203.25 | K24: 2019-11-05 | L24: 3147 | M24: INE399L01023
A25: ADANIGREEN | B25: EQ | C25: 93.2 | D25: 93.6 | E25: 90.1 | F25: 90.7 | G25: 90.7 | H25: 92.65 | I25: 963016 | J25: 88138322.1 | K25: 2019-11-05 | L25: 5702 | M25: INE364U01010
A26: ADANIPORTS | B26: EQ | C26: 391.7 | D26: 392.9 | E26: 386.5 | F26: 390 | G26: 389.5 | H26: 391 | I26: 1395899 | J26: 543674301.5 | K26: 2019-11-05 | L26: 41318 | M26: INE742F01042
A27: ADANIPOWER | B27: EQ | C27: 71.6 | D27: 72.45 | E27: 69.35 | F27: 69.9 | G27: 69.65 | H27: 71.6 | I27: 9665951 | J27: 686614028.8 | K27: 2019-11-05 | L27: 32839 | M27: INE814H01011
A28: ADANITRANS | B28: EQ | C28: 286.7 | D28: 291.8 | E28: 281.7 | F28: 284.25 | G28: 283.1 | H28: 284.5 | I28: 422266 | J28: 121016639.3 | K28: 2019-11-05 | L28: 5977 | M28: INE931S01010
A29: ADFFOODS | B29: EQ | C29: 307 | D29: 315 | E29: 300.55 | F29: 303.2 | G29: 301 | H29: 307.75 | I29: 102282 | J29: 31463214.2 | K29: 2019-11-05 | L29: 3711 | M29: INE982B01019
A30: ADHUNIKIND | B30: EQ | C30: 120.85 | D30: 123.5 | E30: 117.05 | F30: 119.1 | G30: 119.6 | H30: 121.45 | I30: 49444 | J30: 5962975.05 | K30: 2019-11-05 | L30: 1220 | M30: INE452L01012
A31: ADLABS | B31: EQ | C31: 2.8 | D31: 2.8 | E31: 2.8 | F31: 2.8 | G31: 2.8 | H31: 2.7 | I31: 4525 | J31: 12670 | K31: 2019-11-05 | L31: 19 | M31: INE172N01012
A32: ADORWELD | B32: EQ | C32: 316 | D32: 322.55 | E32: 310 | F32: 316.65 | G32: 315.1 | H32: 315.4 | I32: 3151 | J32: 994403.7 | K32: 2019-11-05 | L32: 180 | M32: INE045A01017
A33: ADROITINFO | B33: BE | C33: 7.5 | D33: 7.85 | E33: 7.5 | F33: 7.7 | G33: 7.85 | H33: 7.5 | I33: 3151 | J33: 24350.85 | K33: 2019-11-05 | L33: 11 | M33: INE737B01033
A34: ADSL | B34: EQ | C34: 15.7 | D34: 15.7 | E34: 14.4 | F34: 14.85 | G34: 14.95 | H34: 14.95 | I34: 27921 | J34: 411148 | K34: 2019-11-05 | L34: 222 | M34: INE102I01027
A35: ADVANIHOTR | B35: EQ | C35: 57.75 | D35: 59 | E35: 57.75 | F35: 58.25 | G35: 58.65 | H35: 58.35 | I35: 3607 | J35: 210620.65 | K35: 2019-11-05 | L35: 278 | M35: INE199C01026
A36: ADVENZYMES | B36: EQ | C36: 191.05 | D36: 191.05 | E36: 185 | F36: 187.1 | G36: 186.2 | H36: 191.05 | I36: 233320 | J36: 43635186.55 | K36: 2019-11-05 | L36: 3116 | M36: INE837H01020
A37: AEGISCHEM | B37: EQ | C37: 170.2 | D37: 174.9 | E37: 164.55 | F37: 165.75 | G37: 165 | H37: 169.05 | I37: 232249 | J37: 39542674.4 | K37: 2019-11-05 | L37: 6657 | M37: INE208C01025
A38: AFFLE | B38: EQ | C38: 1420 | D38: 1427.9 | E38: 1377 | F38: 1388.05 | G38: 1379.9 | H38: 1417.9 | I38: 42076 | J38: 58892867.25 | K38: 2019-11-05 | L38: 3326 | M38: INE00WC01019
A39: AGARIND | B39: EQ | C39: 119.8 | D39: 119.8 | E39: 113.05 | F39: 116.05 | G39: 115.35 | H39: 115.5 | I39: 2693 | J39: 312020.1 | K39: 2019-11-05 | L39: 40 | M39: INE204E01012
A40: AGCNET | B40: BE | C40: 116 | D40: 116.45 | E40: 112.5 | F40: 112.5 | G40: 112.5 | H40: 112.55 | I40: 223 | J40: 25247.4 | K40: 2019-11-05 | L40: 10 | M40: INE676A01019
A41: AGRITECH | B41: EQ | C41: 49.65 | D41: 49.65 | E41: 47.35 | F41: 47.5 | G41: 47.55 | H41: 48.35 | I41: 4949 | J41: 237350.85 | K41: 2019-11-05 | L41: 117 | M41: INE449G01018
A42: AGROPHOS | B42: EQ | C42: 117.3 | D42: 118.2 | E42: 117.3 | F42: 118.05 | G42: 118.1 | H42: 116.95 | I42: 656580 | J42: 77308434.45 | K42: 2019-11-05 | L42: 38586 | M42: INE740V01019
A43: AHLEAST | B43: EQ | C43: 186.7 | D43: 186.7 | E43: 180 | F43: 183.95 | G43: 184 | H43: 180.2 | I43: 535 | J43: 98351.25 | K43: 2019-11-05 | L43: 40 | M43: INE926K01017
A44: AHLUCONT | B44: EQ | C44: 303.15 | D44: 305.95 | E44: 302.35 | F44: 305 | G44: 305 | H44: 306.15 | I44: 4881 | J44: 1486444.35 | K44: 2019-11-05 | L44: 522 | M44: INE758C01029
A45: AHLWEST | B45: EQ | C45: 273.8 | D45: 283 | E45: 273.8 | F45: 275.75 | G45: 275 | H45: 273.8 | I45: 726 | J45: 200983.45 | K45: 2019-11-05 | L45: 191 | M45: INE915K01010
A46: AIAENG | B46: EQ | C46: 1677.4 | D46: 1735 | E46: 1662.1 | F46: 1718.9 | G46: 1726 | H46: 1677.4 | I46: 7702 | J46: 13147470.05 | K46: 2019-11-05 | L46: 1304 | M46: INE212H01026
A47: AIONJSW | B47: EQ | C47: 10 | D47: 10.15 | E47: 9.9 | F47: 9.9 | G47: 9.9 | H47: 10 | I47: 88240 | J47: 880971.7 | K47: 2019-11-05 | L47: 128 | M47: INE743C01021
A48: AIRAN | B48: EQ | C48: 13 | D48: 13 | E48: 12.55 | F48: 12.55 | G48: 12.55 | H48: 12.75 | I48: 2659 | J48: 33635.25 | K48: 2019-11-05 | L48: 21 | M48: INE645W01026
A49: AJANTPHARM | B49: EQ | C49: 1007 | D49: 1029.65 | E49: 991 | F49: 1002.3 | G49: 1004 | H49: 1004.5 | I49: 192532 | J49: 194396650.9 | K49: 2019-11-05 | L49: 9265 | M49: INE031B01049
A50: AJMERA | B50: EQ | C50: 121.5 | D50: 123.7 | E50: 120 | F50: 120.45 | G50: 120.25 | H50: 121.5 | I50: 18139 | J50: 2209707.3 | K50: 2019-11-05 | L50: 626 | M50: INE298G01027
A51: AKASH | B51: EQ | C51: 65.2 | D51: 65.2 | E51: 61.1 | F51: 61.1 | G51: 61.1 | H51: 62.15 | I51: 2607 | J51: 163325.35 | K51: 2019-11-05 | L51: 13 | M51: INE737W01013
A52: AKSHARCHEM | B52: EQ | C52: 216 | D52: 222.35 | E52: 210.7 | F52: 211.55 | G52: 214 | H52: 215.1 | I52: 2258 | J52: 483874.6 | K52: 2019-11-05 | L52: 117 | M52: INE542B01011
A53: AKSHOPTFBR | B53: EQ | C53: 8.25 | D53: 8.25 | E53: 7.7 | F53: 7.95 | G53: 7.9 | H53: 7.9 | I53: 668418 | J53: 5358948.8 | K53: 2019-11-05 | L53: 1061 | M53: INE523B01011
A54: AKZOINDIA | B54: EQ | C54: 2150 | D54: 2270 | E54: 2115 | F54: 2214.65 | G54: 2245 | H54: 2146.2 | I54: 36886 | J54: 80201233.95 | K54: 2019-11-05 | L54: 5987 | M54: INE133A01011
A55: ALANKIT | B55: EQ | C55: 17.35 | D55: 17.35 | E55: 15.75 | F55: 17.2 | G55: 17 | H55: 16.55 | I55: 391622 | J55: 6588847.05 | K55: 2019-11-05 | L55: 1315 | M55: INE914E01040
A56: ALBERTDAVD | B56: EQ | C56: 408.6 | D56: 414 | E56: 405.75 | F56: 407.05 | G56: 409.9 | H56: 412.3 | I56: 3799 | J56: 1552822.95 | K56: 2019-11-05 | L56: 167 | M56: INE155C01010
A57: ALBK | B57: EQ | C57: 28 | D57: 28.05 | E57: 27.05 | F57: 27.3 | G57: 27.3 | H57: 27.55 | I57: 985986 | J57: 27305854.95 | K57: 2019-11-05 | L57: 3124 | M57: INE428A01015
A58: ALCHEM | B58: BE | C58: 0.85 | D58: 0.85 | E58: 0.8 | F58: 0.85 | G58: 0.85 | H58: 0.8 | I58: 4108 | J58: 3439.5 | K58: 2019-11-05 | L58: 14 | M58: INE964B01033
A59: ALEMBICLTD | B59: EQ | C59: 49.95 | D59: 51.7 | E59: 49.25 | F59: 50.2 | G59: 50.45 | H59: 49.25 | I59: 237300 | J59: 11965637.15 | K59: 2019-11-05 | L59: 2466 | M59: INE426A01027
A60: ALICON | B60: EQ | C60: 392 | D60: 392 | E60: 386.2 | F60: 389.5 | G60: 389.45 | H60: 388.6 | I60: 506 | J60: 197056.7 | K60: 2019-11-05 | L60: 30 | M60: INE062D01024
A61: ALKALI | B61: EQ | C61: 54 | D61: 59 | E61: 52.5 | F61: 52.85 | G61: 53.15 | H61: 51.6 | I61: 160295 | J61: 8854876.4 | K61: 2019-11-05 | L61: 1750 | M61: INE773I01017
A62: ALKEM | B62: EQ | C62: 2029.8 | D62: 2050 | E62: 2016.35 | F62: 2048.75 | G62: 2049.95 | H62: 2015.95 | I62: 64950 | J62: 132294010.7 | K62: 2019-11-05 | L62: 3482 | M62: INE540L01014
A63: ALKYLAMINE | B63: EQ | C63: 913.95 | D63: 914 | E63: 882.1 | F63: 889.3 | G63: 890 | H63: 891.6 | I63: 4967 | J63: 4425050.3 | K63: 2019-11-05 | L63: 267 | M63: INE150B01021
A64: ALLCARGO | B64: EQ | C64: 110.5 | D64: 110.5 | E64: 105.7 | F64: 106.45 | G64: 106.2 | H64: 110.3 | I64: 142282 | J64: 15275525.6 | K64: 2019-11-05 | L64: 2419 | M64: INE418H01029
A65: ALLSEC | B65: EQ | C65: 298 | D65: 301.9 | E65: 288.65 | F65: 290.65 | G65: 291 | H65: 298 | I65: 2253 | J65: 661459.05 | K65: 2019-11-05 | L65: 153 | M65: INE835G01018
A66: ALMONDZ | B66: EQ | C66: 9.9 | D66: 10.05 | E66: 9.9 | F66: 10.05 | G66: 10.05 | H66: 10.05 | I66: 3036 | J66: 30335.5 | K66: 2019-11-05 | L66: 5 | M66: INE326B01027
A67: ALOKTEXT | B67: EQ | C67: 1.65 | D67: 1.65 | E67: 1.65 | F67: 1.65 | G67: 1.65 | H67: 1.6 | I67: 208959 | J67: 344782.35 | K67: 2019-11-05 | L67: 144 | M67: INE270A01011
A68: ALPA | B68: EQ | C68: 18.5 | D68: 19 | E68: 16.95 | F68: 17.05 | G68: 16.95 | H68: 17.8 | I68: 48808 | J68: 849562.3 | K68: 2019-11-05 | L68: 421 | M68: INE385I01010
A69: ALPHAGEO | B69: EQ | C69: 189.5 | D69: 193.15 | E69: 185.1 | F69: 186.55 | G69: 185.1 | H69: 188.4 | I69: 4192 | J69: 790301.25 | K69: 2019-11-05 | L69: 212 | M69: INE137C01018
A70: ALPSINDUS | B70: BE | C70: 0.45 | D70: 0.45 | E70: 0.4 | F70: 0.45 | G70: 0.45 | H70: 0.4 | I70: 17459 | J70: 7836.4 | K70: 2019-11-05 | L70: 17 | M70: INE093B01015
A71: AMARAJABAT | B71: EQ | C71: 658 | D71: 666.9 | E71: 652.05 | F71: 657.35 | G71: 658.5 | H71: 658.6 | I71: 435964 | J71: 287343466 | K71: 2019-11-05 | L71: 15216 | M71: INE885A01032
A72: AMBER | B72: EQ | C72: 1014.8 | D72: 1014.8 | E72: 984 | F72: 988.85 | G72: 989.4 | H72: 1007 | I72: 16884 | J72: 16799289.15 | K72: 2019-11-05 | L72: 1638 | M72: INE371P01015
A73: AMBIKCO | B73: EQ | C73: 911.25 | D73: 919.15 | E73: 898 | F73: 902.3 | G73: 899 | H73: 911.25 | I73: 4482 | J73: 4044730.7 | K73: 2019-11-05 | L73: 420 | M73: INE540G01014
A74: AMBUJACEM | B74: EQ | C74: 203.85 | D74: 204.35 | E74: 200.5 | F74: 201.55 | G74: 201.8 | H74: 203.35 | I74: 2190913 | J74: 443062699 | K74: 2019-11-05 | L74: 26389 | M74: INE079A01024
A75: AMDIND | B75: EQ | C75: 16.9 | D75: 18 | E75: 16.7 | F75: 17.1 | G75: 17.1 | H75: 16.9 | I75: 7687 | J75: 133912.3 | K75: 2019-11-05 | L75: 105 | M75: INE005I01014
A76: AMJLAND | B76: EQ | C76: 18.8 | D76: 19.25 | E76: 17.8 | F76: 18.8 | G76: 18.8 | H76: 19 | I76: 8392 | J76: 154463.15 | K76: 2019-11-05 | L76: 54 | M76: INE606A01024
A77: AMRUTANJAN | B77: EQ | C77: 449.2 | D77: 468.6 | E77: 445 | F77: 458.7 | G77: 458.7 | H77: 448.2 | I77: 105768 | J77: 48495434.25 | K77: 2019-11-05 | L77: 8653 | M77: INE098F01031
A78: ANANTRAJ | B78: EQ | C78: 31.5 | D78: 31.7 | E78: 31.05 | F78: 31.25 | G78: 31.3 | H78: 31.35 | I78: 109115 | J78: 3414163.9 | K78: 2019-11-05 | L78: 1878 | M78: INE242C01024
A79: ANDHRABANK | B79: EQ | C79: 18.5 | D79: 18.6 | E79: 18.15 | F79: 18.15 | G79: 18.25 | H79: 18.45 | I79: 668575 | J79: 12234627.65 | K79: 2019-11-05 | L79: 1787 | M79: INE434A01013
A80: ANDHRACEMT | B80: BE | C80: 2.5 | D80: 2.55 | E80: 2.45 | F80: 2.55 | G80: 2.55 | H80: 2.45 | I80: 22566 | J80: 57471.65 | K80: 2019-11-05 | L80: 41 | M80: INE666E01012
A81: ANDHRSUGAR | B81: EQ | C81: 280.7 | D81: 283.05 | E81: 274.05 | F81: 279.2 | G81: 279.6 | H81: 279.2 | I81: 31137 | J81: 8705143.4 | K81: 2019-11-05 | L81: 1250 | M81: INE715B01013
A82: ANIKINDS | B82: EQ | C82: 8.2 | D82: 8.2 | E82: 8.2 | F82: 8.2 | G82: 8.2 | H82: 7.85 | I82: 1961 | J82: 16080.2 | K82: 2019-11-05 | L82: 11 | M82: INE087B01017
A83: ANKITMETAL | B83: BE | C83: 0.45 | D83: 0.55 | E83: 0.45 | F83: 0.45 | G83: 0.45 | H83: 0.5 | I83: 25083 | J83: 13319.55 | K83: 2019-11-05 | L83: 25 | M83: INE106I01010
A84: ANSALAPI | B84: EQ | C84: 4.85 | D84: 4.85 | E84: 4.65 | F84: 4.85 | G84: 4.85 | H84: 4.65 | I84: 19285 | J84: 91696.9 | K84: 2019-11-05 | L84: 54 | M84: INE436A01026
A85: ANSALHSG | B85: EQ | C85: 5.45 | D85: 5.5 | E85: 5.15 | F85: 5.3 | G85: 5.35 | H85: 5.35 | I85: 16922 | J85: 90572.15 | K85: 2019-11-05 | L85: 198 | M85: INE880B01015
A86: ANTGRAPHIC | B86: BE | C86: 0.65 | D86: 0.7 | E86: 0.65 | F86: 0.7 | G86: 0.7 | H86: 0.7 | I86: 22480 | J86: 14665.85 | K86: 2019-11-05 | L86: 21 | M86: INE414B01021
A87: ANUP | B87: EQ | C87: 485 | D87: 492.65 | E87: 472 | F87: 474.95 | G87: 478 | H87: 480.45 | I87: 8746 | J87: 4173788.7 | K87: 2019-11-05 | L87: 661 | M87: INE294Z01018
A88: APARINDS | B88: EQ | C88: 510 | D88: 531.85 | E88: 502 | F88: 530.55 | G88: 531.5 | H88: 519.55 | I88: 6220 | J88: 3261846.15 | K88: 2019-11-05 | L88: 590 | M88: INE372A01015
A89: APCL | B89: EQ | C89: 152.8 | D89: 159.05 | E89: 150.1 | F89: 154.55 | G89: 155.2 | H89: 149.75 | I89: 15801 | J89: 2453286.5 | K89: 2019-11-05 | L89: 421 | M89: INE071F01012
A90: APCOTEXIND | B90: EQ | C90: 170.9 | D90: 173.5 | E90: 161.55 | F90: 164.15 | G90: 165.9 | H90: 169.9 | I90: 36521 | J90: 6109074.15 | K90: 2019-11-05 | L90: 946 | M90: INE116A01032
A91: APEX | B91: EQ | C91: 234 | D91: 237 | E91: 228.35 | F91: 229.65 | G91: 229.5 | H91: 236.25 | I91: 37569 | J91: 8732921.9 | K91: 2019-11-05 | L91: 1431 | M91: INE346W01013
A92: APLAPOLLO | B92: EQ | C92: 1524 | D92: 1524 | E92: 1487.55 | F92: 1497.3 | G92: 1489.3 | H92: 1505.55 | I92: 112676 | J92: 169218694.7 | K92: 2019-11-05 | L92: 1035 | M92: INE702C01019
A93: APLLTD | B93: EQ | C93: 581.7 | D93: 584 | E93: 571.6 | F93: 579.8 | G93: 579.15 | H93: 579.2 | I93: 215675 | J93: 124969334.2 | K93: 2019-11-05 | L93: 10306 | M93: INE901L01018
A94: APOLLO | B94: EQ | C94: 97.5 | D94: 97.95 | E94: 88 | F94: 88.6 | G94: 88 | H94: 95.3 | I94: 224565 | J94: 20530132.55 | K94: 2019-11-05 | L94: 3255 | M94: INE713T01010
A95: APOLLOHOSP | B95: EQ | C95: 1423.5 | D95: 1446.8 | E95: 1412.5 | F95: 1414.95 | G95: 1415.5 | H95: 1414.75 | I95: 620983 | J95: 886238819.1 | K95: 2019-11-05 | L95: 26334 | M95: INE437A01024
A96: APOLLOTYRE | B96: EQ | C96: 185.4 | D96: 187.65 | E96: 177.95 | F96: 179.85 | G96: 179.3 | H96: 185.55 | I96: 8595442 | J96: 1573706875 | K96: 2019-11-05 | L96: 55040 | M96: INE438A01022
A97: APOLSINHOT | B97: EQ | C97: 796.95 | D97: 797 | E97: 782 | F97: 784.05 | G97: 783 | H97: 782.65 | I97: 1750 | J97: 1377482.2 | K97: 2019-11-05 | L97: 74 | M97: INE451F01024
A98: APTECHT | B98: EQ | C98: 179.2 | D98: 193.45 | E98: 175.6 | F98: 178.4 | G98: 177.9 | H98: 179.45 | I98: 880502 | J98: 163566797.3 | K98: 2019-11-05 | L98: 12861 | M98: INE266F01018
A99: ARCHIDPLY | B99: EQ | C99: 27.65 | D99: 27.9 | E99: 27 | F99: 27.35 | G99: 27.15 | H99: 27.8 | I99: 9323 | J99: 255657.15 | K99: 2019-11-05 | L99: 161 | M99: INE877I01016
A100: ARCHIES | B100: BE | C100: 18.75 | D100: 18.85 | E100: 18.5 | F100: 18.75 | G100: 18.8 | H100: 18.75 | I100: 22652 | J100: 421024.15 | K100: 2019-11-05 | L100: 69 | M100: INE731A01020
A101: ARCOTECH | B101: BE | C101: 1.9 | D101: 1.9 | E101: 1.9 | F101: 1.9 | G101: 1.9 | H101: 1.85 | I101: 10975 | J101: 20852.5 | K101: 2019-11-05 | L101: 28 | M101: INE574I01035
A102: ARIES | B102: EQ | C102: 66.6 | D102: 66.9 | E102: 64.85 | F102: 65.55 | G102: 65 | H102: 65.45 | I102: 37449 | J102: 2461667.25 | K102: 2019-11-05 | L102: 582 | M102: INE298I01015
A103: ARIHANT | B103: EQ | C103: 19.95 | D103: 19.95 | E103: 16.05 | F103: 17.6 | G103: 17.65 | H103: 18.1 | I103: 1918 | J103: 34905.95 | K103: 2019-11-05 | L103: 22 | M103: INE413D01011
A104: ARIHANTSUP | B104: BE | C104: 24.7 | D104: 26.45 | E104: 24.5 | F104: 26.2 | G104: 24.95 | H104: 25.75 | I104: 197594 | J104: 5076422.5 | K104: 2019-11-05 | L104: 84 | M104: INE643K01018
A105: ARMANFIN | B105: EQ | C105: 553.65 | D105: 574.9 | E105: 549.7 | F105: 569.15 | G105: 574 | H105: 553.7 | I105: 4788 | J105: 2686291.45 | K105: 2019-11-05 | L105: 327 | M105: INE109C01017
A106: AROGRANITE | B106: EQ | C106: 42.55 | D106: 42.55 | E106: 40.8 | F106: 41 | G106: 41.3 | H106: 42.05 | I106: 2587 | J106: 107093.05 | K106: 2019-11-05 | L106: 97 | M106: INE210C01013
A107: ARROWGREEN | B107: EQ | C107: 52.95 | D107: 53 | E107: 50.6 | F107: 52.95 | G107: 53 | H107: 52.55 | I107: 5361 | J107: 282594.85 | K107: 2019-11-05 | L107: 337 | M107: INE570D01018
A108: ARROWTEX | B108: EQ | C108: 9.35 | D108: 10 | E108: 9.35 | F108: 9.65 | G108: 9.65 | H108: 10.1 | I108: 2255 | J108: 22025.95 | K108: 2019-11-05 | L108: 39 | M108: INE933J01015
A109: ARSHIYA | B109: EQ | C109: 17.3 | D109: 18 | E109: 17 | F109: 17.4 | G109: 17.6 | H109: 17.8 | I109: 24884 | J109: 434999.55 | K109: 2019-11-05 | L109: 78 | M109: INE968D01022
A110: ARSSINFRA | B110: EQ | C110: 26 | D110: 26.75 | E110: 24.55 | F110: 25.3 | G110: 25.05 | H110: 25.75 | I110: 24242 | J110: 605759.4 | K110: 2019-11-05 | L110: 119 | M110: INE267I01010
A111: ARVIND | B111: EQ | C111: 54.95 | D111: 54.95 | E111: 51.6 | F111: 52.8 | G111: 52.55 | H111: 54.85 | I111: 1117749 | J111: 59628136.85 | K111: 2019-11-05 | L111: 8024 | M111: INE034A01011
A112: ARVINDFASN | B112: EQ | C112: 437 | D112: 443.2 | E112: 436.5 | F112: 438 | G112: 437.95 | H112: 440.95 | I112: 13289 | J112: 5841277.4 | K112: 2019-11-05 | L112: 3390 | M112: INE955V01021
A113: ARVSMART | B113: EQ | C113: 101.05 | D113: 105 | E113: 98.25 | F113: 103.45 | G113: 103.35 | H113: 102.75 | I113: 8910 | J113: 919667.3 | K113: 2019-11-05 | L113: 312 | M113: INE034S01021
A114: ASAHIINDIA | B114: EQ | C114: 208 | D114: 210.25 | E114: 204.05 | F114: 204.75 | G114: 205 | H114: 208.5 | I114: 7893 | J114: 1631845.25 | K114: 2019-11-05 | L114: 878 | M114: INE439A01020
A115: ASAHISONG | B115: EQ | C115: 159.9 | D115: 159.9 | E115: 152 | F115: 152.9 | G115: 152.1 | H115: 157.95 | I115: 3480 | J115: 536621.05 | K115: 2019-11-05 | L115: 171 | M115: INE228I01012
A116: ASAL | B116: EQ | C116: 34.75 | D116: 35 | E116: 33.5 | F116: 33.85 | G116: 34 | H116: 33.65 | I116: 7082 | J116: 242095.75 | K116: 2019-11-05 | L116: 60 | M116: INE900C01027
A117: ASHAPURMIN | B117: BE | C117: 30.5 | D117: 32.7 | E117: 30.3 | F117: 30.65 | G117: 30.55 | H117: 31.85 | I117: 29575 | J117: 916895.9 | K117: 2019-11-05 | L117: 98 | M117: INE348A01023
A118: ASHIANA | B118: EQ | C118: 103.2 | D118: 105.5 | E118: 101.7 | F118: 103.75 | G118: 104.3 | H118: 101.2 | I118: 49708 | J118: 5142511.35 | K118: 2019-11-05 | L118: 767 | M118: INE365D01021
A119: ASHIMASYN | B119: EQ | C119: 8.15 | D119: 8.15 | E119: 7.9 | F119: 8.1 | G119: 8.1 | H119: 8 | I119: 737 | J119: 5870.05 | K119: 2019-11-05 | L119: 37 | M119: INE440A01010
A120: ASHOKA | B120: EQ | C120: 100.5 | D120: 101.3 | E120: 94.5 | F120: 95.9 | G120: 95.85 | H120: 100.45 | I120: 518626 | J120: 50546025.65 | K120: 2019-11-05 | L120: 7776 | M120: INE442H01029
A121: ASHOKLEY | B121: EQ | C121: 75.15 | D121: 76.65 | E121: 74.7 | F121: 74.95 | G121: 74.95 | H121: 75.2 | I121: 15228670 | J121: 1149647411 | K121: 2019-11-05 | L121: 51878 | M121: INE208A01029
A122: ASIANHOTNR | B122: EQ | C122: 102.8 | D122: 103.65 | E122: 99 | F122: 101.85 | G122: 103.65 | H122: 103.4 | I122: 388 | J122: 39035.8 | K122: 2019-11-05 | L122: 42 | M122: INE363A01022
A123: ASIANPAINT | B123: EQ | C123: 1780 | D123: 1797.8 | E123: 1767.6 | F123: 1793.85 | G123: 1794.95 | H123: 1785.9 | I123: 1251974 | J123: 2230948345 | K123: 2019-11-05 | L123: 47682 | M123: INE021A01026
A124: ASIANTILES | B124: EQ | C124: 239.5 | D124: 239.8 | E124: 226.1 | F124: 228.2 | G124: 227.2 | H124: 237.1 | I124: 49019 | J124: 11324569.05 | K124: 2019-11-05 | L124: 3356 | M124: INE022I01019
A125: ASPINWALL | B125: EQ | C125: 144 | D125: 146 | E125: 137.55 | F125: 144 | G125: 145.7 | H125: 146 | I125: 5941 | J125: 850756.1 | K125: 2019-11-05 | L125: 51 | M125: INE991I01015
A126: ASTEC | B126: EQ | C126: 357.95 | D126: 360.7 | E126: 353 | F126: 355.6 | G126: 357 | H126: 357.15 | I126: 2716 | J126: 968272.2 | K126: 2019-11-05 | L126: 176 | M126: INE563J01010
A127: ASTERDM | B127: EQ | C127: 143.85 | D127: 144.75 | E127: 138 | F127: 140.8 | G127: 141 | H127: 142.45 | I127: 96263 | J127: 13583328.6 | K127: 2019-11-05 | L127: 4161 | M127: INE914M01019
A128: ASTRAL | B128: EQ | C128: 1088.9 | D128: 1097.95 | E128: 1055.1 | F128: 1059.95 | G128: 1059.9 | H128: 1089.5 | I128: 306566 | J128: 328604740.6 | K128: 2019-11-05 | L128: 15837 | M128: INE006I01046
A129: ASTRAMICRO | B129: EQ | C129: 76.4 | D129: 76.7 | E129: 72.9 | F129: 76.1 | G129: 76.15 | H129: 75.95 | I129: 99072 | J129: 7519547.9 | K129: 2019-11-05 | L129: 668 | M129: INE386C01029
A130: ASTRAZEN | B130: EQ | C130: 2639.8 | D130: 2657 | E130: 2560.2 | F130: 2582.95 | G130: 2562.1 | H130: 2632.1 | I130: 10651 | J130: 27645571.75 | K130: 2019-11-05 | L130: 1993 | M130: INE203A01020
A131: ASTRON | B131: EQ | C131: 41.45 | D131: 41.45 | E131: 41.45 | F131: 41.45 | G131: 41.45 | H131: 43.6 | I131: 320533 | J131: 13286092.85 | K131: 2019-11-05 | L131: 311 | M131: INE646X01014
A132: ATFL | B132: EQ | C132: 619.85 | D132: 631 | E132: 603.55 | F132: 616.55 | G132: 616.55 | H132: 619.85 | I132: 9796 | J132: 6027759.6 | K132: 2019-11-05 | L132: 779 | M132: INE209A01019
A133: ATLANTA | B133: BE | C133: 6.9 | D133: 7 | E133: 6.6 | F133: 7 | G133: 7 | H133: 6.85 | I133: 11353 | J133: 77204 | K133: 2019-11-05 | L133: 44 | M133: INE285H01022
A134: ATUL | B134: EQ | C134: 4286.7 | D134: 4290.85 | E134: 4240 | F134: 4254.95 | G134: 4264 | H134: 4253.9 | I134: 5194 | J134: 22132819.25 | K134: 2019-11-05 | L134: 1246 | M134: INE100A01010
A135: ATULAUTO | B135: EQ | C135: 228 | D135: 228.4 | E135: 220.2 | F135: 221.45 | G135: 221.8 | H135: 226.75 | I135: 14317 | J135: 3205845.35 | K135: 2019-11-05 | L135: 614 | M135: INE951D01028
A136: AUBANK | B136: EQ | C136: 690 | D136: 691.2 | E136: 671 | F136: 674.75 | G136: 672 | H136: 686.8 | I136: 195701 | J136: 134188217.2 | K136: 2019-11-05 | L136: 5457 | M136: INE949L01017
A137: AURIONPRO | B137: EQ | C137: 72.35 | D137: 77.5 | E137: 72.3 | F137: 77 | G137: 77 | H137: 74.95 | I137: 4098 | J137: 311690.35 | K137: 2019-11-05 | L137: 109 | M137: INE132H01018
A138: AUROPHARMA | B138: EQ | C138: 478 | D138: 485.5 | E138: 470.4 | F138: 473.9 | G138: 473.55 | H138: 477.65 | I138: 3270484 | J138: 1560162156 | K138: 2019-11-05 | L138: 53140 | M138: INE406A01037
A139: AUSOMENT | B139: EQ | C139: 26.65 | D139: 29.5 | E139: 26.65 | F139: 28.65 | G139: 28.7 | H139: 27.5 | I139: 244 | J139: 6568.35 | K139: 2019-11-05 | L139: 40 | M139: INE218C01016
A140: AUTOAXLES | B140: EQ | C140: 884 | D140: 884 | E140: 852.25 | F140: 858.3 | G140: 855.05 | H140: 934.9 | I140: 53535 | J140: 46415145.35 | K140: 2019-11-05 | L140: 4321 | M140: INE449A01011
A141: AUTOIND | B141: EQ | C141: 24.55 | D141: 24.65 | E141: 23.55 | F141: 24.15 | G141: 24.65 | H141: 24.55 | I141: 11685 | J141: 284621.05 | K141: 2019-11-05 | L141: 114 | M141: INE718H01014
A142: AUTOLITIND | B142: EQ | C142: 21.5 | D142: 23.35 | E142: 21.5 | F142: 22.85 | G142: 22.85 | H142: 22.05 | I142: 3720 | J142: 84211.05 | K142: 2019-11-05 | L142: 91 | M142: INE448A01013
A143: AVADHSUGAR | B143: EQ | C143: 312.9 | D143: 314.35 | E143: 294.4 | F143: 298.8 | G143: 298.2 | H143: 311.8 | I143: 118247 | J143: 35822788.8 | K143: 2019-11-05 | L143: 3122 | M143: INE349W01017
A144: AVANTIFEED | B144: EQ | C144: 466.25 | D144: 466.25 | E144: 455.05 | F144: 462.1 | G144: 462 | H144: 463.85 | I144: 274561 | J144: 126638633.5 | K144: 2019-11-05 | L144: 16068 | M144: INE871C01038
A145: AVTNPL | B145: EQ | C145: 25 | D145: 25 | E145: 23.9 | F145: 24.05 | G145: 24.4 | H145: 24.75 | I145: 23778 | J145: 581347.2 | K145: 2019-11-05 | L145: 231 | M145: INE488D01021
A146: AXISBANK | B146: EQ | C146: 741.8 | D146: 745.6 | E146: 730.6 | F146: 738.05 | G146: 735.8 | H146: 742.6 | I146: 7306253 | J146: 5391338102 | K146: 2019-11-05 | L146: 168813 | M146: INE238A01034
A147: AXISCADES | B147: EQ | C147: 69 | D147: 70.4 | E147: 67.65 | F147: 68.6 | G147: 68.7 | H147: 68.7 | I147: 58454 | J147: 4016579.4 | K147: 2019-11-05 | L147: 547 | M147: INE555B01013
A148: AXISGOLD | B148: EQ | C148: 3396.25 | D148: 3410 | E148: 3390 | F148: 3395.2 | G148: 3398.95 | H148: 3396.25 | I148: 231 | J148: 784910.8 | K148: 2019-11-05 | L148: 89 | M148: INF846K01347
A149: AXISNIFTY | B149: EQ | C149: 1227.28 | D149: 1235.5 | E149: 1227.28 | F149: 1233.34 | G149: 1233.66 | H149: 1230 | I149: 53 | J149: 65352.52 | K149: 2019-11-05 | L149: 15 | M149: INF846K01ZL0
A150: AYMSYNTEX | B150: EQ | C150: 32.2 | D150: 34.2 | E150: 31.5 | F150: 33.2 | G150: 34.15 | H150: 32 | I150: 7884 | J150: 256498.35 | K150: 2019-11-05 | L150: 48 | M150: INE193B01039
A151: BAGFILMS | B151: EQ | C151: 1.85 | D151: 1.85 | E151: 1.75 | F151: 1.85 | G151: 1.85 | H151: 1.8 | I151: 184168 | J151: 334512.9 | K151: 2019-11-05 | L151: 153 | M151: INE116D01028
A152: BAJAJ-AUTO | B152: EQ | C152: 3225 | D152: 3255.7 | E152: 3191.15 | F152: 3246.3 | G152: 3252 | H152: 3212.05 | I152: 305513 | J152: 988291016.5 | K152: 2019-11-05 | L152: 29376 | M152: INE917I01010
A153: BAJAJCON | B153: EQ | C153: 257.7 | D153: 257.95 | E153: 247 | F153: 251.1 | G153: 251.05 | H153: 255.4 | I153: 158545 | J153: 39878715.4 | K153: 2019-11-05 | L153: 3725 | M153: INE933K01021
A154: BAJAJELEC | B154: EQ | C154: 390.9 | D154: 394.65 | E154: 380 | F154: 381.9 | G154: 381.35 | H154: 389.25 | I154: 71837 | J154: 27918994.15 | K154: 2019-11-05 | L154: 2962 | M154: INE193E01025
A155: BAJAJFINSV | B155: EQ | C155: 8800 | D155: 8887.75 | E155: 8655.4 | F155: 8845.75 | G155: 8839.9 | H155: 8706.6 | I155: 598420 | J155: 5251865873 | K155: 2019-11-05 | L155: 66393 | M155: INE918I01018
A156: BAJAJHIND | B156: EQ | C156: 7.1 | D156: 7.1 | E156: 6.65 | F156: 6.7 | G156: 6.7 | H156: 7 | I156: 1160050 | J156: 7847401.3 | K156: 2019-11-05 | L156: 1374 | M156: INE306A01021
A157: BAJAJHLDNG | B157: EQ | C157: 3700 | D157: 3745 | E157: 3695.1 | F157: 3728.05 | G157: 3740 | H157: 3708.95 | I157: 17767 | J157: 66102050.6 | K157: 2019-11-05 | L157: 4823 | M157: INE118A01012
A158: BAJFINANCE | B158: EQ | C158: 4172 | D158: 4255 | E158: 4135 | F158: 4227.8 | G158: 4250.25 | H158: 4113 | I158: 2934652 | J158: 1.229957325e+10 | K158: 2019-11-05 | L158: 129389 | M158: INE296A01024
A159: BALAJITELE | B159: EQ | C159: 54.5 | D159: 54.5 | E159: 52.3 | F159: 53.7 | G159: 54.1 | H159: 54.2 | I159: 56193 | J159: 2993086.7 | K159: 2019-11-05 | L159: 885 | M159: INE794B01026
A160: BALAMINES | B160: EQ | C160: 325.95 | D160: 333.95 | E160: 321.5 | F160: 331.75 | G160: 332 | H160: 322.9 | I160: 29776 | J160: 9842682 | K160: 2019-11-05 | L160: 1161 | M160: INE050E01027
A161: BALAXI | B161: EQ | C161: 81.45 | D161: 81.45 | E161: 77.5 | F161: 81.1 | G161: 81.2 | H161: 79.1 | I161: 457 | J161: 37134.05 | K161: 2019-11-05 | L161: 15 | M161: INE618N01014
A162: BALKRISHNA | B162: BE | C162: 19 | D162: 19.8 | E162: 18.3 | F162: 18.75 | G162: 18.75 | H162: 19.1 | I162: 17760 | J162: 336201.7 | K162: 2019-11-05 | L162: 46 | M162: INE875R01011
A163: BALKRISIND | B163: EQ | C163: 871.5 | D163: 890.5 | E163: 849.05 | F163: 856.9 | G163: 858 | H163: 866.15 | I163: 750313 | J163: 652567937.2 | K163: 2019-11-05 | L163: 19886 | M163: INE787D01026
A164: BALLARPUR | B164: EQ | C164: 0.6 | D164: 0.6 | E164: 0.55 | F164: 0.6 | G164: 0.6 | H164: 0.55 | I164: 3061796 | J164: 1802454.9 | K164: 2019-11-05 | L164: 364 | M164: INE294A01037
A165: BALMLAWRIE | B165: EQ | C165: 203 | D165: 204.4 | E165: 197.5 | F165: 198.6 | G165: 198.35 | H165: 202.35 | I165: 134396 | J165: 26863524.85 | K165: 2019-11-05 | L165: 2577 | M165: INE164A01016
A166: BALPHARMA | B166: EQ | C166: 48.5 | D166: 48.9 | E166: 46 | F166: 47.1 | G166: 47.4 | H166: 46.9 | I166: 27574 | J166: 1309558.8 | K166: 2019-11-05 | L166: 458 | M166: INE083D01012
A167: BALRAMCHIN | B167: EQ | C167: 161.1 | D167: 163 | E167: 156 | F167: 158.3 | G167: 158 | H167: 161.8 | I167: 709143 | J167: 113137481.8 | K167: 2019-11-05 | L167: 8705 | M167: INE119A01028
A168: BANARBEADS | B168: EQ | C168: 34.6 | D168: 36.95 | E168: 34.1 | F168: 34.5 | G168: 34.15 | H168: 35.55 | I168: 5317 | J168: 185004.3 | K168: 2019-11-05 | L168: 44 | M168: INE655B01011
A169: BANARISUG | B169: EQ | C169: 1220 | D169: 1249.9 | E169: 1180 | F169: 1185.9 | G169: 1180 | H169: 1224.85 | I169: 593 | J169: 725696.6 | K169: 2019-11-05 | L169: 120 | M169: INE459A01010
A170: BANCOINDIA | B170: EQ | C170: 114.5 | D170: 116.35 | E170: 111.65 | F170: 111.9 | G170: 112 | H170: 115.5 | I170: 58178 | J170: 6617476.8 | K170: 2019-11-05 | L170: 1082 | M170: INE213C01025
A171: BANDHANBNK | B171: EQ | C171: 590.9 | D171: 592.9 | E171: 580 | F171: 587 | G171: 586.75 | H171: 590 | I171: 828572 | J171: 486317010.6 | K171: 2019-11-05 | L171: 52601 | M171: INE545U01014
A172: BANG | B172: EQ | C172: 18.35 | D172: 19.1 | E172: 17.5 | F172: 18 | G172: 18 | H172: 18.35 | I172: 10707 | J172: 196212.9 | K172: 2019-11-05 | L172: 296 | M172: INE863I01016
A173: BANKBARODA | B173: EQ | C173: 102.15 | D173: 103.95 | E173: 101.3 | F173: 101.9 | G173: 101.7 | H173: 101.95 | I173: 32355920 | J173: 3319531031 | K173: 2019-11-05 | L173: 81103 | M173: INE028A01039
A174: BANKBEES | B174: EQ | C174: 3101 | D174: 3112.83 | E174: 3077.09 | F174: 3085.95 | G174: 3080.15 | H174: 3101.36 | I174: 3985 | J174: 12293529.03 | K174: 2019-11-05 | L174: 727 | M174: INF732E01078
A175: BANKINDIA | B175: EQ | C175: 71.35 | D175: 72.65 | E175: 70.1 | F175: 70.4 | G175: 70.5 | H175: 71.35 | I175: 9819361 | J175: 700637929.8 | K175: 2019-11-05 | L175: 23761 | M175: INE084A01016
A176: BANSWRAS | B176: EQ | C176: 69.6 | D176: 69.6 | E176: 66.65 | F176: 67.95 | G176: 67.55 | H176: 67.55 | I176: 13763 | J176: 932492.5 | K176: 2019-11-05 | L176: 82 | M176: INE629D01012
A177: BARTRONICS | B177: BE | C177: 1.45 | D177: 1.45 | E177: 1.45 | F177: 1.45 | G177: 1.45 | H177: 1.4 | I177: 10265 | J177: 14884.25 | K177: 2019-11-05 | L177: 13 | M177: INE855F01034
A178: BASF | B178: EQ | C178: 1000 | D178: 1040 | E178: 997.5 | F178: 1009.5 | G178: 1009 | H178: 995.75 | I178: 35558 | J178: 36067242 | K178: 2019-11-05 | L178: 2014 | M178: INE373A01013
A179: BASML | B179: EQ | C179: 148 | D179: 151 | E179: 143 | F179: 148.55 | G179: 145.1 | H179: 150 | I179: 11623 | J179: 1724248.4 | K179: 2019-11-05 | L179: 206 | M179: INE186H01014
A180: BATAINDIA | B180: EQ | C180: 1730.55 | D180: 1741.9 | E180: 1700.6 | F180: 1704.7 | G180: 1708 | H180: 1731.15 | I180: 937911 | J180: 1611881889 | K180: 2019-11-05 | L180: 24368 | M180: INE176A01028
A181: BAYERCROP | B181: EQ | C181: 3747.95 | D181: 3747.95 | E181: 3626 | F181: 3670.35 | G181: 3690.2 | H181: 3707.45 | I181: 4343 | J181: 16010569.2 | K181: 2019-11-05 | L181: 1788 | M181: INE462A01022
A182: BBL | B182: EQ | C182: 899.4 | D182: 920 | E182: 881 | F182: 895.55 | G182: 896 | H182: 900.1 | I182: 19350 | J182: 17527453.35 | K182: 2019-11-05 | L182: 1348 | M182: INE464A01028
A183: BBTC | B183: EQ | C183: 1226.05 | D183: 1228.95 | E183: 1192 | F183: 1201.4 | G183: 1200.65 | H183: 1218.5 | I183: 89821 | J183: 108538106.8 | K183: 2019-11-05 | L183: 5284 | M183: INE050A01025
A184: BCG | B184: EQ | C184: 3.15 | D184: 3.3 | E184: 3 | F184: 3 | G184: 3.05 | H184: 3 | I184: 707782 | J184: 2211923.25 | K184: 2019-11-05 | L184: 435 | M184: INE425B01027
A185: BCP | B185: EQ | C185: 8.1 | D185: 8.1 | E185: 8.1 | F185: 8.1 | G185: 8.1 | H185: 7.95 | I185: 5569 | J185: 45108.9 | K185: 2019-11-05 | L185: 11 | M185: INE905P01028
A186: BDL | B186: EQ | C186: 330.3 | D186: 335.1 | E186: 318.55 | F186: 322.5 | G186: 322 | H186: 332.7 | I186: 49916 | J186: 16248027 | K186: 2019-11-05 | L186: 2258 | M186: INE171Z01018
A187: BEARDSELL | B187: EQ | C187: 11.85 | D187: 12 | E187: 11.15 | F187: 11.4 | G187: 11.5 | H187: 11.45 | I187: 1015 | J187: 11756.25 | K187: 2019-11-05 | L187: 48 | M187: INE520H01022
A188: BEDMUTHA | B188: EQ | C188: 11.8 | D188: 11.8 | E188: 10.7 | F188: 11.75 | G188: 11.55 | H188: 11.7 | I188: 25008 | J188: 290733.65 | K188: 2019-11-05 | L188: 76 | M188: INE844K01012
A189: BEL | B189: EQ | C189: 115.3 | D189: 115.9 | E189: 111.6 | F189: 112.6 | G189: 112.5 | H189: 119.5 | I189: 20962769 | J189: 2378728378 | K189: 2019-11-05 | L189: 76674 | M189: INE263A01024
A190: BEML | B190: EQ | C190: 987 | D190: 998.95 | E190: 965 | F190: 969.2 | G190: 967.8 | H190: 992.2 | I190: 516552 | J190: 505477504.4 | K190: 2019-11-05 | L190: 17454 | M190: INE258A01016
A191: BEPL | B191: EQ | C191: 54.7 | D191: 54.7 | E191: 51.25 | F191: 51.85 | G191: 51.8 | H191: 54.4 | I191: 392179 | J191: 20699647.05 | K191: 2019-11-05 | L191: 4196 | M191: INE922A01025
A192: BERGEPAINT | B192: EQ | C192: 504 | D192: 508.65 | E192: 491.05 | F192: 498.3 | G192: 500.1 | H192: 503.35 | I192: 3664134 | J192: 1830245333 | K192: 2019-11-05 | L192: 75935 | M192: INE463A01038
A193: BFINVEST | B193: EQ | C193: 351.55 | D193: 357.45 | E193: 328.2 | F193: 330.6 | G193: 328.3 | H193: 349.95 | I193: 134409 | J193: 45474575.75 | K193: 2019-11-05 | L193: 3903 | M193: INE878K01010
A194: BFUTILITIE | B194: EQ | C194: 316 | D194: 323.5 | E194: 295.95 | F194: 299.65 | G194: 299.7 | H194: 310.25 | I194: 716763 | J194: 218655992.1 | K194: 2019-11-05 | L194: 11258 | M194: INE243D01012
A195: BGLOBAL | B195: BE | C195: 2 | D195: 2.1 | E195: 2 | F195: 2 | G195: 2 | H195: 2 | I195: 7249 | J195: 14672 | K195: 2019-11-05 | L195: 18 | M195: INE224M01013
A196: BGRENERGY | B196: EQ | C196: 34.05 | D196: 34.65 | E196: 33.4 | F196: 33.55 | G196: 33.65 | H196: 34.5 | I196: 45796 | J196: 1554161.8 | K196: 2019-11-05 | L196: 682 | M196: INE661I01014
A197: BHAGERIA | B197: EQ | C197: 113.7 | D197: 116.3 | E197: 109.35 | F197: 112.65 | G197: 115 | H197: 113.55 | I197: 11893 | J197: 1337542.5 | K197: 2019-11-05 | L197: 1146 | M197: INE354C01027
A198: BHAGYANGR | B198: EQ | C198: 19.15 | D198: 19.75 | E198: 19 | F198: 19.1 | G198: 19.1 | H198: 19.15 | I198: 8376 | J198: 160125.4 | K198: 2019-11-05 | L198: 38 | M198: INE458B01036
A199: BHAGYAPROP | B199: EQ | C199: 21.35 | D199: 21.35 | E199: 19.45 | F199: 20.95 | G199: 20.95 | H199: 21.15 | I199: 3112 | J199: 62688.1 | K199: 2019-11-05 | L199: 14 | M199: INE363W01018
A200: BHANDARI | B200: EQ | C200: 1.15 | D200: 1.25 | E200: 1.15 | F200: 1.2 | G200: 1.2 | H200: 1.2 | I200: 43489 | J200: 52817.2 | K200: 2019-11-05 | L200: 48 | M200: INE474E01029
... 1491 more rows

Sheet Sheet1 (hidden)

Sheet Sheet3 (hidden)

Sheet Sheet4 (hidden)

Sheet Sheet5 (hidden)
